Workbook

Sheet Menu
A4: ='Business Details'!B4 -> SEQ INTERIM REVENUE MONITORING - INFORMATION REQUIREMENT TEMPLATE
L8: Please note that the macro in the intermediate input sheets workbook uses the original filenames for both this templates workbook and itself. Therefore, if you wish to save this workbook under a different filename, please do so ONLY AFTER FILLING OUT THE TEMPLATES AND THE MACRO IN THE INTERMEDIATE INPUT SHEETS HAS BEEN RUN, otherwise the macro will not function properly. Please note that the revenue model should also be open before you save either this templates workbook or the intermediate input sheets under a different name, as the pricing model has links to both these workbooks.

Sheet Format Guide
B5: ='Business Details'!B4 -> SEQ INTERIM REVENUE MONITORING - INFORMATION REQUIREMENT TEMPLATE
B6: FORMAT GUIDE
B8: PROJECT FILE: | E8: Information Requirement Template
B10: VERSION AND STATUS OF MODEL: | E10: Version 1.0
B12: DATE OF MODEL: | E12: =NOW() -> 2013-07-25T09:44:07.830
B19: SPREADSHEET FORMATTING PROTOCOLS
B21: Column headings | D21: 2010/11
B23: Hard coded cells (assumptions, data inputs, and value-copied cells) | D23: 15246 | F23: List Box
B25: Row formula different to others | D25: 100 | F25: Macro button (navigation)
B27: Calculated Cell | D27: 15246
B29: Sub-total | D29: 300.51
B31: Total (eg maximum revenue requirement) | D31: 250.86

Sheet Business Details
B4: SEQ INTERIM REVENUE MONITORING - INFORMATION REQUIREMENT TEMPLATE
B7: Business Details | I7: Supporting Documents
B9: Business name | D9: Northern SEQ Distributor-Retailer Authority (Trading as Unitywater ABN: 89 791 717 472)
B11: Geographical areas
C12: 1 | D12: Moreton Bay Regional Council
C13: 2 | D13: Sunshine Coast Regional Council
C14: 3 | D14: N/A
C15: 4 | D15: N/A
C16: 5 | D16: N/A
B18: Are additional geographic areas used? | D18: No | G18: If yes, please provide supporting information.
B20: Analysis Years
B22: Period of information requirement | D22: Year ending 30 June:
C23: Start date | D23: 2009
C24: Smoothing Period - Start Year | D24: N/A
C25: Smoothing Period - End year Year | D25: N/A
C26: Reporting year | D26: 2014
B28: Indexation rates | E28: Year Ending 30 June:
E29: =StartDate -> 2009 | F29: =E29+1 -> 2010 | G29: =F29+1 -> 2011 | H29: =G29+1 -> 2012 | I29: =H29+1 -> 2013 | J29: =CONCATENATE(I29+1," onwards") -> 2014 onwards
B30: Indexation rates
C31: Annual Indexation rate | D31: % pa | E31: 0.02019002375 | F31: 0.03201396973 | G31: 0.03835307389 | H31: 0.009 | I31: 0.021 | J31: 0.025
B37: Asset Class Details | I37: Supporting Documents
B39: Asset classes
C40: 1 | D40: Reservoirs
C41: 2 | D41: Pump stations
C42: 3 | D42: Treatment
C43: 4 | D43: Associated telemetry and control systems
C44: 5 | D44: Meters
C45: 6 | D45: Billing systems
C46: 7 | D46: Corporate systems
C47: 8 | D47: Sundry property, plant and equipment
C48: 9 | D48: Land
C49: 10 | D49: Building other than infrastructure housing
C50: 11 | D50: Distribution infrastructure not included in another category
C51: 12 | D51: Support services
C52: 13 | D52: Mains
C53: 14 | D53: Establishment Costs | I53: N/A
C54: 15 | D54: Unallocated cash contribution

Sheet 3.3
B4: ='Business Details'!$B$4 -> SEQ INTERIM REVENUE MONITORING - INFORMATION REQUIREMENT TEMPLATE
B7: =CONCATENATE("Supporting Documents for ",'Business Details'!$D$9) -> Supporting Documents for Northern SEQ Distributor-Retailer Authority (Trading as Unitywater ABN: 89 791 717 472)
B8: =CONCATENATE("Reporting year = ",AnalysisYear) -> Reporting year = 2014
F10: 0 | G10: 1 | H10: 2
J11: Supporting
J12: Documents | Y12: =X12 -> 
B14: Basis for preparation of historical information:
B16: Where historical information has been provided for the period prior to 1/7/10 this is the same as the previous returns and represents the best available information from Council records. The data for 2010/11 and 2011/12 is from Unitywater's actuals results and where appropriate has been reconciled to the published financial statements. | J16: Council Records
J17: Unitywater Annual Report 2011
J18: Unitywater Annual Report 2012
B27: Basis for preparation of forecast information:
B29: Forecast data has been prepared on the following basis for capital and operating expenditures. Capital expenditure Capital expenditure is sourced from the Unitywater five year capital works forecast which provides the forecast capital spend by project over the five year period ending 30 June 2018. Also provided is the commissioning date for each respective project. This was used to calculate the commissioned value of each project and the date for the commissioned value to be included in the RAB for regultory purposes. Interest during construction was also applied to projects in the construction phase for over 12 months at the WACC rate. Source file - Capital Expenditure 5 Year's Forecast - QCA (A1531247).xlsx. Operating expenditure Operating expense forecasts were calculated on the basis of various escalation rates being applied to historical costs. Where possible, direct operating costs were traced directly to their respective service and region. Indirect operating costs were allocated to service and region using underlying drivers and allocation percentages determined and applied in the RAB. Source file - Copy of QCA Templates 2013-15 Submission (A1541017).xlsx
J31: Capital Expenditure 5 Year's Forecast - QCA (A1531247).xlsx
J39: Copy of QCA Templates 2013-15 Submission (A1541017).xlsx
Y235: =X235 -> 

Sheet 5.1.1
B4: ='Business Details'!$B$4 -> SEQ INTERIM REVENUE MONITORING - INFORMATION REQUIREMENT TEMPLATE
B7: =CONCATENATE("Consolidated Statement for ",'Business Details'!$D$9) -> Consolidated Statement for Northern SEQ Distributor-Retailer Authority (Trading as Unitywater ABN: 89 791 717 472)
B8: =CONCATENATE("Reporting year = ",AnalysisYear) -> Reporting year = 2014
F12: For Year Ending 30 June: | N12: =CONCATENATE("For Year Ending 30 June ",AnalysisYear,":") -> For Year Ending 30 June 2014:
C13: Account heading | F13: =StartDate -> 2009 | G13: =F13+1 -> 2010 | H13: 2011 | I13: 2012 | J13: 2013 | K13: 2014 | L13: 2015 | N13: Ledger Code | O13: Relevant Notes | P13: Supporting Documents | AG13: =AF13 -> 
C15: Revenues
C16: Revenue from services | E16: $'000 | H16: 350868 | I16: 390622 | J16: 422243 | K16: 456382.1939 | L16: 497453.5006 | P16: LTFM v18
C17: Investment income | E17: $'000 | H17: 2551 | I17: 3015 | J17: 1775.64807 | K17: 1809 | L17: 2403 | P17: LTFM v18
C18: Net profit / (loss) from sale of regulatory assets | E18: $'000 | H18: 426.94558 | I18: 399.31692 | J18: 0 | K18: 0 | L18: 0 | O18: Not forecast beyond 12-13 | P18: F1 for 11 & 12
C19: Net profit / (loss) from sale of unregulated assets
C20: Contributions | E20: $'000 | H20: 94012.05442 | I20: 71283.68308 | J20: 65011 | K20: 68202.22746 | L20: 71550.1043 | P20: LTFM v18
C21: Other Revenue | E21: $'000 | H21: 28397 | I21: 25865 | J21: 19481.10753 | K21: 19710.414 | L21: 15904.3674 | P21: LTFM v18
E22: $'000
C23: Total Revenue | E23: $'000 | F23: =SUM(F16:F22) -> 0 | G23: 0 | H23: 476255 | I23: 491185 | J23: 508510.7556 | K23: 546103.8354 | L23: =SUM(L16:L22) -> 587310.9723
C25: Expenses
C26: Operating expenditure | E26: $'000 | G26: 13043.441 | H26: 143716.7016 | I26: 149497.5269 | J26: 144254.5079 | K26: 149403.4206 | L26: 148780.3986 | P26: LTFM v18
C27: Bad debts | E27: $'000 | H27: 1751.5061 | I27: 2051.07118 | J27: 369.43342 | K27: 450 | L27: 455 | P27: From F1 for 11-12 to 13-14
C28: Potable Water | E28: $'000 | H28: 67660.79008 | I28: 91030.185 | J28: 114938.4706 | K28: 134912.534 | L28: 158942.1057 | P28: LTFM v18
E29: $'000
C30: Total Expenses | E30: $'000 | F30: =SUM(F26:F29) -> 0 | G30: 13043.441 | H30: 213128.9978 | I30: 242578.783 | J30: 259562.4119 | K30: 284765.9546 | L30: =SUM(L26:L29) -> 308177.5043
C32: Earnings Before Interest, Tax, Depreciation and Amortisation | E32: $'000 | F32: =F23-F30 -> 0 | G32: -13043.441 | H32: 263126.0022 | I32: 248606.217 | J32: 248948.3436 | K32: 261337.8808 | L32: =L23-L30 -> 279133.468
C34: Depreciation and amortization | E34: $'000 | H34: 83061 | I34: 76629 | J34: 78751 | K34: 84373.94431 | L34: 88336.99601 | P34: LTFM v18
C35: Earnings Before Interest, and Tax | E35: $'000 | F35: =F32-F34 -> 0 | G35: -13043.441 | H35: 180065.0022 | I35: 171977.217 | J35: 170197.3436 | K35: 176963.9365 | L35: =L32-L34 -> 190796.472
C37: Borrowing costs | E37: $'000 | H37: 86915 | I37: 85851.253 | J37: 92076.20223 | K37: 78923.36221 | L37: 84024.69994 | P37: LTFM v18
C38: Earnings Before Tax | E38: $'000 | F38: =F35-F37 -> 0 | G38: -13043.441 | H38: 93150.0022 | I38: 86125.96396 | J38: 78121.14142 | K38: 98040.57427 | L38: =L35-L37 -> 106771.772
C40: Tax Expense | E40: $'000 | H40: 22134 | I40: 16456.407 | J40: 19522.52394 | K40: 25299.10786 | L40: 28082.9708 | P40: LTFM v18
C42: Earnings After Tax | E42: $'000 | F42: =F38-F40 -> 0 | G42: -13043.441 | H42: 71016.0022 | I42: 69669.55696 | J42: 58598.61749 | K42: 72741.46641 | L42: =L38-L40 -> 78688.80124
C44: Dividends paid | E44: $'000 | H44: 45000 | I44: 47483 | J44: 49245.61234 | K44: 52049.81712 | L44: 48565.75657 | P44: LTFM v18
C46: Retained earnings for year | E46: $'000 | F46: =F42-F44 -> 0 | G46: -13043.441 | H46: 26016.0022 | I46: 22186.55696 | J46: 9353.005147 | K46: 20691.64928 | L46: =L42-L44 -> 30123.04466
C47: Retained earnings brought forward | E47: $'000 | G47: =F49 -> 0 | H47: -13043.441 | I47: 12972.5612 | J47: 35159.11816 | K47: 44512.12331 | L47: 65203.77259
C48: Movement in retained earnings | E48: $'000 | F48: =F46 -> 0 | G48: -13043.441 | H48: 26016.0022 | I48: 22186.55696 | J48: 9353.005147 | K48: 20691.64928 | L48: =L46 -> 30123.04466
C49: Retained earnings carried forward | E49: $'000 | F49: =F47+F48 -> 0 | G49: -13043.441 | H49: 12972.5612 | I49: 35159.11816 | J49: 44512.12331 | K49: 65203.77259 | L49: =L47+L48 -> 95326.81725
AG246: =AF246 -> 

Sheet 5.1.2
B4: ='Business Details'!$B$4 -> SEQ INTERIM REVENUE MONITORING - INFORMATION REQUIREMENT TEMPLATE
B7: =CONCATENATE("Consolidated Statement for ",'Business Details'!$D$9) -> Consolidated Statement for Northern SEQ Distributor-Retailer Authority (Trading as Unitywater ABN: 89 791 717 472)
B8: =CONCATENATE("Reporting year = ",AnalysisYear) -> Reporting year = 2014
F12: ='5.1.1'!F12 -> For Year Ending 30 June: | N12: ='5.1.1'!N12 -> For Year Ending 30 June 2014:
C13: ='5.1.1'!C13 -> Account heading | F13: ='5.1.1'!F13 -> 2009 | G13: ='5.1.1'!G13 -> 2010 | H13: ='5.1.1'!H13 -> 2011 | I13: ='5.1.1'!I13 -> 2012 | J13: ='5.1.1'!J13 -> 2013 | K13: ='5.1.1'!K13 -> 2014 | L13: ='5.1.1'!L13 -> 2015 | N13: Ledger Code | O13: Relevant Notes | P13: Supporting Documents
C15: Current Assets
C17: Cash | E17: $'000 | G17: 0 | H17: 69707 | I17: 32992 | J17: 32513.91 | K17: 36396.76025 | L17: 39661.26958
C18: Receivables | E18: $'000 | G18: 697 | H18: 77451 | I18: 122286 | J18: 108073.4635 | K18: 138412.4158 | L18: 150690.5734
C19: Other - Inventories | G19: 0 | H19: 2378 | I19: 2418 | J19: 2496.585 | K19: 2558.999625 | L19: 2622.974616
C20: Other - Prepayments | E20: $'000 | G20: 57 | H20: 508 | I20: 1273 | J20: 1314.3725 | K20: 1347.231812 | L20: 1380.912608
C21: Total Current Assets | E21: $'000 | F21: =SUM(F17:F20) -> 0 | G21: 754 | H21: 150044 | I21: 158969 | J21: 144398.331 | K21: 178715.4074 | L21: =SUM(L17:L20) -> 194355.7302
C23: Non-Current Assets
C25: Property, plant and equipment | E25: $'000 | G25: 2160 | H25: 2739957 | I25: 2871067 | J25: 3105146.314 | K25: 3299274.722 | L25: 3488045.842
C26: Deferred tax assets | E26: $'000
C27: Other - [specify] | E27: $'000
C28: Total non-current assets | E28: $'000 | F28: =SUM(F25:F27) -> 0 | G28: 2160 | H28: 2739957 | I28: 2871067 | J28: 3105146.314 | K28: 3299274.722 | L28: =SUM(L25:L27) -> 3488045.842
C30: TOTAL ASSETS | E30: $'000 | F30: =F28+F21 -> 0 | G30: 2914 | H30: 2890001 | I30: 3030036 | J30: 3249544.645 | K30: 3477990.13 | L30: =L28+L21 -> 3682401.572
C32: Current Liabilities
C34: Payables | E34: $'000 | G34: 0 | H34: 84736 | I34: 106686 | J34: 117732.9104 | K34: 119602.616 | L34: 122128.3199
C35: Interest-bearing liabilities | E35: $'000 | G35: 0 | H35: 7687 | I35: 8223 | J35: 8794.95734 | K35: 9407.18018 | L35: 2453.38542
C36: Current tax liabilities | E36: $'000 | G36: 0 | H36: 0 | I36: 2471 | J36: -1980.382485 | K36: 10091.67763 | L36: 5068.522199
C37: Provisions | E37: $'000 | G37: 0 | H37: 0 | I37: 0 | J37: 0 | K37: 0 | L37: 0
C38: Other - Employee Benefits | G38: 0 | H38: 6410 | I38: 12122 | J38: 12583 | K38: 13114.02569 | L38: 13642.48603
C39: Other - Unearned revenue | G39: 0 | H39: 4371 | I39: 3080 | J39: 3180.1 | K39: 3259.6025 | L39: 3341.092562
C40: Other - security deposits & retentions | E40: $'000 | G40: 0 | H40: 927 | I40: 566 | J40: 584.395 | K40: 599.004875 | L40: 613.9799969
C41: Total current Liabilities | E41: $'000 | F41: =SUM(F34:F40) -> 0 | G41: 0 | H41: 104131 | I41: 133148 | J41: 140894.9802 | K41: 156074.1069 | L41: =SUM(L34:L40) -> 147247.7861
C43: Non-Current Liabilities
C45: Payables | E45: $'000
C46: Interest-bearing liabilities | E46: $'000 | G46: 15957 | H46: 1314529 | I46: 1400307 | J46: 1486758.065 | K46: 1608604.545 | L46: 1718177.055
C47: Current tax liabilities | E47: $'000
C48: Provisions | E48: $'000
C49: Other - Employee benefits | G49: 0 | H49: 10309 | I49: 13151 | J49: 12862 | K49: 13245 | L49: 14016
C50: Other - Net deferred tax liabilities | E50: $'000 | G50: 0 | H50: 15648 | I50: 21874 | J50: 40227.8028 | K50: 50734.67986 | L50: 61321.12707
C51: Total Non-Current Liabilities | E51: $'000 | F51: =SUM(F45:F50) -> 0 | G51: 15957 | H51: 1340486 | I51: 1435332 | J51: 1539847.868 | K51: 1672584.225 | L51: =SUM(L45:L50) -> 1793514.182
C53: TOTAL LIABILITIES | E53: $'000 | F53: =F51+F41 -> 0 | G53: 15957 | H53: 1444617 | I53: 1568480 | J53: 1680742.848 | K53: 1828658.332 | L53: =L51+L41 -> 1940761.969
C55: NET ASSETS/(LIABILITIES) | E55: $'000 | F55: =F30-F53 -> 0 | G55: -13043 | H55: 1445384 | I55: 1461556 | J55: 1568801.797 | K55: 1649331.798 | L55: =L30-L53 -> 1741639.604
C57: Shareholders Equity
C59: Share Capital | E59: $'000 | G59: 0 | H59: 1434782 | I59: 1434782 | J59: 1434782 | K59: 1434782 | L59: 1434782
C60: Reserves | E60: $'000 | G60: 0 | H60: 0 | I60: 0 | J60: 85100 | K60: 146339.6752 | L60: 211656.9038
C61: Retained earnings | E61: $'000 | F61: 0 | G61: -13043 | H61: 10602 | I61: 26774 | J61: 48919.79707 | K61: 68210.12268 | L61: 95200.69989
C63: TOTAL SHAREHOLDERS EQUITY | E63: $'000 | F63: =SUM(F59:F61) -> 0 | G63: -13043 | H63: 1445384 | I63: 1461556 | J63: 1568801.797 | K63: 1649331.798 | L63: =SUM(L59:L61) -> 1741639.604

Sheet 5.1.3
B4: ='Business Details'!$B$4 -> SEQ INTERIM REVENUE MONITORING - INFORMATION REQUIREMENT TEMPLATE
B7: =CONCATENATE("Consolidated Statement for ",'Business Details'!$D$9) -> Consolidated Statement for Northern SEQ Distributor-Retailer Authority (Trading as Unitywater ABN: 89 791 717 472)
B8: =CONCATENATE("Reporting year = ",AnalysisYear) -> Reporting year = 2014
F11: 0 | G11: 1 | H11: 2 | I11: 3 | J11: 4
F12: ='5.1.2'!F12 -> For Year Ending 30 June: | N12: ='5.1.1'!N12 -> For Year Ending 30 June 2014:
C13: ='5.1.2'!C13 -> Account heading | F13: ='5.1.2'!F13 -> 2009 | G13: ='5.1.2'!G13 -> 2010 | H13: ='5.1.2'!H13 -> 2011 | I13: ='5.1.2'!I13 -> 2012 | J13: ='5.1.2'!J13 -> 2013 | K13: ='5.1.2'!K13 -> 2014 | L13: ='5.1.2'!L13 -> 2015 | N13: ='5.1.2'!O13 -> Relevant Notes | O13: ='5.1.2'!P13 -> Supporting Documents | AF13: =AE13 -> 
C15: Cash flows from operating activities
C17: Receipts from customers | E17: $'000 | H17: 380752 | I17: 410480 | J17: 474392.5 | K17: 469643.6 | L17: 530248.6
C18: Payments to suppliers and employees | E18: $'000 | H18: -215432 | I18: -239384 | J18: -253827.4 | K18: -277210.4 | L18: -324626.5
C19: Cash flow arising from restructuring | E19: $'000
C20: Other | E20: $'000
C21: Net cash inflow (outflow) from operating activities | E21: $'000 | F21: =SUM(F17:F20) -> 0 | G21: 0 | H21: 165320 | I21: 171096 | J21: 220565.1 | K21: 192433.2 | L21: =SUM(L17:L20) -> 205622.1
C23: Cash flow from investing activities
E24: $'000
C25: Payments for property, plant and equipment | E25: $'000 | H25: -175495 | I25: -161275 | J25: -170207.3 | K25: -179125.3 | L25: -172542.5
C26: Net movement in loans and advances | E26: $'000
C27: Proceeds from sale of property, plant and equipment | E27: $'000 | H27: 809 | I27: 937 | J27: 0 | K27: 0 | L27: 0
C28: Interest received | E28: $'000 | H28: 2551 | I28: 2964 | J28: 569 | K28: 636.9 | L28: 694.1
C29: Other | E29: $'000
C30: Net cash inflow (outflow) from investing activities | E30: $'000 | F30: =SUM(F25:F29) -> 0 | G30: 0 | H30: -172135 | I30: -157374 | J30: -169638.3 | K30: -178488.4 | L30: =SUM(L25:L29) -> -171848.4
C32: Cash flow from financing activities
C34: Proceeds from borrowings | E34: $'000 | H34: 167000 | I34: 144795 | J34: 95245.6 | K34: 131253.7 | L34: 112025.9
C35: Repayments of borrowings | E35: $'000 | H35: -5435 | I35: -58482 | J35: -8222.6 | K35: -8795 | L35: -9407.2
C36: Finance costs | E36: $'000 | H36: -64031 | I36: -89021 | J36: -90269.8 | K36: -82166.5 | L36: -82939.4
C37: Other - Participation return payments | E37: $'000 | H37: -21012 | I37: -47729 | J37: -48159.2 | K37: -50354.2 | L37: -50188.5
C38: Net cash inflow (outflow) from financing activities | E38: $'000 | F38: =SUM(F34:F37) -> 0 | G38: 0 | H38: 76522 | I38: -50437 | J38: -51406 | K38: -10062 | L38: =SUM(L34:L37) -> -30509.2
C40: Net increase (decrease) in cash held | E40: $'000
C42: Cash at beginning of reporting period | E42: $'000 | G42: =F44 -> 0 | H42: 0 | I42: 69707 | J42: 32992 | K42: 32512.8 | L42: 36395.6
C44: Cash at end of reporting period | E44: $'000 | F44: =F38+F30+F21+F42 -> 0 | G44: 0 | H44: 69707 | I44: 32992 | J44: 32512.8 | K44: 36395.6 | L44: =L38+L30+L21+L42 -> 39660.1
AF72: =AE72 -> 

Sheet 5.2.1
AA1: ="If revenues are smoothed beyond "&J12&", additional data is to be provided for the corresponding period. Additional years can be accessed by clicking on the '+' sign above" -> If revenues are smoothed beyond 2013, additional data is to be provided for the corresponding period. Additional years can be accessed by clicking on the '+' sign above
B4: ='Business Details'!$B$4 -> SEQ INTERIM REVENUE MONITORING - INFORMATION REQUIREMENT TEMPLATE
B7: =CONCATENATE("Revenue Details for ",'Business Details'!$D$9) -> Revenue Details for Northern SEQ Distributor-Retailer Authority (Trading as Unitywater ABN: 89 791 717 472)
B8: =CONCATENATE("Reporting year = ",AnalysisYear) -> Reporting year = 2014
F10: 0 | G10: 1 | H10: 2 | I10: 3 | J10: 4
F11: ='5.1.1'!F12 -> For Year Ending 30 June: | AA11: =CONCATENATE("For Year Ending 30 June ",AnalysisYear) -> For Year Ending 30 June 2014
F12: ='5.1.1'!F13 -> 2009 | G12: ='5.1.1'!G13 -> 2010 | H12: ='5.1.1'!H13 -> 2011 | I12: ='5.1.1'!I13 -> 2012 | J12: ='5.1.1'!J13 -> 2013 | K12: ='5.1.1'!K13 -> 2014 | L12: ='5.1.1'!L13 -> 2015 | M12: =L12+1 -> 2016 | N12: 2017 | O12: 2018 | P12: 2019 | Q12: 2020 | R12: 2021 | S12: 2022 | T12: 2023 | U12: 2024 | V12: 2025 | W12: 2026 | X12: 2027 | Y12: 2028 | AA12: Supporting Documents | AT12: =AS12 -> 
B14: ="Geographical Area 1 - "&'Business Details'!$D$12 -> Geographical Area 1 - Moreton Bay Regional Council
B16: REVENUE FROM SERVICES
C17: Revenue from water services:
C18: Drinking water | E18: $'000 | H18: 93451.64626 | I18: 109107.8754 | J18: 119212.9067 | K18: 131725.7452 | L18: 146815.5392 | AA18: 2013-15 - Utility Revenue Budget A1333878 20/05/2013
C19: Other core water services | E19: $'000 | H19: 8642.68373 | I19: 10163.18868 | J19: 9833.96957 | K19: 9596.7885 | L19: 9321.04433 | AA19: 2013-15 - Utility Revenue Budget A1333878 20/05/2013 and fees charges/other revenue from GL (incl MBOC)
AA20: 2015 MBOC from LTFM with remaining revenue based on 2014 + LTFM growth rate from FY14 to FY15 for other revenue
C21: Revenue from wastewater services:
C22: Wastewater via sewer | E22: $'000 | H22: 106745.8476 | I22: 113267.7004 | J22: 115598.0444 | K22: 121758.037 | L22: 128413.8042 | AA22: 2013-15 - Utility Revenue Budget A1333878 20/05/2013
C23: Trade waste | E23: $'000 | H23: 1032.82852 | I23: 1137.74037 | J23: 1498.064516 | K23: 1500 | L23: 1545 | AA23: 2013-15 - Utility Revenue Budget A1333878 20/05/2013
C24: Other core wastewater services | E24: $'000 | H24: 1114.3823 | I24: 2227.30342 | J24: 1247.03729 | K24: 1171.61 | L24: 1148.113426 | AA24: 2013-15 - Utility Revenue Budget A1333878 20/05/2013 and fees charges/other revenue from GL
AA25: 2015 revenue based on 2014 + LTFM growth rate from FY14 to FY15 for other revenue
C26: Non-regulated:
C27: Aggregate non-regulated services | E27: $'000 | H27: 3960.511716 | I27: 2761.036966 | J27: 3937.178342 | K27: 3072.44288 | L27: 3010.825207 | AA27: General Ledger with, a % of which was apportioned using council participation rate
AA28: 2015 revenue based on 2014 + LTFM growth rate from FY14 to FY15 for other revenue
C29: Subtotal Revenue from Services | E29: $'000 | F29: =SUM(F18:F19)+SUM(F22:F24)+F27 -> 0 | G29: 0 | H29: 214947.9001 | I29: 238664.8452 | J29: 251327.2008 | K29: 268824.6236 | L29: 290254.3263 | M29: 0 | N29: 0 | O29: 0 | P29: 0 | Q29: 0 | R29: 0 | S29: 0 | T29: 0 | U29: 0 | V29: 0 | W29: 0 | X29: 0 | Y29: 0
B31: OTHER REVENUE
C32: Other Revenue Offset Against Revenue Requirements:
C33: Investment Income | E33: $'000 | H33: 1414.690258 | I33: 1755.687082 | J33: 1203.451914 | K33: 715.5637248 | L33: 974.2880716 | AA33: General Ledger with, a % of which was apportioned using council participation rate
C34: Net profit from Sale of Assets | E34: $'000
C35: Contributions | E35: $'000 | H35: 78290.66637 | I35: 43197.53417 | J35: 47494.39023 | K35: 49431.127 | L35: 51857.577 | AA35: LTFM (apportioned bast on Jul11-Jan13 actual split)
C37: Other Revenue Not Offset Against Revenue Requirements:
C38: Investment Income | E38: $'000
C39: Net profit from Sale of Assets | E39: $'000
C40: Contributions | E40: $'000
C42: Subtotal Other Revenue | E42: $'000 | F42: =SUM(F33:F35)+SUM(F38:F40) -> 0 | G42: =SUM(G33:G35)+SUM(G38:G40) -> 0 | H42: =SUM(H33:H35)+SUM(H38:H40) -> 79705.35662 | I42: =SUM(I33:I35)+SUM(I38:I40) -> 44953.22125 | J42: =SUM(J33:J35)+SUM(J38:J40) -> 48697.84215 | K42: =SUM(K33:K35)+SUM(K38:K40) -> 50146.69072 | L42: 52831.86507 | M42: 0 | N42: 0 | O42: 0 | P42: 0 | Q42: 0 | R42: 0 | S42: 0 | T42: 0 | U42: 0 | V42: 0 | W42: 0 | X42: 0 | Y42: 0
B44: TOTAL REVENUE | E44: $'000 | F44: =F42+F29 -> 0 | G44: =G42+G29 -> 0 | H44: =H42+H29 -> 294653.2568 | I44: =I42+I29 -> 283618.0665 | J44: =J42+J29 -> 300025.043 | K44: =K42+K29 -> 318971.3143 | L44: 343086.1914 | M44: 0 | N44: 0 | O44: 0 | P44: 0 | Q44: 0 | R44: 0 | S44: 0 | T44: 0 | U44: 0 | V44: 0 | W44: 0 | X44: 0 | Y44: 0
F47: =F11 -> For Year Ending 30 June: | AA47: =AA11 -> For Year Ending 30 June 2014
F48: =F12 -> 2009 | G48: =G12 -> 2010 | H48: =H12 -> 2011 | I48: =I12 -> 2012 | J48: =J12 -> 2013 | K48: =K12 -> 2014 | L48: 2015 | M48: 2016 | N48: 2017 | O48: 2018 | P48: 2019 | Q48: 2020 | R48: 2021 | S48: 2022 | T48: 2023 | U48: 2024 | V48: 2025 | W48: 2026 | X48: 2027 | Y48: 2028 | AA48: =AA12 -> Supporting Documents | AT48: =AS48 -> 
B50: ="Geographical Area 2 - "&'Business Details'!$D$13 -> Geographical Area 2 - Sunshine Coast Regional Council
B52: =B16 -> REVENUE FROM SERVICES
C53: =C17 -> Revenue from water services:
C54: =C18 -> Drinking water | E54: $'000 | H54: 66803.77772 | I54: 84652.15898 | J54: 96257.38 | K54: 109613.1844 | L54: 124024.0471 | AA54: 2013-15 - Utility Revenue Budget A1333878 20/05/2013
C55: =C19 -> Other core water services | E55: $'000 | H55: 1836.95177 | I55: 2076.81702 | J55: 1999.29597 | K55: 2228.1055 | L55: 2183.420967 | AA55: 2013-15 - Utility Revenue Budget A1333878 20/05/2013 and fees charges/other revenue from GL
AA56: 2015 revenue based on 2014 + LTFM growth rate from FY14 to FY15 for other revenue
C57: =C21 -> Revenue from wastewater services:
C58: =C22 -> Wastewater via sewer | E58: $'000 | H58: 83867.19348 | I58: 83594.34788 | J58: 84583.90913 | K58: 89180.1655 | L58: 93971.9546 | AA58: 2013-15 - Utility Revenue Budget A1333878 20/05/2013
C59: =C23 -> Trade waste | E59: $'000 | H59: 985.1333 | I59: 1543.26066 | J59: 1597.935484 | K59: 1600 | L59: 1648 | AA59: 2013-15 - Utility Revenue Budget A1333878 20/05/2013
C60: =C24 -> Other core wastewater services | E60: $'000 | H60: 822.60871 | I60: 767.86177 | J60: 629.23457 | K60: 762.353 | L60: 747.0640525 | AA60: 2013-15 - Utility Revenue Budget A1333878 20/05/2013 and fees charges/other revenue from GL
AA61: 2015 revenue based on 2014 + LTFM growth rate from FY14 to FY15 for other revenue
C62: =C26 -> Non-regulated:
C63: =C27 -> Aggregate non-regulated services | E63: $'000 | H63: 2786.907424 | I63: 2073.827964 | J63: 2945.679298 | K63: 2075.60212 | L63: 2033.976034 | AA63: General Ledger with, a % of which was apportioned using council participation rate
AA64: 2015 revenue based on 2014 + LTFM growth rate from FY14 to FY15 for other revenue
C65: =C29 -> Subtotal Revenue from Services | E65: $'000 | F65: =SUM(F54:F55)+SUM(F58:F60)+F63 -> 0 | G65: 0 | H65: =SUM(H54:H55)+SUM(H58:H60)+H63 -> 157102.5724 | I65: =SUM(I54:I55)+SUM(I58:I60)+I63 -> 174708.2743 | J65: 188013.4344 | K65: 205459.4105 | L65: 224608.4627 | M65: 0 | N65: 0 | O65: 0 | P65: 0 | Q65: 0 | R65: 0 | S65: 0 | T65: 0 | U65: 0 | V65: 0 | W65: 0 | X65: 0 | Y65: 0
B67: =B31 -> OTHER REVENUE
C68: =C32 -> Other Revenue Offset Against Revenue Requirements:
C69: =C33 -> Investment Income | E69: $'000 | H69: 1136.684622 | I69: 1258.885518 | J69: 862.9146963 | K69: 1093.213275 | L69: 1488.483299 | AA69: General Ledger with, a % of which was apportioned using council participation rate. 2015 growth from LTFM
C70: =C34 -> Net profit from Sale of Assets | E70: $'000
C71: =C35 -> Contributions | E71: $'000 | H71: 20811.8146 | I71: 28525.00531 | J71: 17516.99277 | K71: 18771.101 | L71: 19692.528 | AA71: LTFM (apportioned bast on Jul11-Jan13 actual split)
C73: =C37 -> Other Revenue Not Offset Against Revenue Requirements:
C74: =C38 -> Investment Income | E74: $'000
C75: =C39 -> Net profit from Sale of Assets | E75: $'000
C76: =C40 -> Contributions | E76: $'000
C78: =C42 -> Subtotal Other Revenue | E78: $'000 | F78: =SUM(F69:F71)+SUM(F74:F76) -> 0 | G78: =SUM(G69:G71)+SUM(G74:G76) -> 0 | H78: =SUM(H69:H71)+SUM(H74:H76) -> 21948.49923 | I78: =SUM(I69:I71)+SUM(I74:I76) -> 29783.89083 | J78: =SUM(J69:J71)+SUM(J74:J76) -> 18379.90746 | K78: =SUM(K69:K71)+SUM(K74:K76) -> 19864.31428 | L78: 21181.0113 | M78: 0 | N78: 0 | O78: 0 | P78: 0 | Q78: 0 | R78: 0 | S78: 0 | T78: 0 | U78: 0 | V78: 0 | W78: 0 | X78: 0 | Y78: 0
B80: =B44 -> TOTAL REVENUE | E80: $'000 | F80: =F78+F65 -> 0 | G80: =G78+G65 -> 0 | H80: =H78+H65 -> 179051.0716 | I80: =I78+I65 -> 204492.1651 | J80: =J78+J65 -> 206393.3419 | K80: =K78+K65 -> 225323.7248 | L80: 245789.474 | M80: 0 | N80: 0 | O80: 0 | P80: 0 | Q80: 0 | R80: 0 | S80: 0 | T80: 0 | U80: 0 | V80: 0 | W80: 0 | X80: 0 | Y80: 0
F83: =F47 -> For Year Ending 30 June: | AA83: =AA47 -> For Year Ending 30 June 2014
F84: =F48 -> 2009 | G84: =G48 -> 2010 | H84: =H48 -> 2011 | I84: =I48 -> 2012 | J84: =J48 -> 2013 | K84: =K48 -> 2014 | L84: 2015 | M84: 2016 | N84: 2017 | O84: 2018 | P84: 2019 | Q84: 2020 | R84: 2021 | S84: 2022 | T84: 2023 | U84: 2024 | V84: 2025 | W84: 2026 | X84: 2027 | Y84: 2028 | AA84: =AA48 -> Supporting Documents | AT84: =AS84 -> 
B86: ="Geographical Area 3 - "&'Business Details'!$D$14 -> Geographical Area 3 - N/A
B88: =B52 -> REVENUE FROM SERVICES
C89: =C53 -> Revenue from water services:
C90: =C54 -> Drinking water | E90: $'000
C91: =C55 -> Other core water services | E91: $'000
C93: =C57 -> Revenue from wastewater services:
C94: =C58 -> Wastewater via sewer | E94: $'000
C95: =C59 -> Trade waste | E95: $'000
C96: =C60 -> Other core wastewater services | E96: $'000
C98: =C62 -> Non-regulated:
C99: =C63 -> Aggregate non-regulated services | E99: $'000
C101: =C65 -> Subtotal Revenue from Services | E101: $'000 | F101: =SUM(F90:F91)+SUM(F94:F96)+F99 -> 0 | G101: 0 | H101: 0 | I101: 0 | J101: 0 | K101: 0 | L101: 0 | M101: 0 | N101: 0 | O101: 0 | P101: 0 | Q101: 0 | R101: 0 | S101: 0 | T101: 0 | U101: 0 | V101: 0 | W101: 0 | X101: 0 | Y101: 0
B103: =B67 -> OTHER REVENUE
C104: =C68 -> Other Revenue Offset Against Revenue Requirements:
C105: =C69 -> Investment Income | E105: $'000
C106: =C70 -> Net profit from Sale of Assets | E106: $'000
C107: =C71 -> Contributions | E107: $'000
C109: =C73 -> Other Revenue Not Offset Against Revenue Requirements:
C110: =C74 -> Investment Income | E110: $'000
C111: =C75 -> Net profit from Sale of Assets | E111: $'000
C112: =C76 -> Contributions | E112: $'000
C114: =C78 -> Subtotal Other Revenue | E114: $'000 | F114: =SUM(F105:F107)+SUM(F110:F112) -> 0 | G114: =SUM(G105:G107)+SUM(G110:G112) -> 0 | H114: =SUM(H105:H107)+SUM(H110:H112) -> 0 | I114: =SUM(I105:I107)+SUM(I110:I112) -> 0 | J114: =SUM(J105:J107)+SUM(J110:J112) -> 0 | K114: =SUM(K105:K107)+SUM(K110:K112) -> 0 | L114: 0 | M114: 0 | N114: 0 | O114: 0 | P114: 0 | Q114: 0 | R114: 0 | S114: 0 | T114: 0 | U114: 0 | V114: 0 | W114: 0 | X114: 0 | Y114: 0
B116: =B80 -> TOTAL REVENUE | E116: $'000 | F116: =F114+F101 -> 0 | G116: =G114+G101 -> 0 | H116: =H114+H101 -> 0 | I116: =I114+I101 -> 0 | J116: =J114+J101 -> 0 | K116: =K114+K101 -> 0 | L116: 0 | M116: 0 | N116: 0 | O116: 0 | P116: 0 | Q116: 0 | R116: 0 | S116: 0 | T116: 0 | U116: 0 | V116: 0 | W116: 0 | X116: 0 | Y116: 0
F119: =F83 -> For Year Ending 30 June: | AA119: =AA83 -> For Year Ending 30 June 2014
F120: =F84 -> 2009 | G120: =G84 -> 2010 | H120: =H84 -> 2011 | I120: =I84 -> 2012 | J120: =J84 -> 2013 | K120: =K84 -> 2014 | L120: 2015 | M120: 2016 | N120: 2017 | O120: 2018 | P120: 2019 | Q120: 2020 | R120: 2021 | S120: 2022 | T120: 2023 | U120: 2024 | V120: 2025 | W120: 2026 | X120: 2027 | Y120: 2028 | AA120: =AA84 -> Supporting Documents | AT120: =AS120 -> 
B122: ="Geographical Area 4 - "&'Business Details'!$D$15 -> Geographical Area 4 - N/A
B124: =B88 -> REVENUE FROM SERVICES
C125: =C89 -> Revenue from water services:
C126: =C90 -> Drinking water | E126: $'000
C127: =C91 -> Other core water services | E127: $'000
C129: =C93 -> Revenue from wastewater services:
C130: =C94 -> Wastewater via sewer | E130: $'000
C131: =C95 -> Trade waste | E131: $'000
C132: =C96 -> Other core wastewater services | E132: $'000
C134: =C98 -> Non-regulated:
C135: =C99 -> Aggregate non-regulated services | E135: $'000
C137: =C101 -> Subtotal Revenue from Services | E137: $'000 | F137: =SUM(F126:F127)+SUM(F130:F132)+F135 -> 0 | G137: 0 | H137: 0 | I137: 0 | J137: 0 | K137: 0 | L137: 0 | M137: 0 | N137: 0 | O137: 0 | P137: 0 | Q137: 0 | R137: 0 | S137: 0 | T137: 0 | U137: 0 | V137: 0 | W137: 0 | X137: 0 | Y137: 0
B139: =B103 -> OTHER REVENUE
C140: =C104 -> Other Revenue Offset Against Revenue Requirements:
C141: =C105 -> Investment Income | E141: $'000
C142: =C106 -> Net profit from Sale of Assets | E142: $'000
C143: =C107 -> Contributions | E143: $'000
C145: =C109 -> Other Revenue Not Offset Against Revenue Requirements:
C146: =C110 -> Investment Income | E146: $'000
C147: =C111 -> Net profit from Sale of Assets | E147: $'000
C148: =C112 -> Contributions | E148: $'000
C150: =C114 -> Subtotal Other Revenue | E150: $'000 | F150: =SUM(F141:F143)+SUM(F146:F148) -> 0 | G150: =SUM(G141:G143)+SUM(G146:G148) -> 0 | H150: =SUM(H141:H143)+SUM(H146:H148) -> 0 | I150: =SUM(I141:I143)+SUM(I146:I148) -> 0 | J150: =SUM(J141:J143)+SUM(J146:J148) -> 0 | K150: =SUM(K141:K143)+SUM(K146:K148) -> 0 | L150: 0 | M150: 0 | N150: 0 | O150: 0 | P150: 0 | Q150: 0 | R150: 0 | S150: 0 | T150: 0 | U150: 0 | V150: 0 | W150: 0 | X150: 0 | Y150: 0
B152: =B116 -> TOTAL REVENUE | E152: $'000 | F152: =F150+F137 -> 0 | G152: =G150+G137 -> 0 | H152: =H150+H137 -> 0 | I152: =I150+I137 -> 0 | J152: =J150+J137 -> 0 | K152: =K150+K137 -> 0 | L152: 0 | M152: 0 | N152: 0 | O152: 0 | P152: 0 | Q152: 0 | R152: 0 | S152: 0 | T152: 0 | U152: 0 | V152: 0 | W152: 0 | X152: 0 | Y152: 0
F155: =F119 -> For Year Ending 30 June: | AA155: =AA119 -> For Year Ending 30 June 2014
F156: =F120 -> 2009 | G156: =G120 -> 2010 | H156: =H120 -> 2011 | I156: =I120 -> 2012 | J156: =J120 -> 2013 | K156: =K120 -> 2014 | L156: 2015 | M156: 2016 | N156: 2017 | O156: 2018 | P156: 2019 | Q156: 2020 | R156: 2021 | S156: 2022 | T156: 2023 | U156: 2024 | V156: 2025 | W156: 2026 | X156: 2027 | Y156: 2028 | AA156: =AA120 -> Supporting Documents | AT156: =AS156 -> 
B158: ="Geographical Area 5 - "&'Business Details'!$D$16 -> Geographical Area 5 - N/A
B160: =B124 -> REVENUE FROM SERVICES
C161: =C125 -> Revenue from water services:
C162: =C126 -> Drinking water | E162: $'000
C163: =C127 -> Other core water services | E163: $'000
C165: =C129 -> Revenue from wastewater services:
C166: =C130 -> Wastewater via sewer | E166: $'000
C167: =C131 -> Trade waste | E167: $'000
C168: =C132 -> Other core wastewater services | E168: $'000
C170: =C134 -> Non-regulated:
C171: =C135 -> Aggregate non-regulated services | E171: $'000
C173: =C137 -> Subtotal Revenue from Services | E173: $'000 | F173: =SUM(F162:F163)+SUM(F166:F168)+F171 -> 0 | G173: 0 | H173: =SUM(H162:H163)+SUM(H166:H168)+H171 -> 0 | I173: =SUM(I162:I163)+SUM(I166:I168)+I171 -> 0 | J173: 0 | K173: 0 | L173: 0 | M173: 0 | N173: 0 | O173: 0 | P173: 0 | Q173: 0 | R173: 0 | S173: 0 | T173: 0 | U173: 0 | V173: 0 | W173: 0 | X173: 0 | Y173: 0
B175: =B139 -> OTHER REVENUE
C176: =C140 -> Other Revenue Offset Against Revenue Requirements:
C177: =C141 -> Investment Income | E177: $'000
C178: =C142 -> Net profit from Sale of Assets | E178: $'000
C179: =C143 -> Contributions | E179: $'000
C181: =C145 -> Other Revenue Not Offset Against Revenue Requirements:
C182: =C146 -> Investment Income | E182: $'000
C183: =C147 -> Net profit from Sale of Assets | E183: $'000
C184: =C148 -> Contributions | E184: $'000
C186: =C150 -> Subtotal Other Revenue | E186: $'000 | F186: =SUM(F177:F179)+SUM(F182:F184) -> 0 | G186: =SUM(G177:G179)+SUM(G182:G184) -> 0 | H186: =SUM(H177:H179)+SUM(H182:H184) -> 0 | I186: =SUM(I177:I179)+SUM(I182:I184) -> 0 | J186: =SUM(J177:J179)+SUM(J182:J184) -> 0 | K186: =SUM(K177:K179)+SUM(K182:K184) -> 0 | L186: 0 | M186: 0 | N186: 0 | O186: 0 | P186: 0 | Q186: 0 | R186: 0 | S186: 0 | T186: 0 | U186: 0 | V186: 0 | W186: 0 | X186: 0 | Y186: 0
B188: =B152 -> TOTAL REVENUE | E188: $'000 | F188: =F186+F173 -> 0 | G188: =G186+G173 -> 0 | H188: =H186+H173 -> 0 | I188: =I186+I173 -> 0 | J188: =J186+J173 -> 0 | K188: =K186+K173 -> 0 | L188: 0 | M188: 0 | N188: 0 | O188: 0 | P188: 0 | Q188: 0 | R188: 0 | S188: 0 | T188: 0 | U188: 0 | V188: 0 | W188: 0 | X188: 0 | Y188: 0
F191: =F155 -> For Year Ending 30 June: | AA191: =AA155 -> For Year Ending 30 June 2014
F192: =F156 -> 2009 | G192: =G156 -> 2010 | H192: =H156 -> 2011 | I192: =I156 -> 2012 | J192: =J156 -> 2013 | K192: =K156 -> 2014 | L192: 2015 | M192: 2016 | N192: 2017 | O192: 2018 | P192: 2019 | Q192: 2020 | R192: 2021 | S192: 2022 | T192: 2023 | U192: 2024 | V192: 2025 | W192: 2026 | X192: 2027 | Y192: 2028 | AA192: =AA156 -> Supporting Documents
B194: Unallocated Revenue
C196: REVENUE FROM SERVICES
C197: Revenue from water services:
C198: Drinking water | E198: $'000
C199: Other core water services | E199: $'000
C201: =C165 -> Revenue from wastewater services:
C202: =C166 -> Wastewater via sewer | E202: $'000
C203: =C167 -> Trade waste | E203: $'000
C204: =C168 -> Other core wastewater services | E204: $'000
C206: =C170 -> Non-regulated:
C207: =C171 -> Aggregate non-regulated services | E207: $'000
C209: =C173 -> Subtotal Revenue from Services | E209: $'000 | F209: =SUM(F198:F199)+SUM(F202:F204)+F207 -> 0 | G209: 0 | H209: 0 | I209: 0 | J209: 0 | K209: 0 | L209: 0 | M209: 0 | N209: 0 | O209: 0 | P209: 0 | Q209: 0 | R209: 0 | S209: 0 | T209: 0 | U209: 0 | V209: 0 | W209: 0 | X209: 0 | Y209: 0
B211: =B175 -> OTHER REVENUE
C212: =C176 -> Other Revenue Offset Against Revenue Requirements:
C213: =C177 -> Investment Income | E213: $'000
C214: =C178 -> Net profit from Sale of Assets | E214: $'000 | H214: 0 | I214: 59.61525 | J214: 0 | K214: 0 | L214: 0
C215: =C179 -> Contributions | E215: $'000
C217: =C181 -> Other Revenue Not Offset Against Revenue Requirements:
C218: =C182 -> Investment Income | E218: $'000
C219: =C183 -> Net profit from Sale of Assets | E219: $'000
C220: =C184 -> Contributions | E220: $'000
C222: =C186 -> Subtotal Other Revenue | E222: $'000 | F222: =SUM(F213:F215)+SUM(F218:F220) -> 0 | G222: =SUM(G213:G215)+SUM(G218:G220) -> 0 | H222: =SUM(H213:H215)+SUM(H218:H220) -> 0 | I222: =SUM(I213:I215)+SUM(I218:I220) -> 59.61525 | J222: =SUM(J213:J215)+SUM(J218:J220) -> 0 | K222: =SUM(K213:K215)+SUM(K218:K220) -> 0 | L222: 0 | M222: 0 | N222: 0 | O222: 0 | P222: 0 | Q222: 0 | R222: 0 | S222: 0 | T222: 0 | U222: 0 | V222: 0 | W222: 0 | X222: 0 | Y222: 0
B224: TOTAL UNALLOCATED REVENUE | E224: $'000 | F224: =F222+F209 -> 0 | G224: =G222+G209 -> 0 | H224: =H222+H209 -> 0 | I224: =I222+I209 -> 59.61525 | J224: =J222+J209 -> 0 | K224: =K222+K209 -> 0 | L224: 0 | M224: 0 | N224: 0 | O224: 0 | P224: 0 | Q224: 0 | R224: 0 | S224: 0 | T224: 0 | U224: 0 | V224: 0 | W224: 0 | X224: 0 | Y224: 0
F227: =F155 -> For Year Ending 30 June: | AA227: =AA155 -> For Year Ending 30 June 2014
F228: =F156 -> 2009 | G228: =G156 -> 2010 | H228: =H156 -> 2011 | I228: =I156 -> 2012 | J228: =J156 -> 2013 | K228: =K156 -> 2014 | L228: 2015 | M228: 2016 | N228: 2017 | O228: 2018 | P228: 2019 | Q228: 2020 | R228: 2021 | S228: 2022 | T228: 2023 | U228: 2024 | V228: 2025 | W228: 2026 | X228: 2027 | Y228: 2028 | AA228: =AA156 -> Supporting Documents
B230: Total
B232: =B160 -> REVENUE FROM SERVICES
C233: =C161 -> Revenue from water services:
C234: =C162 -> Drinking water | E234: $'000 | F234: =F18+F54+F90+F126+F162+F198 -> 0 | G234: 0 | H234: 160255.424 | I234: 193760.0344 | J234: 215470.2867 | K234: 241338.9296 | L234: 270839.5862 | M234: 0 | N234: 0 | O234: 0 | P234: 0 | Q234: 0 | R234: 0 | S234: 0 | T234: 0 | U234: 0 | V234: 0 | W234: 0 | X234: 0 | Y234: 0
C235: =C163 -> Other core water services | E235: $'000 | F235: =F19+F55+F91+F127+F163+F199 -> 0 | G235: =G19+G55+G91+G127+G163+G199 -> 0 | H235: =H19+H55+H91+H127+H163+H199 -> 10479.6355 | I235: =I19+I55+I91+I127+I163+I199 -> 12240.0057 | J235: 11833.26554 | K235: 11824.894 | L235: 11504.4653 | M235: 0 | N235: 0 | O235: 0 | P235: 0 | Q235: 0 | R235: 0 | S235: 0 | T235: 0 | U235: 0 | V235: 0 | W235: 0 | X235: 0 | Y235: 0
C237: =C165 -> Revenue from wastewater services:
C238: =C166 -> Wastewater via sewer | E238: $'000 | F238: =F22+F58+F94+F130+F166+F202 -> 0 | G238: 0 | H238: =H22+H58+H94+H130+H166+H202 -> 190613.0411 | I238: 196862.0483 | J238: 200181.9536 | K238: 210938.2025 | L238: 222385.7588 | M238: 0 | N238: 0 | O238: 0 | P238: 0 | Q238: 0 | R238: 0 | S238: 0 | T238: 0 | U238: 0 | V238: 0 | W238: 0 | X238: 0 | Y238: 0
C239: =C167 -> Trade waste | E239: $'000 | F239: =F23+F59+F95+F131+F167+F203 -> 0 | G239: 0 | H239: 2017.96182 | I239: 2681.00103 | J239: 3096 | K239: 3100 | L239: 3193 | M239: 0 | N239: 0 | O239: 0 | P239: 0 | Q239: 0 | R239: 0 | S239: 0 | T239: 0 | U239: 0 | V239: 0 | W239: 0 | X239: 0 | Y239: 0
C240: =C168 -> Other core wastewater services | E240: $'000 | F240: =F24+F60+F96+F132+F168+F204 -> 0 | G240: 0 | H240: 1936.99101 | I240: 2995.16519 | J240: 1876.27186 | K240: 1933.963 | L240: 1895.177478 | M240: 0 | N240: 0 | O240: 0 | P240: 0 | Q240: 0 | R240: 0 | S240: 0 | T240: 0 | U240: 0 | V240: 0 | W240: 0 | X240: 0 | Y240: 0
C242: =C170 -> Non-regulated:
C243: =C171 -> Aggregate non-regulated services | E243: $'000 | F243: =F27+F63+F99+F135+F171+F207 -> 0 | G243: 0 | H243: =H27+H63+H99+H135+H171+H207 -> 6747.41914 | I243: =I27+I63+I99+I135+I171+I207 -> 4834.86493 | J243: 6882.85764 | K243: 5148.045 | L243: 5044.80124 | M243: 0 | N243: 0 | O243: 0 | P243: 0 | Q243: 0 | R243: 0 | S243: 0 | T243: 0 | U243: 0 | V243: 0 | W243: 0 | X243: 0 | Y243: 0
C245: =C173 -> Subtotal Revenue from Services | E245: $'000 | F245: =SUM(F234:F235)+SUM(F238:F240)+F243 -> 0 | G245: 0 | H245: 372050.4725 | I245: 413373.1195 | J245: 439340.6353 | K245: 474284.034 | L245: 514862.789 | M245: 0 | N245: 0 | O245: 0 | P245: 0 | Q245: 0 | R245: 0 | S245: 0 | T245: 0 | U245: 0 | V245: 0 | W245: 0 | X245: 0 | Y245: 0
B247: =B175 -> OTHER REVENUE
C248: =C176 -> Other Revenue Offset Against Revenue Requirements:
C249: =C177 -> Investment Income | E249: $'000 | F249: =F33+F69+F105+F141+F177+F213 -> 0 | G249: 0 | H249: 2551.37488 | I249: 3014.5726 | J249: 2066.36661 | K249: 1808.777 | L249: 2462.771371 | M249: 0 | N249: 0 | O249: 0 | P249: 0 | Q249: 0 | R249: 0 | S249: 0 | T249: 0 | U249: 0 | V249: 0 | W249: 0 | X249: 0 | Y249: 0
C250: =C178 -> Net profit from Sale of Assets | E250: $'000 | F250: =F34+F70+F106+F142+F178+F214 -> 0 | G250: 0 | H250: 0 | I250: 59.61525 | J250: 0 | K250: 0 | L250: 0 | M250: 0 | N250: 0 | O250: 0 | P250: 0 | Q250: 0 | R250: 0 | S250: 0 | T250: 0 | U250: 0 | V250: 0 | W250: 0 | X250: 0 | Y250: 0
C251: =C179 -> Contributions | E251: $'000 | F251: =F35+F71+F107+F143+F179+F215 -> 0 | G251: 0 | H251: 99102.48097 | I251: 71722.53948 | J251: 65011.383 | K251: 68202.228 | L251: 71550.105 | M251: 0 | N251: 0 | O251: 0 | P251: 0 | Q251: 0 | R251: 0 | S251: 0 | T251: 0 | U251: 0 | V251: 0 | W251: 0 | X251: 0 | Y251: 0
C253: =C181 -> Other Revenue Not Offset Against Revenue Requirements:
C254: =C182 -> Investment Income | E254: $'000 | F254: =F38+F74+F110+F146+F182+F218 -> 0 | G254: 0 | H254: 0 | I254: 0 | J254: 0 | K254: 0 | L254: 0 | M254: 0 | N254: 0 | O254: 0 | P254: 0 | Q254: 0 | R254: 0 | S254: 0 | T254: 0 | U254: 0 | V254: 0 | W254: 0 | X254: 0 | Y254: 0
C255: =C183 -> Net profit from Sale of Assets | E255: $'000 | F255: =F39+F75+F111+F147+F183+F219 -> 0 | G255: 0 | H255: 0 | I255: 0 | J255: 0 | K255: 0 | L255: 0 | M255: 0 | N255: 0 | O255: 0 | P255: 0 | Q255: 0 | R255: 0 | S255: 0 | T255: 0 | U255: 0 | V255: 0 | W255: 0 | X255: 0 | Y255: 0
C256: =C184 -> Contributions | E256: $'000 | F256: =F40+F76+F112+F148+F184+F220 -> 0 | G256: 0 | H256: 0 | I256: 0 | J256: 0 | K256: 0 | L256: 0 | M256: 0 | N256: 0 | O256: 0 | P256: 0 | Q256: 0 | R256: 0 | S256: 0 | T256: 0 | U256: 0 | V256: 0 | W256: 0 | X256: 0 | Y256: 0
C258: =C186 -> Subtotal Other Revenue | E258: $'000 | F258: =SUM(F249:F251)+SUM(F254:F256) -> 0 | G258: =SUM(G249:G251)+SUM(G254:G256) -> 0 | H258: =SUM(H249:H251)+SUM(H254:H256) -> 101653.8559 | I258: =SUM(I249:I251)+SUM(I254:I256) -> 74796.72733 | J258: =SUM(J249:J251)+SUM(J254:J256) -> 67077.74961 | K258: =SUM(K249:K251)+SUM(K254:K256) -> 70011.005 | L258: 74012.87637 | M258: 0 | N258: 0 | O258: 0 | P258: 0 | Q258: 0 | R258: 0 | S258: 0 | T258: 0 | U258: 0 | V258: 0 | W258: 0 | X258: 0 | Y258: 0
B260: =B188 -> TOTAL REVENUE | E260: $'000 | F260: =F258+F245 -> 0 | G260: =G258+G245 -> 0 | H260: =H258+H245 -> 473704.3284 | I260: =I258+I245 -> 488169.8468 | J260: =J258+J245 -> 506418.3849 | K260: =K258+K245 -> 544295.039 | L260: 588875.6654 | M260: 0 | N260: 0 | O260: 0 | P260: 0 | Q260: 0 | R260: 0 | S260: 0 | T260: 0 | U260: 0 | V260: 0 | W260: 0 | X260: 0 | Y260: 0
K264: Out by $300K due to capital revenue. Actual budget in LTFM and latest ledger is $68.2M vs. $68.5M in 5.1.1Data report

Sheet 5.2.3
B4: ='Business Details'!$B$4 -> SEQ INTERIM REVENUE MONITORING - INFORMATION REQUIREMENT TEMPLATE
B7: =CONCATENATE("Revenue Details for ",'Business Details'!$D$9," - Tariff Structures") -> Revenue Details for Northern SEQ Distributor-Retailer Authority (Trading as Unitywater ABN: 89 791 717 472) - Tariff Structures
B8: =CONCATENATE("Reporting year = ",AnalysisYear) -> Reporting year = 2014
D13: Geographic Area | F13: Service Category | I13: Customer Category | M13: Type | Q13: For Year Ending 30 June: | Y13: Supporting
C14: Parameter | D14: (dropdown list) | F14: (dropdown list) | I14: (dropdown list) | K14: Tariff Description | M14: (dropdown list) | O14: Unit | Q14: ='5.1.1'!F13 -> 2009 | R14: ='5.1.1'!G13 -> 2010 | S14: ='5.1.1'!H13 -> 2011 | T14: ='5.1.1'!I13 -> 2012 | U14: ='5.1.1'!J13 -> 2013 | V14: ='5.1.1'!K13 -> 2014 | W14: ='5.1.1'!L13 -> 2015 | Y14: Documents | AU14: =AT14 -> 
B16: 1 | C16: Price | D16: Moreton Bay Regional Council | F16: Drinking water | I16: Residential | K16: Bulk Water Tariff | M16: Variable | O16: $ | U16: 2.191680425 | V16: 2.461858096 | W16: 2.732032483 | Y16: 2013-15 - Utility Revenue Budget A1333878 20/05/2013 -Net of offsets
C17: Quantity | D17: Moreton Bay Regional Council | F17: Drinking water | K17: Bulk Water Tariff | M17: Variable | O17: kilolitre | U17: 22271702.02 | V17: 23652323.65 | W17: 25006951.64 | Y17: 2013-15 - Utility Revenue Budget A1333878 20/05/2013 -Net of offsets
C18: Revenue | D18: Moreton Bay Regional Council | F18: Drinking water | K18: Bulk Water Tariff | M18: Variable | O18: $'000 | U18: 48812.45336 | V18: 58228.66447 | W18: 68319.80419 | Y18: 2013-15 - Utility Revenue Budget A1333878 20/05/2013 -Net of offsets
B19: 2 | C19: Price | D19: Moreton Bay Regional Council | F19: Drinking water | I19: Business | K19: Bulk Water Tariff | M19: Variable | O19: $ | U19: 2.191680425 | V19: 2.461858096 | W19: 2.732032483 | Y19: 2013-15 - Utility Revenue Budget A1333878 20/05/2013 -Net of offsets
C20: Quantity | D20: Moreton Bay Regional Council | F20: Drinking water | K20: Bulk Water Tariff | M20: Variable | O20: kilolitre | U20: 3622734.79 | V20: 3736025.458 | W20: 3825486.525 | Y20: 2013-15 - Utility Revenue Budget A1333878 20/05/2013 -Net of offsets
C21: Revenue | D21: Moreton Bay Regional Council | F21: Drinking water | K21: Bulk Water Tariff | M21: Variable | O21: $'000 | U21: 7939.876924 | V21: 9197.56452 | W21: 10451.35345 | Y21: 2013-15 - Utility Revenue Budget A1333878 20/05/2013 -Net of offsets
B22: 3 | C22: Price | D22: Moreton Bay Regional Council | F22: Drinking water | I22: Residential | K22: Tier 1 Tariff | M22: Variable | O22: $ | U22: 0.176 | V22: 0.18128 | W22: 0.1867184 | Y22: 2013-15 - Utility Revenue Budget A1333878 20/05/2013 -Net of offsets
C23: Quantity | D23: Moreton Bay Regional Council | F23: Drinking water | K23: Tier 1 Tariff | M23: Variable | O23: kilolitre | U23: 21067327.49 | V23: 22373326.59 | W23: 23654736.51 | Y23: 2013-15 - Utility Revenue Budget A1333878 20/05/2013 -Net of offsets
C24: Revenue | D24: Moreton Bay Regional Council | F24: Drinking water | K24: Tier 1 Tariff | M24: Variable | O24: $'000 | U24: 3707.849637 | V24: 4055.836645 | W24: 4416.774553 | Y24: 2013-15 - Utility Revenue Budget A1333878 20/05/2013 -Net of offsets
B25: 4 | C25: Price | D25: Moreton Bay Regional Council | F25: Drinking water | I25: Business | K25: Tier 1 Tariff | M25: Variable | O25: $ | U25: 0.176 | V25: 0.18128 | W25: 0.1867184 | Y25: 2013-15 - Utility Revenue Budget A1333878 20/05/2013 -Net of offsets
C26: Quantity | D26: Moreton Bay Regional Council | F26: Drinking water | K26: Tier 1 Tariff | M26: Variable | O26: kilolitre | U26: 797218.536 | V26: 822149.2654 | W26: 841836.0558 | Y26: 2013-15 - Utility Revenue Budget A1333878 20/05/2013 -Net of offsets
C27: Revenue | D27: Moreton Bay Regional Council | F27: Drinking water | K27: Tier 1 Tariff | M27: Variable | O27: $'000 | U27: 140.3104623 | V27: 149.0392188 | W27: 157.1862814 | Y27: 2013-15 - Utility Revenue Budget A1333878 20/05/2013 -Net of offsets
B28: 5 | C28: Price | D28: Moreton Bay Regional Council | F28: Drinking water | I28: Residential | K28: Tier 2 Tariff | M28: Variable | O28: $ | U28: 0.849 | V28: 0.87447 | W28: 0.9007041 | Y28: 2013-15 - Utility Revenue Budget A1333878 20/05/2013 -Net of offsets
C29: Quantity | D29: Moreton Bay Regional Council | F29: Drinking water | K29: Tier 2 Tariff | M29: Variable | O29: kilolitre | U29: 552167.0409 | V29: 586396.8056 | W29: 619982.0964 | Y29: 2013-15 - Utility Revenue Budget A1333878 20/05/2013 -Net of offsets
C30: Revenue | D30: Moreton Bay Regional Council | F30: Drinking water | K30: Tier 2 Tariff | M30: Variable | O30: $'000 | U30: 468.7898178 | V30: 512.7864146 | W30: 558.4204162 | Y30: 2013-15 - Utility Revenue Budget A1333878 20/05/2013 -Net of offsets
B31: 6 | C31: Price | D31: Moreton Bay Regional Council | F31: Drinking water | I31: Business | K31: Tier 2 Tariff | M31: Variable | O31: $ | U31: 0.849 | V31: 0.87447 | W31: 0.9007041 | Y31: 2013-15 - Utility Revenue Budget A1333878 20/05/2013 -Net of offsets
C32: Quantity | D32: Moreton Bay Regional Council | F32: Drinking water | K32: Tier 2 Tariff | M32: Variable | O32: kilolitre | U32: 109044.3641 | V32: 112454.4147 | W32: 115147.1939 | Y32: 2013-15 - Utility Revenue Budget A1333878 20/05/2013 -Net of offsets
C33: Revenue | D33: Moreton Bay Regional Council | F33: Drinking water | K33: Tier 2 Tariff | M33: Variable | O33: $'000 | U33: 92.57866511 | V33: 98.33801199 | W33: 103.7135497 | Y33: 2013-15 - Utility Revenue Budget A1333878 20/05/2013 -Net of offsets
B34: 7 | C34: Price | D34: Moreton Bay Regional Council | F34: Drinking water | I34: Residential | K34: Tier 3 Tariff | M34: Variable | O34: $ | U34: 1.305 | V34: 1.34415 | W34: 1.3844745 | Y34: 2013-15 - Utility Revenue Budget A1333878 20/05/2013 -Net of offsets
C35: Quantity | D35: Moreton Bay Regional Council | F35: Drinking water | K35: Tier 3 Tariff | M35: Variable | O35: kilolitre | U35: 644941.2591 | V35: 684922.2538 | W35: 724150.4912 | Y35: 2013-15 - Utility Revenue Budget A1333878 20/05/2013 -Net of offsets
C36: Revenue | D36: Moreton Bay Regional Council | F36: Drinking water | K36: Tier 3 Tariff | M36: Variable | O36: $'000 | U36: 841.6483432 | V36: 920.6382475 | W36: 1002.567889 | Y36: 2013-15 - Utility Revenue Budget A1333878 20/05/2013 -Net of offsets
B37: 8 | C37: Price | D37: Moreton Bay Regional Council | F37: Drinking water | I37: Business | K37: Tier 3 Tariff | M37: Variable | O37: $ | U37: 1.305 | V37: 1.34415 | W37: 1.3844745 | Y37: 2013-15 - Utility Revenue Budget A1333878 20/05/2013 -Net of offsets
C38: Quantity | D38: Moreton Bay Regional Council | F38: Drinking water | K38: Tier 3 Tariff | M38: Variable | O38: kilolitre | U38: 2716471.89 | V38: 2801421.778 | W38: 2868503.275 | Y38: 2013-15 - Utility Revenue Budget A1333878 20/05/2013 -Net of offsets
C39: Revenue | D39: Moreton Bay Regional Council | F39: Drinking water | K39: Tier 3 Tariff | M39: Variable | O39: $'000 | U39: 3544.995816 | V39: 3765.531083 | W39: 3971.369638 | Y39: 2013-15 - Utility Revenue Budget A1333878 20/05/2013 -Net of offsets
B40: 9 | C40: Price | D40: Sunshine Coast Regional Council | F40: Drinking water | I40: Residential | K40: Bulk Water Tariff | M40: Variable | O40: $ | U40: 1.609889938 | V40: 1.880639379 | W40: 2.150671619 | Y40: 2013-15 - Utility Revenue Budget A1333878 20/05/2013 -Net of offsets
C41: Quantity | D41: Sunshine Coast Regional Council | F41: Drinking water | K41: Bulk Water Tariff | M41: Variable | O41: kilolitre | U41: 21019085.52 | V41: 22319335.2 | W41: 23659439.86 | Y41: 2013-15 - Utility Revenue Budget A1333878 20/05/2013 -Net of offsets
C42: Revenue | D42: Sunshine Coast Regional Council | F42: Drinking water | K42: Bulk Water Tariff | M42: Variable | O42: $'000 | U42: 33838.41429 | V42: 41974.62068 | W42: 50883.68584 | Y42: 2013-15 - Utility Revenue Budget A1333878 20/05/2013 -Net of offsets
B43: 10 | C43: Price | D43: Sunshine Coast Regional Council | F43: Drinking water | I43: Business | K43: Bulk Water Tariff | M43: Variable | O43: $ | U43: 1.609889938 | V43: 1.880639379 | W43: 2.150671619 | Y43: 2013-15 - Utility Revenue Budget A1333878 20/05/2013 -Net of offsets
C44: Quantity | D44: Sunshine Coast Regional Council | F44: Drinking water | K44: Bulk Water Tariff | M44: Variable | O44: kilolitre | U44: 5963772.616 | V44: 6095339.225 | W44: 6235777.95 | Y44: 2013-15 - Utility Revenue Budget A1333878 20/05/2013 -Net of offsets
C45: Revenue | D45: Sunshine Coast Regional Council | F45: Drinking water | K45: Bulk Water Tariff | M45: Variable | O45: $'000 | U45: 9601.017528 | V45: 11463.13497 | W45: 13411.11066 | Y45: 2013-15 - Utility Revenue Budget A1333878 20/05/2013 -Net of offsets
B46: 11 | C46: Price | D46: Sunshine Coast Regional Council | F46: Drinking water | I46: Residential | K46: Tier 1 Tariff | M46: Variable | O46: $ | U46: 0.538 | V46: 0.55414 | W46: 0.5707642 | Y46: 2013-15 - Utility Revenue Budget A1333878 20/05/2013 -Net of offsets
C47: Quantity | D47: Sunshine Coast Regional Council | F47: Drinking water | K47: Tier 1 Tariff | M47: Variable | O47: kilolitre | U47: 17901791.59 | V47: 19009335.24 | W47: 20150824.41 | Y47: 2013-15 - Utility Revenue Budget A1333878 20/05/2013 -Net of offsets
C48: Revenue | D48: Sunshine Coast Regional Council | F48: Drinking water | K48: Tier 1 Tariff | M48: Variable | O48: $'000 | U48: 9631.163876 | V48: 10533.83303 | W48: 11501.36917 | Y48: 2013-15 - Utility Revenue Budget A1333878 20/05/2013 -Net of offsets
B49: 12 | C49: Price | D49: Sunshine Coast Regional Council | F49: Drinking water | I49: Business | K49: Tier 1 Tariff | M49: Variable | O49: $ | U49: 0.538 | V49: 0.55414 | W49: 0.5707642 | Y49: 2013-15 - Utility Revenue Budget A1333878 20/05/2013 -Net of offsets
C50: Quantity | D50: Sunshine Coast Regional Council | F50: Drinking water | K50: Tier 1 Tariff | M50: Variable | O50: kilolitre | U50: 1171648.03 | V50: 1197495.722 | W50: 1225086.438 | Y50: 2013-15 - Utility Revenue Budget A1333878 20/05/2013 -Net of offsets
C51: Revenue | D51: Sunshine Coast Regional Council | F51: Drinking water | K51: Tier 1 Tariff | M51: Variable | O51: $'000 | U51: 630.3466403 | V51: 663.5802796 | W51: 699.2354809 | Y51: 2013-15 - Utility Revenue Budget A1333878 20/05/2013 -Net of offsets
B52: 13 | C52: Price | D52: Sunshine Coast Regional Council | F52: Drinking water | I52: Residential | K52: Tier 2 Tariff | M52: Variable | O52: $ | U52: 1.036 | V52: 1.06708 | W52: 1.0990924 | Y52: 2013-15 - Utility Revenue Budget A1333878 20/05/2013 -Net of offsets
C53: Quantity | D53: Sunshine Coast Regional Council | F53: Drinking water | K53: Tier 2 Tariff | M53: Variable | O53: kilolitre | U53: 3099913.623 | V53: 3291698.317 | W53: 3489361.094 | Y53: 2013-15 - Utility Revenue Budget A1333878 20/05/2013 -Net of offsets
C54: Revenue | D54: Sunshine Coast Regional Council | F54: Drinking water | K54: Tier 2 Tariff | M54: Variable | O54: $'000 | U54: 3211.510513 | V54: 3512.50544 | W54: 3835.130259 | Y54: 2013-15 - Utility Revenue Budget A1333878 20/05/2013 -Net of offsets
B55: 14 | C55: Price | D55: Sunshine Coast Regional Council | F55: Drinking water | I55: Business | K55: Tier 2 Tariff | M55: Variable | O55: $ | U55: 1.036 | V55: 1.06708 | W55: 1.0990924 | Y55: 2013-15 - Utility Revenue Budget A1333878 20/05/2013 -Net of offsets
C56: Quantity | D56: Sunshine Coast Regional Council | F56: Drinking water | K56: Tier 2 Tariff | M56: Variable | O56: kilolitre | U56: 4792124.585 | V56: 4897843.503 | W56: 5010691.512 | Y56: 2013-15 - Utility Revenue Budget A1333878 20/05/2013 -Net of offsets
C57: Revenue | D57: Sunshine Coast Regional Council | F57: Drinking water | K57: Tier 2 Tariff | M57: Variable | O57: $'000 | U57: 4964.64107 | V57: 5226.390845 | W57: 5507.21296 | Y57: 2013-15 - Utility Revenue Budget A1333878 20/05/2013 -Net of offsets
B58: 15 | C58: Price | D58: Moreton Bay Regional Council | F58: Drinking water | I58: Commercially negotiated agreements | K58: Bulk Water Tariff | M58: Variable | O58: $ | U58: 2.192 | Y58: 2013-15 - Utility Revenue Budget A1333878 20/05/2013
C59: Quantity | D59: Moreton Bay Regional Council | F59: Drinking water | K59: Bulk Water Tariff | M59: Variable | O59: kilolitre | U59: 959808 | Y59: 2013-15 - Utility Revenue Budget A1333878 20/05/2013
C60: Revenue | D60: Moreton Bay Regional Council | F60: Drinking water | K60: Bulk Water Tariff | M60: Variable | O60: $'000 | U60: 2103.899136 | Y60: 2013-15 - Utility Revenue Budget A1333878 20/05/2013
B61: 16 | C61: Price | D61: Moreton Bay Regional Council | F61: Drinking water | I61: Residential | K61: Access | M61: Fixed | O61: $ | U61: 345.9999926 | V61: 356.38 | W61: 367.0714 | Y61: 2013-15 - Utility Revenue Budget A1333878 20/05/2013 -Net of offsets
C62: Quantity | D62: Moreton Bay Regional Council | F62: Drinking water | K62: Access | M62: Fixed | O62: Charge | U62: 143904.8574 | V62: 147255.7516 | W62: 150781.8669 | Y62: 2013-15 - Utility Revenue Budget A1333878 20/05/2013 -Net of offsets
C63: Revenue | D63: Moreton Bay Regional Council | F63: Drinking water | K63: Access | M63: Fixed | O63: $'000 | U63: 49791.07959 | V63: 52479.00474 | W63: 55347.71097 | Y63: 2013-15 - Utility Revenue Budget A1333878 20/05/2013 -Net of offsets
B64: 17 | C64: Price | D64: Moreton Bay Regional Council | F64: Drinking water | I64: Business | K64: Access | M64: Fixed | O64: $ | U64: 427.5316765 | V64: 435.6623651 | W64: 448.732236 | Y64: 2013-15 - Utility Revenue Budget A1333878 20/05/2013 -Net of offsets
C65: Quantity | D65: Moreton Bay Regional Council | F65: Drinking water | K65: Access | M65: Fixed | O65: Charge | U65: 6851.445983 | V65: 7065.307484 | W65: 7234.489935 | Y65: 2013-15 - Utility Revenue Budget A1333878 20/05/2013 -Net of offsets
C66: Revenue | D66: Moreton Bay Regional Council | F66: Drinking water | K66: Access | M66: Fixed | O66: $'000 | U66: 2929.210188 | V66: 3078.088569 | W66: 3246.348845 | Y66: 2013-15 - Utility Revenue Budget A1333878 20/05/2013 -Net of offsets
B67: 18 | C67: Price | D67: Sunshine Coast Regional Council | F67: Drinking water | I67: Residential | K67: Access | M67: Fixed | O67: $ | U67: 235.7224023 | V67: 242.7506669 | W67: 250.0331869 | Y67: 2013-15 - Utility Revenue Budget A1333878 20/05/2013 -Net of offsets
C68: Quantity | D68: Sunshine Coast Regional Council | F68: Drinking water | K68: Access | M68: Fixed | O68: Charge | U68: 125458.9133 | V68: 128238.1765 | W68: 131192.8285 | Y68: 2013-15 - Utility Revenue Budget A1333878 20/05/2013 -Net of offsets
C69: Revenue | D69: Sunshine Coast Regional Council | F69: Drinking water | K69: Access | M69: Fixed | O69: $'000 | U69: 29573.47644 | V69: 31129.90288 | W69: 32802.56101 | Y69: 2013-15 - Utility Revenue Budget A1333878 20/05/2013 -Net of offsets
B70: 19 | C70: Price | D70: Sunshine Coast Regional Council | F70: Drinking water | I70: Business | K70: Access | M70: Fixed | O70: $ | U70: 524.3659309 | V70: 541.9294994 | W70: 558.1873844 | Y70: 2013-15 - Utility Revenue Budget A1333878 20/05/2013 -Net of offsets
C71: Quantity | D71: Sunshine Coast Regional Council | F71: Drinking water | K71: Access | M71: Fixed | O71: Charge | U71: 9166.908975 | V71: 9427.835842 | W71: 9645.056443 | Y71: 2013-15 - Utility Revenue Budget A1333878 20/05/2013 -Net of offsets
C72: Revenue | D72: Sunshine Coast Regional Council | F72: Drinking water | K72: Access | M72: Fixed | O72: $'000 | U72: 4806.814758 | V72: 5109.222358 | W72: 5383.748828 | Y72: 2013-15 - Utility Revenue Budget A1333878 20/05/2013 -Net of offsets
B73: 20 | C73: Price | D73: Moreton Bay Regional Council | F73: Waste-water via Sewer | I73: Residential | K73: Access | M73: Fixed | O73: $ | U73: 743.474787 | V73: 765.786058 | W73: 788.7596397 | Y73: 2013-15 - Utility Revenue Budget A1333878 20/05/2013 -Net of offsets
C74: Quantity | D74: Moreton Bay Regional Council | F74: Waste-water via Sewer | K74: Access | M74: Fixed | O74: Charge | U74: 126905.0442 | V74: 129753.7266 | W74: 132860.7468 | Y74: 2013-15 - Utility Revenue Budget A1333878 20/05/2013 -Net of offsets
C75: Revenue | D75: Moreton Bay Regional Council | F75: Waste-water via Sewer | K75: Access | M75: Fixed | O75: $'000 | U75: 94350.70072 | V75: 99363.59478 | W75: 104795.1948 | Y75: 2013-15 - Utility Revenue Budget A1333878 20/05/2013 -Net of offsets
B76: 21 | C76: Price | D76: Moreton Bay Regional Council | F76: Waste-water via Sewer | I76: Business | K76: Access | M76: Fixed | O76: $ | U76: 728.0230175 | V76: 749.7470465 | W76: 772.2394579 | Y76: 2013-15 - Utility Revenue Budget A1333878 20/05/2013 -Net of offsets
C77: Quantity | D77: Moreton Bay Regional Council | F77: Waste-water via Sewer | K77: Access | M77: Fixed | O77: Charge | U77: 29184.98893 | V77: 29869.33031 | W77: 30584.56691 | Y77: 2013-15 - Utility Revenue Budget A1333878 20/05/2013 -Net of offsets
C78: Revenue | D78: Moreton Bay Regional Council | F78: Waste-water via Sewer | K78: Access | M78: Fixed | O78: $'000 | U78: 21247.3437 | V78: 22394.44218 | W78: 23618.60937 | Y78: 2013-15 - Utility Revenue Budget A1333878 20/05/2013 -Net of offsets
B79: 22 | C79: Price | D79: Sunshine Coast Regional Council | F79: Waste-water via Sewer | I79: Residential | K79: Access | M79: Fixed | O79: $ | U79: 566.113516 | V79: 583.1293427 | W79: 600.623223 | Y79: 2013-15 - Utility Revenue Budget A1333878 20/05/2013 -Net of offsets
C80: Quantity | D80: Sunshine Coast Regional Council | F80: Waste-water via Sewer | K80: Access | M80: Fixed | O80: Charge | U80: 123827.5323 | V80: 126752.5106 | W80: 129672.9323 | Y80: 2013-15 - Utility Revenue Budget A1333878 20/05/2013 -Net of offsets
C81: Revenue | D81: Sunshine Coast Regional Council | F81: Waste-water via Sewer | K81: Access | M81: Fixed | O81: $'000 | U81: 70100.43966 | V81: 73913.10819 | W81: 77884.57454 | Y81: 2013-15 - Utility Revenue Budget A1333878 20/05/2013 -Net of offsets
B82: 23 | C82: Price | D82: Sunshine Coast Regional Council | F82: Waste-water via Sewer | I82: Business | K82: Access | M82: Fixed | O82: $ | U82: 573.8429724 | V82: 590.9475323 | W82: 608.6759583 | Y82: 2013-15 - Utility Revenue Budget A1333878 20/05/2013 -Net of offsets
C83: Quantity | D83: Sunshine Coast Regional Council | F83: Waste-water via Sewer | K83: Access | M83: Fixed | O83: Charge | U83: 16749.94181 | V83: 17178.88954 | W83: 17574.6971 | Y83: 2013-15 - Utility Revenue Budget A1333878 20/05/2013 -Net of offsets
C84: Revenue | D84: Sunshine Coast Regional Council | F84: Waste-water via Sewer | K84: Access | M84: Fixed | O84: $'000 | U84: 9611.836397 | V84: 10151.82238 | W84: 10697.2956 | Y84: 2013-15 - Utility Revenue Budget A1333878 20/05/2013 -Net of offsets
B85: 24 | C85: Price | D85: Sunshine Coast Regional Council | F85: Waste-water via Sewer | I85: Business | K85: Volumetric | M85: Variable | O85: $ | U85: 2.660677546 | V85: 2.740497872 | W85: 2.822712809 | Y85: 2013-15 - Utility Revenue Budget A1333878 20/05/2013 -Net of offsets
C86: Quantity | D86: Sunshine Coast Regional Council | F86: Waste-water via Sewer | K86: Volumetric | M86: Variable | O86: kilolitre | U86: 1830974.625 | V86: 1866534.902 | W86: 1909540.512 | Y86: 2013-15 - Utility Revenue Budget A1333878 20/05/2013 -Net of offsets
C87: Revenue | D87: Sunshine Coast Regional Council | F87: Waste-water via Sewer | K87: Volumetric | M87: Variable | O87: $'000 | U87: 4871.633073 | V87: 5115.234928 | W87: 5390.084462 | Y87: 2013-15 - Utility Revenue Budget A1333878 20/05/2013 -Net of offsets
B88: 25 | C88: Price | O88: $ | Y88: * Does not include leak and dialysis rebates (included in 5.2.1)
C89: Quantity | D89: 0 | F89: 0 | K89: 0 | M89: 0 | O89: [please specify]
C90: Revenue | D90: 0 | F90: 0 | K90: 0 | M90: 0 | O90: $'000
B91: =B88+1 -> 26 | C91: Price | O91: $
C92: Quantity | D92: 0 | F92: 0 | K92: 0 | M92: 0 | O92: [please specify]
C93: Revenue | D93: 0 | F93: 0 | K93: 0 | M93: 0 | O93: $'000
B94: =B91+1 -> 27 | C94: Price | O94: $
C95: Quantity | D95: 0 | F95: 0 | K95: 0 | M95: 0 | O95: [please specify]
C96: Revenue | D96: 0 | F96: 0 | K96: 0 | M96: 0 | O96: $'000
B97: =B94+1 -> 28 | C97: Price | O97: $
C98: Quantity | D98: 0 | F98: 0 | K98: 0 | M98: 0 | O98: [please specify]
C99: Revenue | D99: 0 | F99: 0 | K99: 0 | M99: 0 | O99: $'000
B100: =B97+1 -> 29 | C100: Price | O100: $
C101: Quantity | D101: =D100 -> 0 | F101: =F100 -> 0 | K101: =K100 -> 0 | M101: =M100 -> 0 | O101: [please specify]
C102: Revenue | D102: =D100 -> 0 | F102: =F100 -> 0 | K102: =K100 -> 0 | M102: =M100 -> 0 | O102: $'000
B103: =B100+1 -> 30 | C103: Price | O103: $
C104: Quantity | D104: =D103 -> 0 | F104: =F103 -> 0 | K104: =K103 -> 0 | M104: =M103 -> 0 | O104: [please specify]
C105: Revenue | D105: =D103 -> 0 | F105: =F103 -> 0 | K105: =K103 -> 0 | M105: =M103 -> 0 | O105: $'000
B109: Total Revenue | O109: $'000 | Q109: =SUMIF($C:$C,"=Revenue",Q:Q) -> 0 | R109: 0 | S109: 0 | T109: 0 | U109: 416812.0306 | V109: 453036.8849 | W109: 493985.0628
A143: List for Geographic Areas
A144: ='Business Details'!D12 -> Moreton Bay Regional Council
A145: ='Business Details'!D13 -> Sunshine Coast Regional Council
A146: ='Business Details'!D14 -> N/A
A147: ='Business Details'!D15 -> N/A
A148: ='Business Details'!D16 -> N/A
A150: List for Services
A151: Drinking water
A152: Other Core Water Services
A153: Waste-water via Sewer
A154: Trade Waste
A155: Other Core Waste-water Services
A156: Aggregate Non-regulated Services
A159: List for Type of Tariff:
A160: Fixed
A161: Variable
A163: Customer type
A164: Residential
A165: Business
A166: Commercially negotiated agreements
A167: Other
A169: Capped//Uncapped
A170: Capped
A171: Uncapped

Sheet 5.3.1
B4: ='Business Details'!$B$4 -> SEQ INTERIM REVENUE MONITORING - INFORMATION REQUIREMENT TEMPLATE
B7: =CONCATENATE("Service Standards for ",'Business Details'!$D$9) -> Service Standards for Northern SEQ Distributor-Retailer Authority (Trading as Unitywater ABN: 89 791 717 472)
B8: =CONCATENATE("Reporting year = ",AnalysisYear) -> Reporting year = 2014
K10: 0
F11: Unit of Measurement | G11: ='5.1.1'!F12 -> For Year Ending 30 June: | N11: Approving Agency | O11: Changes expected in service standard | P11: Date of expected changes | Q11: Supporting Documents
D12: Service (Dropdown list) | E12: Region (Dropdown list) | G12: ='5.1.1'!F13 -> 2009 | H12: ='5.1.1'!G13 -> 2010 | I12: ='5.1.1'!H13 -> 2011 | J12: ='5.1.1'!I13 -> 2012 | K12: ='5.1.1'!J13 -> 2013 | L12: ='5.1.1'!K13 -> 2014 | M12: ='5.1.1'!L13 -> 2015
B13: # | C13: Description | AH13: =AG13 -> 
B16: 1 | C16: Customer Charter (general): Our core business is ensuring that, all day, every day, you can turn on a tap or flush your toilet, knowing that you will receive a safe, high quality and reliable water supply and sewerage service | D16: Drinking water | E16: Moreton Bay Regional Council | F16: Various | G16: N/A | H16: N/A | I16: N/A | J16: Yes | K16: Yes | L16: Yes | M16: Yes | N16: QWC | O16: No | P16: N/A | Q16: http://www.unitywater.com/customer-charter & http://www.qwc.qld.gov.au/reform/pdf/customer-water-wastewater-code.pdf & http://www.legislation.qld.gov.au/LEGISLTN/CURRENT/S/SouthEQWDisA09.pdf & http://www.legislation.qld.gov.au/LEGISLTN/CURRENT/W/WaterSupSRA08.pdf
B17: 2 | C17: Customer Charter (general): Our core business is ensuring that, all day, every day, you can turn on a tap or flush your toilet, knowing that you will receive a safe, high quality and reliable water supply and sewerage service | D17: Waste-water via Sewer | E17: Moreton Bay Regional Council | F17: Various | G17: N/A | H17: N/A | I17: N/A | J17: Yes | K17: Yes | L17: Yes | M17: Yes | N17: QWC | O17: No | P17: N/A | Q17: http://www.unitywater.com/customer-charter & http://www.qwc.qld.gov.au/reform/pdf/customer-water-wastewater-code.pdf & http://www.legislation.qld.gov.au/LEGISLTN/CURRENT/S/SouthEQWDisA09.pdf & http://www.legislation.qld.gov.au/LEGISLTN/CURRENT/W/WaterSupSRA08.pdf
B18: 3 | C18: Customer Charter (general): Our core business is ensuring that, all day, every day, you can turn on a tap or flush your toilet, knowing that you will receive a safe, high quality and reliable water supply and sewerage service | D18: Drinking water | E18: Sunshine Coast Regional Council | F18: Various | G18: N/A | H18: N/A | I18: N/A | J18: Yes | K18: Yes | L18: Yes | M18: Yes | N18: QWC | O18: No | P18: N/A | Q18: http://www.unitywater.com/customer-charter & http://www.qwc.qld.gov.au/reform/pdf/customer-water-wastewater-code.pdf & http://www.legislation.qld.gov.au/LEGISLTN/CURRENT/S/SouthEQWDisA09.pdf & http://www.legislation.qld.gov.au/LEGISLTN/CURRENT/W/WaterSupSRA08.pdf
B19: 4 | C19: Customer Charter (general): Our core business is ensuring that, all day, every day, you can turn on a tap or flush your toilet, knowing that you will receive a safe, high quality and reliable water supply and sewerage service | D19: Waste-water via Sewer | E19: Sunshine Coast Regional Council | F19: Various | G19: N/A | H19: N/A | I19: N/A | J19: Yes | K19: Yes | L19: Yes | M19: Yes | N19: QWC | O19: No | P19: N/A | Q19: http://www.unitywater.com/customer-charter & http://www.qwc.qld.gov.au/reform/pdf/customer-water-wastewater-code.pdf & http://www.legislation.qld.gov.au/LEGISLTN/CURRENT/S/SouthEQWDisA09.pdf & http://www.legislation.qld.gov.au/LEGISLTN/CURRENT/W/WaterSupSRA08.pdf
B20: 5 | C20: Customer Charter (general): Our crews are on standby 24/7, 365 days a year, to respond to urgent problems and emergencies | D20: Drinking water | E20: Moreton Bay Regional Council | F20: Various | G20: N/A | H20: N/A | I20: N/A | J20: Yes | K20: Yes | L20: Yes | M20: Yes | N20: QWC | O20: No | P20: N/A | Q20: http://www.unitywater.com/customer-charter & http://www.qwc.qld.gov.au/reform/pdf/customer-water-wastewater-code.pdf & http://www.legislation.qld.gov.au/LEGISLTN/CURRENT/S/SouthEQWDisA09.pdf & http://www.legislation.qld.gov.au/LEGISLTN/CURRENT/W/WaterSupSRA08.pdf
B21: 6 | C21: Customer Charter (general): Our crews are on standby 24/7, 365 days a year, to respond to urgent problems and emergencies | D21: Waste-water via Sewer | E21: Moreton Bay Regional Council | F21: Various | G21: N/A | H21: N/A | I21: N/A | J21: Yes | K21: Yes | L21: Yes | M21: Yes | N21: QWC | O21: No | P21: N/A | Q21: http://www.unitywater.com/customer-charter & http://www.qwc.qld.gov.au/reform/pdf/customer-water-wastewater-code.pdf & http://www.legislation.qld.gov.au/LEGISLTN/CURRENT/S/SouthEQWDisA09.pdf & http://www.legislation.qld.gov.au/LEGISLTN/CURRENT/W/WaterSupSRA08.pdf
B22: 7 | C22: Customer Charter (general): Our crews are on standby 24/7, 365 days a year, to respond to urgent problems and emergencies | D22: Drinking water | E22: Sunshine Coast Regional Council | F22: Various | G22: N/A | H22: N/A | I22: N/A | J22: Yes | K22: Yes | L22: Yes | M22: Yes | N22: QWC | O22: No | P22: N/A | Q22: http://www.unitywater.com/customer-charter & http://www.qwc.qld.gov.au/reform/pdf/customer-water-wastewater-code.pdf & http://www.legislation.qld.gov.au/LEGISLTN/CURRENT/S/SouthEQWDisA09.pdf & http://www.legislation.qld.gov.au/LEGISLTN/CURRENT/W/WaterSupSRA08.pdf
B23: 8 | C23: Customer Charter (general): Our crews are on standby 24/7, 365 days a year, to respond to urgent problems and emergencies | D23: Waste-water via Sewer | E23: Sunshine Coast Regional Council | F23: Various | G23: N/A | H23: N/A | I23: N/A | J23: Yes | K23: Yes | L23: Yes | M23: Yes | N23: QWC | O23: No | P23: N/A | Q23: http://www.unitywater.com/customer-charter & http://www.qwc.qld.gov.au/reform/pdf/customer-water-wastewater-code.pdf & http://www.legislation.qld.gov.au/LEGISLTN/CURRENT/S/SouthEQWDisA09.pdf & http://www.legislation.qld.gov.au/LEGISLTN/CURRENT/W/WaterSupSRA08.pdf
B24: 9 | C24: Quality, safety and reliability: We value our customers, our community and the environment | D24: Drinking water | E24: Moreton Bay Regional Council | F24: Various | G24: N/A | H24: N/A | I24: N/A | J24: Yes | K24: Yes | L24: Yes | M24: Yes | N24: QWC | O24: No | P24: N/A | Q24: http://www.unitywater.com/customer-charter & http://www.qwc.qld.gov.au/reform/pdf/customer-water-wastewater-code.pdf & http://www.legislation.qld.gov.au/LEGISLTN/CURRENT/S/SouthEQWDisA09.pdf & http://www.legislation.qld.gov.au/LEGISLTN/CURRENT/W/WaterSupSRA08.pdf
B25: 10 | C25: Quality, safety and reliability: We value our customers, our community and the environment | D25: Waste-water via Sewer | E25: Moreton Bay Regional Council | F25: Various | G25: N/A | H25: N/A | I25: N/A | J25: Yes | K25: Yes | L25: Yes | M25: Yes | N25: QWC | O25: No | P25: N/A | Q25: http://www.unitywater.com/customer-charter & http://www.qwc.qld.gov.au/reform/pdf/customer-water-wastewater-code.pdf & http://www.legislation.qld.gov.au/LEGISLTN/CURRENT/S/SouthEQWDisA09.pdf & http://www.legislation.qld.gov.au/LEGISLTN/CURRENT/W/WaterSupSRA08.pdf
B26: 11 | C26: Quality, safety and reliability: We value our customers, our community and the environment | D26: Drinking water | E26: Sunshine Coast Regional Council | F26: Various | G26: N/A | H26: N/A | I26: N/A | J26: Yes | K26: Yes | L26: Yes | M26: Yes | N26: QWC | O26: No | P26: N/A | Q26: http://www.unitywater.com/customer-charter & http://www.qwc.qld.gov.au/reform/pdf/customer-water-wastewater-code.pdf & http://www.legislation.qld.gov.au/LEGISLTN/CURRENT/S/SouthEQWDisA09.pdf & http://www.legislation.qld.gov.au/LEGISLTN/CURRENT/W/WaterSupSRA08.pdf
B27: 12 | C27: Quality, safety and reliability: We value our customers, our community and the environment | D27: Waste-water via Sewer | E27: Sunshine Coast Regional Council | F27: Various | G27: N/A | H27: N/A | I27: N/A | J27: Yes | K27: Yes | L27: Yes | M27: Yes | N27: QWC | O27: No | P27: N/A | Q27: http://www.unitywater.com/customer-charter & http://www.qwc.qld.gov.au/reform/pdf/customer-water-wastewater-code.pdf & http://www.legislation.qld.gov.au/LEGISLTN/CURRENT/S/SouthEQWDisA09.pdf & http://www.legislation.qld.gov.au/LEGISLTN/CURRENT/W/WaterSupSRA08.pdf
B28: 13 | C28: Providing you with water that complies with the Australian Drinking Water Guidelines issued by the National Health and Medical Research Council | D28: Drinking water | E28: Moreton Bay Regional Council | F28: Various | G28: N/A | H28: N/A | I28: N/A | J28: Yes | K28: Yes | L28: Yes | M28: Yes | N28: QWC & NHMRC | O28: No | P28: N/A | Q28: http://www.unitywater.com/customer-charter & http://www.nhmrc.gov.au/_files_nhmrc/publications/attachments/eh52_aust_drinking_water_guidelines_update_120430.pdf
B29: 14 | C29: Providing you with water that complies with the Australian Drinking Water Guidelines issued by the National Health and Medical Research Council | D29: Drinking water | E29: Sunshine Coast Regional Council | F29: Various | G29: N/A | H29: N/A | I29: N/A | J29: Yes | K29: Yes | L29: Yes | M29: Yes | N29: QWC & NHMRC | O29: No | P29: N/A | Q29: http://www.unitywater.com/customer-charter & http://www.nhmrc.gov.au/_files_nhmrc/publications/attachments/eh52_aust_drinking_water_guidelines_update_120430.pdf
B30: 15 | C30: Supplying water at the required pressure (210 kPa) and flow rate (23 litres/minute) to meet your household needs | D30: Drinking water | E30: Moreton Bay Regional Council | F30: Min pressure of 210 kPa & Min flow rate of 23 L/min | G30: N/A | H30: N/A | I30: N/A | J30: Yes | K30: Yes | L30: Yes | M30: Yes | N30: QWC | O30: No | P30: N/A | Q30: http://www.unitywater.com/customer-charter & http://www.qwc.qld.gov.au/reform/pdf/customer-water-wastewater-code.pdf & http://www.legislation.qld.gov.au/LEGISLTN/CURRENT/S/SouthEQWDisA09.pdf & http://www.legislation.qld.gov.au/LEGISLTN/CURRENT/W/WaterSupSRA08.pdf
B31: 16 | C31: Supplying water at the required pressure (210 kPa) and flow rate (23 litres/minute) to meet your household needs | D31: Drinking water | E31: Sunshine Coast Regional Council | F31: Min pressure of 210 kPa & Min flow rate of 23 L/min | G31: N/A | H31: N/A | I31: N/A | J31: Yes | K31: Yes | L31: Yes | M31: Yes | N31: QWC | O31: No | P31: N/A | Q31: http://www.unitywater.com/customer-charter & http://www.qwc.qld.gov.au/reform/pdf/customer-water-wastewater-code.pdf & http://www.legislation.qld.gov.au/LEGISLTN/CURRENT/S/SouthEQWDisA09.pdf & http://www.legislation.qld.gov.au/LEGISLTN/CURRENT/W/WaterSupSRA08.pdf
B32: 17 | C32: Protecting your health and the environment by operating and maintaining the infrastructure for the effective collection, transport and treatment of sewage | D32: Waste-water via Sewer | E32: Moreton Bay Regional Council | F32: Qualitative | G32: N/A | H32: N/A | I32: N/A | J32: Yes | K32: Yes | L32: Yes | M32: Yes | N32: QWC | O32: No | P32: N/A | Q32: http://www.unitywater.com/customer-charter & http://www.qwc.qld.gov.au/reform/pdf/customer-water-wastewater-code.pdf & http://www.legislation.qld.gov.au/LEGISLTN/CURRENT/S/SouthEQWDisA09.pdf & http://www.legislation.qld.gov.au/LEGISLTN/CURRENT/W/WaterSupSRA08.pdf
B33: 18 | C33: Protecting your health and the environment by operating and maintaining the infrastructure for the effective collection, transport and treatment of sewage | D33: Waste-water via Sewer | E33: Sunshine Coast Regional Council | F33: Qualitative | G33: N/A | H33: N/A | I33: N/A | J33: Yes | K33: Yes | L33: Yes | M33: Yes | N33: QWC | O33: No | P33: N/A | Q33: http://www.unitywater.com/customer-charter & http://www.qwc.qld.gov.au/reform/pdf/customer-water-wastewater-code.pdf & http://www.legislation.qld.gov.au/LEGISLTN/CURRENT/S/SouthEQWDisA09.pdf & http://www.legislation.qld.gov.au/LEGISLTN/CURRENT/W/WaterSupSRA08.pdf
B34: 19 | C34: Connecting your property to our water and sewerage network within 15 working days of receiving your application and payment, where the relevant service is available | D34: Drinking water | E34: Moreton Bay Regional Council | F34: Max connection time of 15 working days | G34: N/A | H34: N/A | I34: N/A | J34: Yes | K34: Yes | L34: Yes | M34: Yes | N34: QWC | O34: No | P34: N/A | Q34: http://www.unitywater.com/customer-charter & http://www.qwc.qld.gov.au/reform/pdf/customer-water-wastewater-code.pdf & http://www.legislation.qld.gov.au/LEGISLTN/CURRENT/S/SouthEQWDisA09.pdf & http://www.legislation.qld.gov.au/LEGISLTN/CURRENT/W/WaterSupSRA08.pdf
B35: 20 | C35: Connecting your property to our water and sewerage network within 15 working days of receiving your application and payment, where the relevant service is available | D35: Waste-water via Sewer | E35: Moreton Bay Regional Council | F35: Max connection time of 15 working days | G35: N/A | H35: N/A | I35: N/A | J35: Yes | K35: Yes | L35: Yes | M35: Yes | N35: QWC | O35: No | P35: N/A | Q35: http://www.unitywater.com/customer-charter & http://www.qwc.qld.gov.au/reform/pdf/customer-water-wastewater-code.pdf & http://www.legislation.qld.gov.au/LEGISLTN/CURRENT/S/SouthEQWDisA09.pdf & http://www.legislation.qld.gov.au/LEGISLTN/CURRENT/W/WaterSupSRA08.pdf
B36: 21 | C36: Connecting your property to our water and sewerage network within 15 working days of receiving your application and payment, where the relevant service is available | D36: Drinking water | E36: Sunshine Coast Regional Council | F36: Max connection time of 15 working days | G36: N/A | H36: N/A | I36: N/A | J36: Yes | K36: Yes | L36: Yes | M36: Yes | N36: QWC | O36: No | P36: N/A | Q36: http://www.unitywater.com/customer-charter & http://www.qwc.qld.gov.au/reform/pdf/customer-water-wastewater-code.pdf & http://www.legislation.qld.gov.au/LEGISLTN/CURRENT/S/SouthEQWDisA09.pdf & http://www.legislation.qld.gov.au/LEGISLTN/CURRENT/W/WaterSupSRA08.pdf
B37: 22 | C37: Connecting your property to our water and sewerage network within 15 working days of receiving your application and payment, where the relevant service is available | D37: Waste-water via Sewer | E37: Sunshine Coast Regional Council | F37: Max connection time of 15 working days | G37: N/A | H37: N/A | I37: N/A | J37: Yes | K37: Yes | L37: Yes | M37: Yes | N37: QWC | O37: No | P37: N/A | Q37: http://www.unitywater.com/customer-charter & http://www.qwc.qld.gov.au/reform/pdf/customer-water-wastewater-code.pdf & http://www.legislation.qld.gov.au/LEGISLTN/CURRENT/S/SouthEQWDisA09.pdf & http://www.legislation.qld.gov.au/LEGISLTN/CURRENT/W/WaterSupSRA08.pdf
B38: 23 | C38: Quality, safety and reliability: We will do our best to minimise customer inconvenience during planned and unplanned service interruptions | D38: Drinking water | E38: Moreton Bay Regional Council | F38: Various | G38: N/A | H38: N/A | I38: N/A | J38: Yes | K38: Yes | L38: Yes | M38: Yes | N38: QWC | O38: No | P38: N/A | Q38: http://www.unitywater.com/customer-charter & http://www.qwc.qld.gov.au/reform/pdf/customer-water-wastewater-code.pdf & http://www.legislation.qld.gov.au/LEGISLTN/CURRENT/S/SouthEQWDisA09.pdf & http://www.legislation.qld.gov.au/LEGISLTN/CURRENT/W/WaterSupSRA08.pdf
B39: 24 | C39: Quality, safety and reliability: We will do our best to minimise customer inconvenience during planned and unplanned service interruptions | D39: Waste-water via Sewer | E39: Moreton Bay Regional Council | F39: Various | G39: N/A | H39: N/A | I39: N/A | J39: Yes | K39: Yes | L39: Yes | M39: Yes | N39: QWC | O39: No | P39: N/A | Q39: http://www.unitywater.com/customer-charter & http://www.qwc.qld.gov.au/reform/pdf/customer-water-wastewater-code.pdf & http://www.legislation.qld.gov.au/LEGISLTN/CURRENT/S/SouthEQWDisA09.pdf & http://www.legislation.qld.gov.au/LEGISLTN/CURRENT/W/WaterSupSRA08.pdf
B40: 25 | C40: Quality, safety and reliability: We will do our best to minimise customer inconvenience during planned and unplanned service interruptions | D40: Drinking water | E40: Sunshine Coast Regional Council | F40: Various | G40: N/A | H40: N/A | I40: N/A | J40: Yes | K40: Yes | L40: Yes | M40: Yes | N40: QWC | O40: No | P40: N/A | Q40: http://www.unitywater.com/customer-charter & http://www.qwc.qld.gov.au/reform/pdf/customer-water-wastewater-code.pdf & http://www.legislation.qld.gov.au/LEGISLTN/CURRENT/S/SouthEQWDisA09.pdf & http://www.legislation.qld.gov.au/LEGISLTN/CURRENT/W/WaterSupSRA08.pdf
B41: 26 | C41: Quality, safety and reliability: We will do our best to minimise customer inconvenience during planned and unplanned service interruptions | D41: Waste-water via Sewer | E41: Sunshine Coast Regional Council | F41: Various | G41: N/A | H41: N/A | I41: N/A | J41: Yes | K41: Yes | L41: Yes | M41: Yes | N41: QWC | O41: No | P41: N/A | Q41: http://www.unitywater.com/customer-charter & http://www.qwc.qld.gov.au/reform/pdf/customer-water-wastewater-code.pdf & http://www.legislation.qld.gov.au/LEGISLTN/CURRENT/S/SouthEQWDisA09.pdf & http://www.legislation.qld.gov.au/LEGISLTN/CURRENT/W/WaterSupSRA08.pdf
B42: 27 | C42: Providing you with at least 48 hours notice of any planned works that may disrupt your water supply | D42: Drinking water | E42: Moreton Bay Regional Council | F42: Min notice time of 48 hours | G42: N/A | H42: N/A | I42: N/A | J42: Yes | K42: Yes | L42: Yes | M42: Yes | N42: QWC | O42: No | P42: N/A | Q42: http://www.unitywater.com/customer-charter & http://www.qwc.qld.gov.au/reform/pdf/customer-water-wastewater-code.pdf & http://www.legislation.qld.gov.au/LEGISLTN/CURRENT/S/SouthEQWDisA09.pdf & http://www.legislation.qld.gov.au/LEGISLTN/CURRENT/W/WaterSupSRA08.pdf
B43: 28 | C43: Providing you with at least 48 hours notice of any planned works that may disrupt your water supply | D43: Drinking water | E43: Sunshine Coast Regional Council | F43: Min notice time of 48 hours | G43: N/A | H43: N/A | I43: N/A | J43: Yes | K43: Yes | L43: Yes | M43: Yes | N43: QWC | O43: No | P43: N/A | Q43: http://www.unitywater.com/customer-charter & http://www.qwc.qld.gov.au/reform/pdf/customer-water-wastewater-code.pdf & http://www.legislation.qld.gov.au/LEGISLTN/CURRENT/S/SouthEQWDisA09.pdf & http://www.legislation.qld.gov.au/LEGISLTN/CURRENT/W/WaterSupSRA08.pdf
B44: 29 | C44: Communicating with customers, organisations or facilities with identified special needs, prior to planned water supply interruptions | D44: Drinking water | E44: Moreton Bay Regional Council | F44: Qualitative | G44: N/A | H44: N/A | I44: N/A | J44: Yes | K44: Yes | L44: Yes | M44: Yes | N44: QWC | O44: No | P44: N/A | Q44: http://www.unitywater.com/customer-charter & http://www.qwc.qld.gov.au/reform/pdf/customer-water-wastewater-code.pdf & http://www.legislation.qld.gov.au/LEGISLTN/CURRENT/S/SouthEQWDisA09.pdf & http://www.legislation.qld.gov.au/LEGISLTN/CURRENT/W/WaterSupSRA08.pdf
B45: 30 | C45: Communicating with customers, organisations or facilities with identified special needs, prior to planned water supply interruptions | D45: Drinking water | E45: Sunshine Coast Regional Council | F45: Qualitative | G45: N/A | H45: N/A | I45: N/A | J45: Yes | K45: Yes | L45: Yes | M45: Yes | N45: QWC | O45: No | P45: N/A | Q45: http://www.unitywater.com/customer-charter & http://www.qwc.qld.gov.au/reform/pdf/customer-water-wastewater-code.pdf & http://www.legislation.qld.gov.au/LEGISLTN/CURRENT/S/SouthEQWDisA09.pdf & http://www.legislation.qld.gov.au/LEGISLTN/CURRENT/W/WaterSupSRA08.pdf
B46: 31 | C46: In the event of unplanned water supply interruptions, striving to restore normal service levels within five hours, 90% of the time | D46: Drinking water | E46: Moreton Bay Regional Council | F46: Max restore time of 5 hours for Min of 90% of events | G46: N/A | H46: N/A | I46: N/A | J46: Yes | K46: Yes | L46: Yes | M46: Yes | N46: QWC | O46: No | P46: N/A | Q46: http://www.unitywater.com/customer-charter & http://www.qwc.qld.gov.au/reform/pdf/customer-water-wastewater-code.pdf & http://www.legislation.qld.gov.au/LEGISLTN/CURRENT/S/SouthEQWDisA09.pdf & http://www.legislation.qld.gov.au/LEGISLTN/CURRENT/W/WaterSupSRA08.pdf
B47: 32 | C47: In the event of unplanned water supply interruptions, striving to restore normal service levels within five hours, 90% of the time | D47: Drinking water | E47: Sunshine Coast Regional Council | F47: Max restore time of 5 hours for Min of 90% of events | G47: N/A | H47: N/A | I47: N/A | J47: Yes | K47: Yes | L47: Yes | M47: Yes | N47: QWC | O47: No | P47: N/A | Q47: http://www.unitywater.com/customer-charter & http://www.qwc.qld.gov.au/reform/pdf/customer-water-wastewater-code.pdf & http://www.legislation.qld.gov.au/LEGISLTN/CURRENT/S/SouthEQWDisA09.pdf & http://www.legislation.qld.gov.au/LEGISLTN/CURRENT/W/WaterSupSRA08.pdf
B48: 33 | C48: Aiming to have fewer than 15 unplanned water supply interruptions per 1000 homes per year | D48: Drinking water | E48: Moreton Bay Regional Council | F48: Max events of 15 per 1000 homes per year | G48: N/A | H48: N/A | I48: N/A | J48: Yes | K48: Yes | L48: Yes | M48: Yes | N48: QWC | O48: No | P48: N/A | Q48: http://www.unitywater.com/customer-charter & http://www.qwc.qld.gov.au/reform/pdf/customer-water-wastewater-code.pdf & http://www.legislation.qld.gov.au/LEGISLTN/CURRENT/S/SouthEQWDisA09.pdf & http://www.legislation.qld.gov.au/LEGISLTN/CURRENT/W/WaterSupSRA08.pdf
B49: 34 | C49: Aiming to have fewer than 15 unplanned water supply interruptions per 1000 homes per year | D49: Drinking water | E49: Sunshine Coast Regional Council | F49: Max events of 15 per 1000 homes per year | G49: N/A | H49: N/A | I49: N/A | J49: Yes | K49: Yes | L49: Yes | M49: Yes | N49: QWC | O49: No | P49: N/A | Q49: http://www.unitywater.com/customer-charter & http://www.qwc.qld.gov.au/reform/pdf/customer-water-wastewater-code.pdf & http://www.legislation.qld.gov.au/LEGISLTN/CURRENT/S/SouthEQWDisA09.pdf & http://www.legislation.qld.gov.au/LEGISLTN/CURRENT/W/WaterSupSRA08.pdf
B50: 35 | C50: Responding to urgent water and sewage incidents in less than one hour, in 90% of cases | D50: Drinking water | E50: Moreton Bay Regional Council | F50: Max response time of 1 hour for Min of 90% of events | G50: N/A | H50: N/A | I50: N/A | J50: Yes | K50: Yes | L50: Yes | M50: Yes | N50: QWC | O50: No | P50: N/A | Q50: http://www.unitywater.com/customer-charter & http://www.qwc.qld.gov.au/reform/pdf/customer-water-wastewater-code.pdf & http://www.legislation.qld.gov.au/LEGISLTN/CURRENT/S/SouthEQWDisA09.pdf & http://www.legislation.qld.gov.au/LEGISLTN/CURRENT/W/WaterSupSRA08.pdf
B51: 36 | C51: Responding to urgent water and sewage incidents in less than one hour, in 90% of cases | D51: Waste-water via Sewer | E51: Moreton Bay Regional Council | F51: Max response time of 1 hour for Min of 90% of events | G51: N/A | H51: N/A | I51: N/A | J51: Yes | K51: Yes | L51: Yes | M51: Yes | N51: QWC | O51: No | P51: N/A | Q51: http://www.unitywater.com/customer-charter & http://www.qwc.qld.gov.au/reform/pdf/customer-water-wastewater-code.pdf & http://www.legislation.qld.gov.au/LEGISLTN/CURRENT/S/SouthEQWDisA09.pdf & http://www.legislation.qld.gov.au/LEGISLTN/CURRENT/W/WaterSupSRA08.pdf
B52: 37 | C52: Responding to urgent water and sewage incidents in less than one hour, in 90% of cases | D52: Drinking water | E52: Sunshine Coast Regional Council | F52: Max response time of 1 hour for Min of 90% of events | G52: N/A | H52: N/A | I52: N/A | J52: Yes | K52: Yes | L52: Yes | M52: Yes | N52: QWC | O52: No | P52: N/A | Q52: http://www.unitywater.com/customer-charter & http://www.qwc.qld.gov.au/reform/pdf/customer-water-wastewater-code.pdf & http://www.legislation.qld.gov.au/LEGISLTN/CURRENT/S/SouthEQWDisA09.pdf & http://www.legislation.qld.gov.au/LEGISLTN/CURRENT/W/WaterSupSRA08.pdf
B53: 38 | C53: Responding to urgent water and sewage incidents in less than one hour, in 90% of cases | D53: Waste-water via Sewer | E53: Sunshine Coast Regional Council | F53: Max response time of 1 hour for Min of 90% of events | G53: N/A | H53: N/A | I53: N/A | J53: Yes | K53: Yes | L53: Yes | M53: Yes | N53: QWC | O53: No | P53: N/A | Q53: http://www.unitywater.com/customer-charter & http://www.qwc.qld.gov.au/reform/pdf/customer-water-wastewater-code.pdf & http://www.legislation.qld.gov.au/LEGISLTN/CURRENT/S/SouthEQWDisA09.pdf & http://www.legislation.qld.gov.au/LEGISLTN/CURRENT/W/WaterSupSRA08.pdf
B54: 39 | C54: Depending on the length and severity of disruption, providing more information about planned or unplanned service interruptions via our website and/or our Customer Service Call Centre | D54: Drinking water | E54: Moreton Bay Regional Council | F54: Qualitative | G54: N/A | H54: N/A | I54: N/A | J54: Yes | K54: Yes | L54: Yes | M54: Yes | N54: QWC | O54: No | P54: N/A | Q54: http://www.unitywater.com/customer-charter & http://www.qwc.qld.gov.au/reform/pdf/customer-water-wastewater-code.pdf & http://www.legislation.qld.gov.au/LEGISLTN/CURRENT/S/SouthEQWDisA09.pdf & http://www.legislation.qld.gov.au/LEGISLTN/CURRENT/W/WaterSupSRA08.pdf
B55: 40 | C55: Depending on the length and severity of disruption, providing more information about planned or unplanned service interruptions via our website and/or our Customer Service Call Centre | D55: Waste-water via Sewer | E55: Moreton Bay Regional Council | F55: Qualitative | G55: N/A | H55: N/A | I55: N/A | J55: Yes | K55: Yes | L55: Yes | M55: Yes | N55: QWC | O55: No | P55: N/A | Q55: http://www.unitywater.com/customer-charter & http://www.qwc.qld.gov.au/reform/pdf/customer-water-wastewater-code.pdf & http://www.legislation.qld.gov.au/LEGISLTN/CURRENT/S/SouthEQWDisA09.pdf & http://www.legislation.qld.gov.au/LEGISLTN/CURRENT/W/WaterSupSRA08.pdf
B56: 41 | C56: Depending on the length and severity of disruption, providing more information about planned or unplanned service interruptions via our website and/or our Customer Service Call Centre | D56: Drinking water | E56: Sunshine Coast Regional Council | F56: Qualitative | G56: N/A | H56: N/A | I56: N/A | J56: Yes | K56: Yes | L56: Yes | M56: Yes | N56: QWC | O56: No | P56: N/A | Q56: http://www.unitywater.com/customer-charter & http://www.qwc.qld.gov.au/reform/pdf/customer-water-wastewater-code.pdf & http://www.legislation.qld.gov.au/LEGISLTN/CURRENT/S/SouthEQWDisA09.pdf & http://www.legislation.qld.gov.au/LEGISLTN/CURRENT/W/WaterSupSRA08.pdf
B57: 42 | C57: Depending on the length and severity of disruption, providing more information about planned or unplanned service interruptions via our website and/or our Customer Service Call Centre | D57: Waste-water via Sewer | E57: Sunshine Coast Regional Council | F57: Qualitative | G57: N/A | H57: N/A | I57: N/A | J57: Yes | K57: Yes | L57: Yes | M57: Yes | N57: QWC | O57: No | P57: N/A | Q57: http://www.unitywater.com/customer-charter & http://www.qwc.qld.gov.au/reform/pdf/customer-water-wastewater-code.pdf & http://www.legislation.qld.gov.au/LEGISLTN/CURRENT/S/SouthEQWDisA09.pdf & http://www.legislation.qld.gov.au/LEGISLTN/CURRENT/W/WaterSupSRA08.pdf
B58: 43 | C58: Respecting our customers: We value our customers and aim to always respond in a respectful, efficient and timely manner | D58: Drinking water | E58: Moreton Bay Regional Council | F58: Qualitative | G58: N/A | H58: N/A | I58: N/A | J58: Yes | K58: Yes | L58: Yes | M58: Yes | N58: QWC | O58: No | P58: N/A | Q58: http://www.unitywater.com/customer-charter & http://www.qwc.qld.gov.au/reform/pdf/customer-water-wastewater-code.pdf & http://www.legislation.qld.gov.au/LEGISLTN/CURRENT/S/SouthEQWDisA09.pdf & http://www.legislation.qld.gov.au/LEGISLTN/CURRENT/W/WaterSupSRA08.pdf
B59: 44 | C59: Respecting our customers: We value our customers and aim to always respond in a respectful, efficient and timely manner | D59: Waste-water via Sewer | E59: Moreton Bay Regional Council | F59: Qualitative | G59: N/A | H59: N/A | I59: N/A | J59: Yes | K59: Yes | L59: Yes | M59: Yes | N59: QWC | O59: No | P59: N/A | Q59: http://www.unitywater.com/customer-charter & http://www.qwc.qld.gov.au/reform/pdf/customer-water-wastewater-code.pdf & http://www.legislation.qld.gov.au/LEGISLTN/CURRENT/S/SouthEQWDisA09.pdf & http://www.legislation.qld.gov.au/LEGISLTN/CURRENT/W/WaterSupSRA08.pdf
B60: 45 | C60: Respecting our customers: We value our customers and aim to always respond in a respectful, efficient and timely manner | D60: Drinking water | E60: Sunshine Coast Regional Council | F60: Qualitative | G60: N/A | H60: N/A | I60: N/A | J60: Yes | K60: Yes | L60: Yes | M60: Yes | N60: QWC | O60: No | P60: N/A | Q60: http://www.unitywater.com/customer-charter & http://www.qwc.qld.gov.au/reform/pdf/customer-water-wastewater-code.pdf & http://www.legislation.qld.gov.au/LEGISLTN/CURRENT/S/SouthEQWDisA09.pdf & http://www.legislation.qld.gov.au/LEGISLTN/CURRENT/W/WaterSupSRA08.pdf
B61: 46 | C61: Respecting our customers: We value our customers and aim to always respond in a respectful, efficient and timely manner | D61: Waste-water via Sewer | E61: Sunshine Coast Regional Council | F61: Qualitative | G61: N/A | H61: N/A | I61: N/A | J61: Yes | K61: Yes | L61: Yes | M61: Yes | N61: QWC | O61: No | P61: N/A | Q61: http://www.unitywater.com/customer-charter & http://www.qwc.qld.gov.au/reform/pdf/customer-water-wastewater-code.pdf & http://www.legislation.qld.gov.au/LEGISLTN/CURRENT/S/SouthEQWDisA09.pdf & http://www.legislation.qld.gov.au/LEGISLTN/CURRENT/W/WaterSupSRA08.pdf
B62: 47 | C62: We commit to being: Available - We are on call 24 hours a day, seven days a week, 365 days a year, for faults and emergencies | D62: Drinking water | E62: Moreton Bay Regional Council | F62: Min available time of 24-7-365 | G62: N/A | H62: N/A | I62: N/A | J62: Yes | K62: Yes | L62: Yes | M62: Yes | N62: QWC | O62: No | P62: N/A | Q62: http://www.unitywater.com/customer-charter & http://www.qwc.qld.gov.au/reform/pdf/customer-water-wastewater-code.pdf & http://www.legislation.qld.gov.au/LEGISLTN/CURRENT/S/SouthEQWDisA09.pdf & http://www.legislation.qld.gov.au/LEGISLTN/CURRENT/W/WaterSupSRA08.pdf
B63: 48 | C63: We commit to being: Available - We are on call 24 hours a day, seven days a week, 365 days a year, for faults and emergencies | D63: Waste-water via Sewer | E63: Moreton Bay Regional Council | F63: Min available time of 24-7-366 | G63: N/A | H63: N/A | I63: N/A | J63: Yes | K63: Yes | L63: Yes | M63: Yes | N63: QWC | O63: No | P63: N/A | Q63: http://www.unitywater.com/customer-charter & http://www.qwc.qld.gov.au/reform/pdf/customer-water-wastewater-code.pdf & http://www.legislation.qld.gov.au/LEGISLTN/CURRENT/S/SouthEQWDisA09.pdf & http://www.legislation.qld.gov.au/LEGISLTN/CURRENT/W/WaterSupSRA08.pdf
B64: 49 | C64: We commit to being: Available - We are on call 24 hours a day, seven days a week, 365 days a year, for faults and emergencies | D64: Drinking water | E64: Sunshine Coast Regional Council | F64: Min available time of 24-7-367 | G64: N/A | H64: N/A | I64: N/A | J64: Yes | K64: Yes | L64: Yes | M64: Yes | N64: QWC | O64: No | P64: N/A | Q64: http://www.unitywater.com/customer-charter & http://www.qwc.qld.gov.au/reform/pdf/customer-water-wastewater-code.pdf & http://www.legislation.qld.gov.au/LEGISLTN/CURRENT/S/SouthEQWDisA09.pdf & http://www.legislation.qld.gov.au/LEGISLTN/CURRENT/W/WaterSupSRA08.pdf
B65: 50 | C65: We commit to being: Available - We are on call 24 hours a day, seven days a week, 365 days a year, for faults and emergencies | D65: Waste-water via Sewer | E65: Sunshine Coast Regional Council | F65: Min available time of 24-7-368 | G65: N/A | H65: N/A | I65: N/A | J65: Yes | K65: Yes | L65: Yes | M65: Yes | N65: QWC | O65: No | P65: N/A | Q65: http://www.unitywater.com/customer-charter & http://www.qwc.qld.gov.au/reform/pdf/customer-water-wastewater-code.pdf & http://www.legislation.qld.gov.au/LEGISLTN/CURRENT/S/SouthEQWDisA09.pdf & http://www.legislation.qld.gov.au/LEGISLTN/CURRENT/W/WaterSupSRA08.pdf
B66: 51 | C66: We commit to being: Contactable - Our Customer Service Call Centre and customer service counters can assist with your general enquiries on Monday to Friday from 8.30am to 5pm (except public holidays) [&] [y]ou can also submit a question at any time through our website | D66: Drinking water | E66: Moreton Bay Regional Council | F66: Min contact time of 8:30-17:00 Mon-Fri (except pub hols) | G66: N/A | H66: N/A | I66: N/A | J66: Yes | K66: Yes | L66: Yes | M66: Yes | N66: QWC | O66: No | P66: N/A | Q66: http://www.unitywater.com/customer-charter & http://www.qwc.qld.gov.au/reform/pdf/customer-water-wastewater-code.pdf & http://www.legislation.qld.gov.au/LEGISLTN/CURRENT/S/SouthEQWDisA09.pdf & http://www.legislation.qld.gov.au/LEGISLTN/CURRENT/W/WaterSupSRA08.pdf
B67: 52 | C67: We commit to being: Contactable - Our Customer Service Call Centre and customer service counters can assist with your general enquiries on Monday to Friday from 8.30am to 5pm (except public holidays) [&] [y]ou can also submit a question at any time through our website | D67: Waste-water via Sewer | E67: Moreton Bay Regional Council | F67: Min contact time of 8:30-17:00 Mon-Fri (except pub hols) | G67: N/A | H67: N/A | I67: N/A | J67: Yes | K67: Yes | L67: Yes | M67: Yes | N67: QWC | O67: No | P67: N/A | Q67: http://www.unitywater.com/customer-charter & http://www.qwc.qld.gov.au/reform/pdf/customer-water-wastewater-code.pdf & http://www.legislation.qld.gov.au/LEGISLTN/CURRENT/S/SouthEQWDisA09.pdf & http://www.legislation.qld.gov.au/LEGISLTN/CURRENT/W/WaterSupSRA08.pdf
B68: 53 | C68: We commit to being: Contactable - Our Customer Service Call Centre and customer service counters can assist with your general enquiries on Monday to Friday from 8.30am to 5pm (except public holidays) [&] [y]ou can also submit a question at any time through our website | D68: Drinking water | E68: Sunshine Coast Regional Council | F68: Min contact time of 8:30-17:00 Mon-Fri (except pub hols) | G68: N/A | H68: N/A | I68: N/A | J68: Yes | K68: Yes | L68: Yes | M68: Yes | N68: QWC | O68: No | P68: N/A | Q68: http://www.unitywater.com/customer-charter & http://www.qwc.qld.gov.au/reform/pdf/customer-water-wastewater-code.pdf & http://www.legislation.qld.gov.au/LEGISLTN/CURRENT/S/SouthEQWDisA09.pdf & http://www.legislation.qld.gov.au/LEGISLTN/CURRENT/W/WaterSupSRA08.pdf
B69: 54 | C69: We commit to being: Contactable - Our Customer Service Call Centre and customer service counters can assist with your general enquiries on Monday to Friday from 8.30am to 5pm (except public holidays) [&] [y]ou can also submit a question at any time through our website | D69: Waste-water via Sewer | E69: Sunshine Coast Regional Council | F69: Min contact time of 8:30-17:00 Mon-Fri (except pub hols) | G69: N/A | H69: N/A | I69: N/A | J69: Yes | K69: Yes | L69: Yes | M69: Yes | N69: QWC | O69: No | P69: N/A | Q69: http://www.unitywater.com/customer-charter & http://www.qwc.qld.gov.au/reform/pdf/customer-water-wastewater-code.pdf & http://www.legislation.qld.gov.au/LEGISLTN/CURRENT/S/SouthEQWDisA09.pdf & http://www.legislation.qld.gov.au/LEGISLTN/CURRENT/W/WaterSupSRA08.pdf
B70: 55 | C70: We commit to being: Identifiable - Our Customer Service team members will provide you with their first name and supply a reference number for customer requests [&] [o]ur logo uniformed field staff will produce photo ID on request | D70: Drinking water | E70: Moreton Bay Regional Council | F70: Qualitative | G70: N/A | H70: N/A | I70: N/A | J70: Yes | K70: Yes | L70: Yes | M70: Yes | N70: QWC | O70: No | P70: N/A | Q70: http://www.unitywater.com/customer-charter & http://www.qwc.qld.gov.au/reform/pdf/customer-water-wastewater-code.pdf & http://www.legislation.qld.gov.au/LEGISLTN/CURRENT/S/SouthEQWDisA09.pdf & http://www.legislation.qld.gov.au/LEGISLTN/CURRENT/W/WaterSupSRA08.pdf
B71: 56 | C71: We commit to being: Identifiable - Our Customer Service team members will provide you with their first name and supply a reference number for customer requests [&] [o]ur logo uniformed field staff will produce photo ID on request | D71: Waste-water via Sewer | E71: Moreton Bay Regional Council | F71: Qualitative | G71: N/A | H71: N/A | I71: N/A | J71: Yes | K71: Yes | L71: Yes | M71: Yes | N71: QWC | O71: No | P71: N/A | Q71: http://www.unitywater.com/customer-charter & http://www.qwc.qld.gov.au/reform/pdf/customer-water-wastewater-code.pdf & http://www.legislation.qld.gov.au/LEGISLTN/CURRENT/S/SouthEQWDisA09.pdf & http://www.legislation.qld.gov.au/LEGISLTN/CURRENT/W/WaterSupSRA08.pdf
B72: 57 | C72: We commit to being: Identifiable - Our Customer Service team members will provide you with their first name and supply a reference number for customer requests [&] [o]ur logo uniformed field staff will produce photo ID on request | D72: Drinking water | E72: Sunshine Coast Regional Council | F72: Qualitative | G72: N/A | H72: N/A | I72: N/A | J72: Yes | K72: Yes | L72: Yes | M72: Yes | N72: QWC | O72: No | P72: N/A | Q72: http://www.unitywater.com/customer-charter & http://www.qwc.qld.gov.au/reform/pdf/customer-water-wastewater-code.pdf & http://www.legislation.qld.gov.au/LEGISLTN/CURRENT/S/SouthEQWDisA09.pdf & http://www.legislation.qld.gov.au/LEGISLTN/CURRENT/W/WaterSupSRA08.pdf
B73: 58 | C73: We commit to being: Identifiable - Our Customer Service team members will provide you with their first name and supply a reference number for customer requests [&] [o]ur logo uniformed field staff will produce photo ID on request | D73: Waste-water via Sewer | E73: Sunshine Coast Regional Council | F73: Qualitative | G73: N/A | H73: N/A | I73: N/A | J73: Yes | K73: Yes | L73: Yes | M73: Yes | N73: QWC | O73: No | P73: N/A | Q73: http://www.unitywater.com/customer-charter & http://www.qwc.qld.gov.au/reform/pdf/customer-water-wastewater-code.pdf & http://www.legislation.qld.gov.au/LEGISLTN/CURRENT/S/SouthEQWDisA09.pdf & http://www.legislation.qld.gov.au/LEGISLTN/CURRENT/W/WaterSupSRA08.pdf
B74: 59 | C74: We commit to being: Responsive - We will answer 80% of calls to our Customer Service Call Centre within 30 seconds and acknowledge written enquiries within 10 days | D74: Drinking water | E74: Moreton Bay Regional Council | F74: Min answer time of 30 sec for 80% of calls & Min acknowledge time of 10 days for all correspondence | G74: N/A | H74: N/A | I74: N/A | J74: Yes | K74: Yes | L74: Yes | M74: Yes | N74: QWC | O74: No | P74: N/A | Q74: http://www.unitywater.com/customer-charter & http://www.qwc.qld.gov.au/reform/pdf/customer-water-wastewater-code.pdf & http://www.legislation.qld.gov.au/LEGISLTN/CURRENT/S/SouthEQWDisA09.pdf & http://www.legislation.qld.gov.au/LEGISLTN/CURRENT/W/WaterSupSRA08.pdf
B75: 60 | C75: We commit to being: Responsive - We will answer 80% of calls to our Customer Service Call Centre within 30 seconds and acknowledge written enquiries within 10 days | D75: Waste-water via Sewer | E75: Moreton Bay Regional Council | F75: Min answer time of 30 sec for 80% of calls & Min acknowledge time of 10 days for all correspondence | G75: N/A | H75: N/A | I75: N/A | J75: Yes | K75: Yes | L75: Yes | M75: Yes | N75: QWC | O75: No | P75: N/A | Q75: http://www.unitywater.com/customer-charter & http://www.qwc.qld.gov.au/reform/pdf/customer-water-wastewater-code.pdf & http://www.legislation.qld.gov.au/LEGISLTN/CURRENT/S/SouthEQWDisA09.pdf & http://www.legislation.qld.gov.au/LEGISLTN/CURRENT/W/WaterSupSRA08.pdf
B76: 61 | C76: We commit to being: Responsive - We will answer 80% of calls to our Customer Service Call Centre within 30 seconds and acknowledge written enquiries within 10 days | D76: Drinking water | E76: Sunshine Coast Regional Council | F76: Min answer time of 30 sec for 80% of calls & Min acknowledge time of 10 days for all correspondence | G76: N/A | H76: N/A | I76: N/A | J76: Yes | K76: Yes | L76: Yes | M76: Yes | N76: QWC | O76: No | P76: N/A | Q76: http://www.unitywater.com/customer-charter & http://www.qwc.qld.gov.au/reform/pdf/customer-water-wastewater-code.pdf & http://www.legislation.qld.gov.au/LEGISLTN/CURRENT/S/SouthEQWDisA09.pdf & http://www.legislation.qld.gov.au/LEGISLTN/CURRENT/W/WaterSupSRA08.pdf
B77: 62 | C77: We commit to being: Responsive - We will answer 80% of calls to our Customer Service Call Centre within 30 seconds and acknowledge written enquiries within 10 days | D77: Waste-water via Sewer | E77: Sunshine Coast Regional Council | F77: Min answer time of 30 sec for 80% of calls & Min acknowledge time of 10 days for all correspondence | G77: N/A | H77: N/A | I77: N/A | J77: Yes | K77: Yes | L77: Yes | M77: Yes | N77: QWC | O77: No | P77: N/A | Q77: http://www.unitywater.com/customer-charter & http://www.qwc.qld.gov.au/reform/pdf/customer-water-wastewater-code.pdf & http://www.legislation.qld.gov.au/LEGISLTN/CURRENT/S/SouthEQWDisA09.pdf & http://www.legislation.qld.gov.au/LEGISLTN/CURRENT/W/WaterSupSRA08.pdf
B78: 63 | C78: We commit to being: Respectful - We will treat your information with strict confidence, as per our Privacy Statement and the Information Privacy Act 2009 | D78: Drinking water | E78: Moreton Bay Regional Council | F78: Qualitative | G78: N/A | H78: N/A | I78: N/A | J78: Yes | K78: Yes | L78: Yes | M78: Yes | N78: QWC | O78: No | P78: N/A | Q78: http://www.unitywater.com/customer-charter & http://www.qwc.qld.gov.au/reform/pdf/customer-water-wastewater-code.pdf & http://www.legislation.qld.gov.au/LEGISLTN/CURRENT/S/SouthEQWDisA09.pdf & http://www.legislation.qld.gov.au/LEGISLTN/CURRENT/W/WaterSupSRA08.pdf
B79: 64 | C79: We commit to being: Respectful - We will treat your information with strict confidence, as per our Privacy Statement and the Information Privacy Act 2010 | D79: Waste-water via Sewer | E79: Moreton Bay Regional Council | F79: Qualitative | G79: N/A | H79: N/A | I79: N/A | J79: Yes | K79: Yes | L79: Yes | M79: Yes | N79: QWC | O79: No | P79: N/A | Q79: http://www.unitywater.com/customer-charter & http://www.qwc.qld.gov.au/reform/pdf/customer-water-wastewater-code.pdf & http://www.legislation.qld.gov.au/LEGISLTN/CURRENT/S/SouthEQWDisA09.pdf & http://www.legislation.qld.gov.au/LEGISLTN/CURRENT/W/WaterSupSRA08.pdf
B80: 65 | C80: We commit to being: Respectful - We will treat your information with strict confidence, as per our Privacy Statement and the Information Privacy Act 2011 | D80: Drinking water | E80: Sunshine Coast Regional Council | F80: Qualitative | G80: N/A | H80: N/A | I80: N/A | J80: Yes | K80: Yes | L80: Yes | M80: Yes | N80: QWC | O80: No | P80: N/A | Q80: http://www.unitywater.com/customer-charter & http://www.qwc.qld.gov.au/reform/pdf/customer-water-wastewater-code.pdf & http://www.legislation.qld.gov.au/LEGISLTN/CURRENT/S/SouthEQWDisA09.pdf & http://www.legislation.qld.gov.au/LEGISLTN/CURRENT/W/WaterSupSRA08.pdf
B81: 66 | C81: We commit to being: Respectful - We will treat your information with strict confidence, as per our Privacy Statement and the Information Privacy Act 2012 | D81: Waste-water via Sewer | E81: Sunshine Coast Regional Council | F81: Qualitative | G81: N/A | H81: N/A | I81: N/A | J81: Yes | K81: Yes | L81: Yes | M81: Yes | N81: QWC | O81: No | P81: N/A | Q81: http://www.unitywater.com/customer-charter & http://www.qwc.qld.gov.au/reform/pdf/customer-water-wastewater-code.pdf & http://www.legislation.qld.gov.au/LEGISLTN/CURRENT/S/SouthEQWDisA09.pdf & http://www.legislation.qld.gov.au/LEGISLTN/CURRENT/W/WaterSupSRA08.pdf
B82: 67 | C82: Managing your account: We issue accounts quarterly to our Moreton Bay customers and six-monthly to our Sunshine Coast customers [&] [q]uarterly billing will commence on the Sunshine Coast from early 2012 | D82: Drinking water | E82: Moreton Bay Regional Council | F82: Max issue time of quarterly | G82: N/A | H82: N/A | I82: N/A | J82: Yes | K82: Yes | L82: Yes | M82: Yes | N82: QWC | O82: No | P82: N/A | Q82: http://www.unitywater.com/customer-charter & http://www.qwc.qld.gov.au/reform/pdf/customer-water-wastewater-code.pdf & http://www.legislation.qld.gov.au/LEGISLTN/CURRENT/S/SouthEQWDisA09.pdf & http://www.legislation.qld.gov.au/LEGISLTN/CURRENT/W/WaterSupSRA08.pdf
B83: 68 | C83: Managing your account: We issue accounts quarterly to our Moreton Bay customers and six-monthly to our Sunshine Coast customers [&] [q]uarterly billing will commence on the Sunshine Coast from early 2013 | D83: Waste-water via Sewer | E83: Moreton Bay Regional Council | F83: Max issue time of quarterly | G83: N/A | H83: N/A | I83: N/A | J83: Yes | K83: Yes | L83: Yes | M83: Yes | N83: QWC | O83: No | P83: N/A | Q83: http://www.unitywater.com/customer-charter & http://www.qwc.qld.gov.au/reform/pdf/customer-water-wastewater-code.pdf & http://www.legislation.qld.gov.au/LEGISLTN/CURRENT/S/SouthEQWDisA09.pdf & http://www.legislation.qld.gov.au/LEGISLTN/CURRENT/W/WaterSupSRA08.pdf
B84: 69 | C84: Managing your account: We issue accounts quarterly to our Moreton Bay customers and six-monthly to our Sunshine Coast customers [&] [q]uarterly billing will commence on the Sunshine Coast from early 2014 | D84: Drinking water | E84: Sunshine Coast Regional Council | F84: Max issue time of quarterly | G84: N/A | H84: N/A | I84: N/A | J84: Yes | K84: Yes | L84: Yes | M84: Yes | N84: QWC | O84: No | P84: N/A | Q84: http://www.unitywater.com/customer-charter & http://www.qwc.qld.gov.au/reform/pdf/customer-water-wastewater-code.pdf & http://www.legislation.qld.gov.au/LEGISLTN/CURRENT/S/SouthEQWDisA09.pdf & http://www.legislation.qld.gov.au/LEGISLTN/CURRENT/W/WaterSupSRA08.pdf
B85: 70 | C85: Managing your account: We issue accounts quarterly to our Moreton Bay customers and six-monthly to our Sunshine Coast customers [&] [q]uarterly billing will commence on the Sunshine Coast from early 2015 | D85: Waste-water via Sewer | E85: Sunshine Coast Regional Council | F85: Max issue time of quarterly | G85: N/A | H85: N/A | I85: N/A | J85: Yes | K85: Yes | L85: Yes | M85: Yes | N85: QWC | O85: No | P85: N/A | Q85: http://www.unitywater.com/customer-charter & http://www.qwc.qld.gov.au/reform/pdf/customer-water-wastewater-code.pdf & http://www.legislation.qld.gov.au/LEGISLTN/CURRENT/S/SouthEQWDisA09.pdf & http://www.legislation.qld.gov.au/LEGISLTN/CURRENT/W/WaterSupSRA08.pdf
B86: 71 | C86: Managing your account: To calculate your account we are required to read your water meter at least once a year, however we endeavour to read your meter every account cycle and inform you of the reading [but] [i]f your water meter remains inaccessible within the required timeframe and you do not phone through your reading to us we will estimate your consumption for that account period | D86: Drinking water | E86: Moreton Bay Regional Council | F86: Min meter read of annually (but preferably quarterly) | G86: N/A | H86: N/A | I86: N/A | J86: Yes | K86: Yes | L86: Yes | M86: Yes | N86: QWC | O86: No | P86: N/A | Q86: http://www.unitywater.com/customer-charter & http://www.qwc.qld.gov.au/reform/pdf/customer-water-wastewater-code.pdf & http://www.legislation.qld.gov.au/LEGISLTN/CURRENT/S/SouthEQWDisA09.pdf & http://www.legislation.qld.gov.au/LEGISLTN/CURRENT/W/WaterSupSRA08.pdf
B87: 72 | C87: Managing your account: To calculate your account we are required to read your water meter at least once a year, however we endeavour to read your meter every account cycle and inform you of the reading [but] [i]f your water meter remains inaccessible within the required timeframe and you do not phone through your reading to us we will estimate your consumption for that account period | D87: Drinking water | E87: Sunshine Coast Regional Council | F87: Min meter read of annually (but preferably quarterly) | G87: N/A | H87: N/A | I87: N/A | J87: Yes | K87: Yes | L87: Yes | M87: Yes | N87: QWC | O87: No | P87: N/A | Q87: http://www.unitywater.com/customer-charter & http://www.qwc.qld.gov.au/reform/pdf/customer-water-wastewater-code.pdf & http://www.legislation.qld.gov.au/LEGISLTN/CURRENT/S/SouthEQWDisA09.pdf & http://www.legislation.qld.gov.au/LEGISLTN/CURRENT/W/WaterSupSRA08.pdf
B88: 73 | C88: Managing your account: Your itemised account includes all the necessary information to help you understand your water supply and sewerage charges | D88: Drinking water | E88: Moreton Bay Regional Council | F88: Qualitative | G88: N/A | H88: N/A | I88: N/A | J88: Yes | K88: Yes | L88: Yes | M88: Yes | N88: QWC | O88: No | P88: N/A | Q88: http://www.unitywater.com/customer-charter & http://www.qwc.qld.gov.au/reform/pdf/customer-water-wastewater-code.pdf & http://www.legislation.qld.gov.au/LEGISLTN/CURRENT/S/SouthEQWDisA09.pdf & http://www.legislation.qld.gov.au/LEGISLTN/CURRENT/W/WaterSupSRA08.pdf
B89: 74 | C89: Managing your account: Your itemised account includes all the necessary information to help you understand your water supply and sewerage charges | D89: Waste-water via Sewer | E89: Moreton Bay Regional Council | F89: Qualitative | G89: N/A | H89: N/A | I89: N/A | J89: Yes | K89: Yes | L89: Yes | M89: Yes | N89: QWC | O89: No | P89: N/A | Q89: http://www.unitywater.com/customer-charter & http://www.qwc.qld.gov.au/reform/pdf/customer-water-wastewater-code.pdf & http://www.legislation.qld.gov.au/LEGISLTN/CURRENT/S/SouthEQWDisA09.pdf & http://www.legislation.qld.gov.au/LEGISLTN/CURRENT/W/WaterSupSRA08.pdf
B90: 75 | C90: Managing your account: Your itemised account includes all the necessary information to help you understand your water supply and sewerage charges | D90: Drinking water | E90: Sunshine Coast Regional Council | F90: Qualitative | G90: N/A | H90: N/A | I90: N/A | J90: Yes | K90: Yes | L90: Yes | M90: Yes | N90: QWC | O90: No | P90: N/A | Q90: http://www.unitywater.com/customer-charter & http://www.qwc.qld.gov.au/reform/pdf/customer-water-wastewater-code.pdf & http://www.legislation.qld.gov.au/LEGISLTN/CURRENT/S/SouthEQWDisA09.pdf & http://www.legislation.qld.gov.au/LEGISLTN/CURRENT/W/WaterSupSRA08.pdf
B91: 76 | C91: Managing your account: Your itemised account includes all the necessary information to help you understand your water supply and sewerage charges | D91: Waste-water via Sewer | E91: Sunshine Coast Regional Council | F91: Qualitative | G91: N/A | H91: N/A | I91: N/A | J91: Yes | K91: Yes | L91: Yes | M91: Yes | N91: QWC | O91: No | P91: N/A | Q91: http://www.unitywater.com/customer-charter & http://www.qwc.qld.gov.au/reform/pdf/customer-water-wastewater-code.pdf & http://www.legislation.qld.gov.au/LEGISLTN/CURRENT/S/SouthEQWDisA09.pdf & http://www.legislation.qld.gov.au/LEGISLTN/CURRENT/W/WaterSupSRA08.pdf
B92: 77 | C92: Managing your account: We offer a range of options for paying accounts online, in person or by mail | D92: Drinking water | E92: Moreton Bay Regional Council | F92: Qualitative | G92: N/A | H92: N/A | I92: N/A | J92: Yes | K92: Yes | L92: Yes | M92: Yes | N92: QWC | O92: No | P92: N/A | Q92: http://www.unitywater.com/customer-charter & http://www.qwc.qld.gov.au/reform/pdf/customer-water-wastewater-code.pdf & http://www.legislation.qld.gov.au/LEGISLTN/CURRENT/S/SouthEQWDisA09.pdf & http://www.legislation.qld.gov.au/LEGISLTN/CURRENT/W/WaterSupSRA08.pdf
B93: 78 | C93: Managing your account: We offer a range of options for paying accounts online, in person or by mail | D93: Waste-water via Sewer | E93: Moreton Bay Regional Council | F93: Qualitative | G93: N/A | H93: N/A | I93: N/A | J93: Yes | K93: Yes | L93: Yes | M93: Yes | N93: QWC | O93: No | P93: N/A | Q93: http://www.unitywater.com/customer-charter & http://www.qwc.qld.gov.au/reform/pdf/customer-water-wastewater-code.pdf & http://www.legislation.qld.gov.au/LEGISLTN/CURRENT/S/SouthEQWDisA09.pdf & http://www.legislation.qld.gov.au/LEGISLTN/CURRENT/W/WaterSupSRA08.pdf
B94: 79 | C94: Managing your account: We offer a range of options for paying accounts online, in person or by mail | D94: Drinking water | E94: Sunshine Coast Regional Council | F94: Qualitative | G94: N/A | H94: N/A | I94: N/A | J94: Yes | K94: Yes | L94: Yes | M94: Yes | N94: QWC | O94: No | P94: N/A | Q94: http://www.unitywater.com/customer-charter & http://www.qwc.qld.gov.au/reform/pdf/customer-water-wastewater-code.pdf & http://www.legislation.qld.gov.au/LEGISLTN/CURRENT/S/SouthEQWDisA09.pdf & http://www.legislation.qld.gov.au/LEGISLTN/CURRENT/W/WaterSupSRA08.pdf
B95: 80 | C95: Managing your account: We offer a range of options for paying accounts online, in person or by mail | D95: Waste-water via Sewer | E95: Sunshine Coast Regional Council | F95: Qualitative | G95: N/A | H95: N/A | I95: N/A | J95: Yes | K95: Yes | L95: Yes | M95: Yes | N95: QWC | O95: No | P95: N/A | Q95: http://www.unitywater.com/customer-charter & http://www.qwc.qld.gov.au/reform/pdf/customer-water-wastewater-code.pdf & http://www.legislation.qld.gov.au/LEGISLTN/CURRENT/S/SouthEQWDisA09.pdf & http://www.legislation.qld.gov.au/LEGISLTN/CURRENT/W/WaterSupSRA08.pdf
B96: 81 | C96: Managing your account: Our payment terms are 30 days and it is important to settle your account on time because interest of 11% per annum, compounding daily, is charged on overdue amounts [&] [i]f you are experiencing payment difficulties please contact us as early as possible to discuss suitable payment arrangements [&] [o]ur Financial Hardship Policy can be mailed on request, viewed at our customer service counters, or on our website www.unitywater.com | D96: Drinking water | E96: Moreton Bay Regional Council | F96: Qualitative | G96: N/A | H96: N/A | I96: N/A | J96: Yes | K96: Yes | L96: Yes | M96: Yes | N96: QWC | O96: No | P96: N/A | Q96: http://www.unitywater.com/customer-charter & http://www.qwc.qld.gov.au/reform/pdf/customer-water-wastewater-code.pdf & http://www.legislation.qld.gov.au/LEGISLTN/CURRENT/S/SouthEQWDisA09.pdf & http://www.legislation.qld.gov.au/LEGISLTN/CURRENT/W/WaterSupSRA08.pdf
B97: 82 | C97: Managing your account: Our payment terms are 30 days and it is important to settle your account on time because interest of 11% per annum, compounding daily, is charged on overdue amounts [&] [i]f you are experiencing payment difficulties please contact us as early as possible to discuss suitable payment arrangements [&] [o]ur Financial Hardship Policy can be mailed on request, viewed at our customer service counters, or on our website www.unitywater.com | D97: Waste-water via Sewer | E97: Moreton Bay Regional Council | F97: Qualitative | G97: N/A | H97: N/A | I97: N/A | J97: Yes | K97: Yes | L97: Yes | M97: Yes | N97: QWC | O97: No | P97: N/A | Q97: http://www.unitywater.com/customer-charter & http://www.qwc.qld.gov.au/reform/pdf/customer-water-wastewater-code.pdf & http://www.legislation.qld.gov.au/LEGISLTN/CURRENT/S/SouthEQWDisA09.pdf & http://www.legislation.qld.gov.au/LEGISLTN/CURRENT/W/WaterSupSRA08.pdf
B98: 83 | C98: Managing your account: Our payment terms are 30 days and it is important to settle your account on time because interest of 11% per annum, compounding daily, is charged on overdue amounts [&] [i]f you are experiencing payment difficulties please contact us as early as possible to discuss suitable payment arrangements [&] [o]ur Financial Hardship Policy can be mailed on request, viewed at our customer service counters, or on our website www.unitywater.com | D98: Drinking water | E98: Sunshine Coast Regional Council | F98: Qualitative | G98: N/A | H98: N/A | I98: N/A | J98: Yes | K98: Yes | L98: Yes | M98: Yes | N98: QWC | O98: No | P98: N/A | Q98: http://www.unitywater.com/customer-charter & http://www.qwc.qld.gov.au/reform/pdf/customer-water-wastewater-code.pdf & http://www.legislation.qld.gov.au/LEGISLTN/CURRENT/S/SouthEQWDisA09.pdf & http://www.legislation.qld.gov.au/LEGISLTN/CURRENT/W/WaterSupSRA08.pdf
B99: 84 | C99: Managing your account: Our payment terms are 30 days and it is important to settle your account on time because interest of 11% per annum, compounding daily, is charged on overdue amounts [&] [i]f you are experiencing payment difficulties please contact us as early as possible to discuss suitable payment arrangements [&] [o]ur Financial Hardship Policy can be mailed on request, viewed at our customer service counters, or on our website www.unitywater.com | D99: Waste-water via Sewer | E99: Sunshine Coast Regional Council | F99: Qualitative | G99: N/A | H99: N/A | I99: N/A | J99: Yes | K99: Yes | L99: Yes | M99: Yes | N99: QWC | O99: No | P99: N/A | Q99: http://www.unitywater.com/customer-charter & http://www.qwc.qld.gov.au/reform/pdf/customer-water-wastewater-code.pdf & http://www.legislation.qld.gov.au/LEGISLTN/CURRENT/S/SouthEQWDisA09.pdf & http://www.legislation.qld.gov.au/LEGISLTN/CURRENT/W/WaterSupSRA08.pdf
B100: 85 | C100: Handling complaints: We manage complaints in accordance with ISO 10002-2006 Customer Satisfaction Guidelines for Complaints Handling in Organisations [&] [p]lease contact us first so we can work with you personally to address your concerns [&] [i]f, following our investigations, the complaint is not resolved to your satisfaction we will escalate your complaint to our Complaint Management Team for review [&] [f]ollowing this review, if you remain unsatisfied with the outcome, you can then refer your complaint to the Energy and Water Ombudsman Queensland on 1800 662 837 or complaints@ewoq.com.au | D100: Drinking water | E100: Moreton Bay Regional Council | F100: Various | G100: N/A | H100: N/A | I100: N/A | J100: Yes | K100: Yes | L100: Yes | M100: Yes | N100: QWC | O100: No | P100: N/A | Q100: http://www.unitywater.com/customer-charter & http://infostore.saiglobal.com/store/details.aspx?ProductID=341668 & http://www.ewoq.com.au/Complaints/Makeacomplaint.aspx
B101: 86 | C101: Handling complaints: We manage complaints in accordance with ISO 10002-2006 Customer Satisfaction Guidelines for Complaints Handling in Organisations [&] [p]lease contact us first so we can work with you personally to address your concerns [&] [i]f, following our investigations, the complaint is not resolved to your satisfaction we will escalate your complaint to our Complaint Management Team for review [&] [f]ollowing this review, if you remain unsatisfied with the outcome, you can then refer your complaint to the Energy and Water Ombudsman Queensland on 1800 662 837 or complaints@ewoq.com.au | D101: Waste-water via Sewer | E101: Moreton Bay Regional Council | F101: Various | G101: N/A | H101: N/A | I101: N/A | J101: Yes | K101: Yes | L101: Yes | M101: Yes | N101: QWC | O101: No | P101: N/A | Q101: http://www.unitywater.com/customer-charter & http://infostore.saiglobal.com/store/details.aspx?ProductID=341668 & http://www.ewoq.com.au/Complaints/Makeacomplaint.aspx
B102: 87 | C102: Handling complaints: We manage complaints in accordance with ISO 10002-2006 Customer Satisfaction Guidelines for Complaints Handling in Organisations [&] [p]lease contact us first so we can work with you personally to address your concerns [&] [i]f, following our investigations, the complaint is not resolved to your satisfaction we will escalate your complaint to our Complaint Management Team for review [&] [f]ollowing this review, if you remain unsatisfied with the outcome, you can then refer your complaint to the Energy and Water Ombudsman Queensland on 1800 662 837 or complaints@ewoq.com.au | D102: Drinking water | E102: Sunshine Coast Regional Council | F102: Various | G102: N/A | H102: N/A | I102: N/A | J102: Yes | K102: Yes | L102: Yes | M102: Yes | N102: QWC | O102: No | P102: N/A | Q102: http://www.unitywater.com/customer-charter & http://infostore.saiglobal.com/store/details.aspx?ProductID=341668 & http://www.ewoq.com.au/Complaints/Makeacomplaint.aspx
B103: 88 | C103: Handling complaints: We manage complaints in accordance with ISO 10002-2006 Customer Satisfaction Guidelines for Complaints Handling in Organisations [&] [p]lease contact us first so we can work with you personally to address your concerns [&] [i]f, following our investigations, the complaint is not resolved to your satisfaction we will escalate your complaint to our Complaint Management Team for review [&] [f]ollowing this review, if you remain unsatisfied with the outcome, you can then refer your complaint to the Energy and Water Ombudsman Queensland on 1800 662 837 or complaints@ewoq.com.au | D103: Waste-water via Sewer | E103: Sunshine Coast Regional Council | F103: Various | G103: N/A | H103: N/A | I103: N/A | J103: Yes | K103: Yes | L103: Yes | M103: Yes | N103: QWC | O103: No | P103: N/A | Q103: http://www.unitywater.com/customer-charter & http://infostore.saiglobal.com/store/details.aspx?ProductID=341668 & http://www.ewoq.com.au/Complaints/Makeacomplaint.aspx
B104: 89 | C104: Our Drinking Water Quality Management Plan, describing how we manage the risks associated with delivering safe drinking water to our customers, was approved by DERM in Mar 2012 & we were the first of the SEQ DRs to complete this business-critical document & we will be publishing annual water quality summaries to our website for our customers to view from 2012-13 onwards | D104: Drinking water | E104: Moreton Bay Regional Council | F104: Various | G104: N/A | H104: N/A | I104: N/A | J104: N/A | K104: Yes | L104: Yes | M104: Yes | N104: DERM | O104: No | P104: N/A | Q104: http://www.derm.qld.gov.au/water/regulation/pdfs/dw_mgmt_plan_gline.pdf
B105: 90 | C105: Our Drinking Water Quality Management Plan, describing how we manage the risks associated with delivering safe drinking water to our customers, was approved by DERM in Mar 2012 & we were the first of the SEQ DRs to complete this business-critical document & we will be publishing annual water quality summaries to our website for our customers to view from 2012-13 onwards | D105: Drinking water | E105: Sunshine Coast Regional Council | F105: Various | G105: N/A | H105: N/A | I105: N/A | J105: N/A | K105: Yes | L105: Yes | M105: Yes | N105: DERM | O105: No | P105: N/A | Q105: http://www.derm.qld.gov.au/water/regulation/pdfs/dw_mgmt_plan_gline.pdf
B106: 91 | C106: Compliance Australia Certification Services Pty Ltd granted certification to BSSD in Jun 2012 & ISD in Dec 2011 of Quality Management Systems under ISO 9001-2009 | D106: Waste-water via Sewer | E106: Moreton Bay Regional Council | F106: Various | G106: N/A | H106: N/A | I106: N/A | J106: N/A | K106: Yes | L106: Yes | M106: Yes | N106: CACS | O106: No | P106: N/A | Q106: http://www.unitywater.com/About-us/Participation-agreement.aspx & http://www.unitywater.com/media/scripts/doc_download.aspx?did=581 & http://www.saiglobal.com/assurance/quality-business-management/ISO9001.htm
B107: 92 | C107: Compliance Australia Certification Services Pty Ltd granted certification to BSSD in Jun 2012 & ISD in Dec 2011 of Quality Management Systems under ISO 9001-2010 | D107: Drinking water | E107: Sunshine Coast Regional Council | F107: Various | G107: N/A | H107: N/A | I107: N/A | J107: N/A | K107: Yes | L107: Yes | M107: Yes | N107: CACS | O107: No | P107: N/A | Q107: http://www.unitywater.com/About-us/Participation-agreement.aspx & http://www.unitywater.com/media/scripts/doc_download.aspx?did=581 & http://www.saiglobal.com/assurance/quality-business-management/ISO9001.htm
B108: 93 | C108: Compliance Australia Certification Services Pty Ltd granted certification to BSSD in Jun 2012 & ISD in Dec 2011 of Quality Management Systems under ISO 9001-2011 | D108: Waste-water via Sewer | E108: Sunshine Coast Regional Council | F108: Various | G108: N/A | H108: N/A | I108: N/A | J108: N/A | K108: Yes | L108: Yes | M108: Yes | N108: CACS | O108: No | P108: N/A | Q108: http://www.unitywater.com/About-us/Participation-agreement.aspx & http://www.unitywater.com/media/scripts/doc_download.aspx?did=581 & http://www.saiglobal.com/assurance/quality-business-management/ISO9001.htm
B109: 94 | C109: Compliance Australia Certification Services Pty Ltd granted certification to BSSD in Jun 2012 & ISD in Dec 2011 of Environmental Management Systems under ISO 9001-2012 | D109: Drinking water | E109: Moreton Bay Regional Council | F109: Various | G109: N/A | H109: N/A | I109: N/A | J109: N/A | K109: Yes | L109: Yes | M109: Yes | N109: CACS | O109: No | P109: N/A | Q109: http://www.unitywater.com/About-us/Participation-agreement.aspx & http://www.unitywater.com/media/scripts/doc_download.aspx?did=581 & http://www.saiglobal.com/assurance/environmental/
B110: 95 | C110: Compliance Australia Certification Services Pty Ltd granted certification to BSSD in Jun 2012 & ISD in Dec 2011 of Environmental Management Systems under ISO 9001-2013 | D110: Waste-water via Sewer | E110: Moreton Bay Regional Council | F110: Various | G110: N/A | H110: N/A | I110: N/A | J110: N/A | K110: Yes | L110: Yes | M110: Yes | N110: CACS | O110: No | P110: N/A | Q110: http://www.unitywater.com/About-us/Participation-agreement.aspx & http://www.unitywater.com/media/scripts/doc_download.aspx?did=581 & http://www.saiglobal.com/assurance/environmental/
B111: 96 | C111: Compliance Australia Certification Services Pty Ltd granted certification to BSSD in Jun 2012 & ISD in Dec 2011 of Environmental Management Systems under ISO 9001-2014 | D111: Drinking water | E111: Sunshine Coast Regional Council | F111: Various | G111: N/A | H111: N/A | I111: N/A | J111: N/A | K111: Yes | L111: Yes | M111: Yes | N111: CACS | O111: No | P111: N/A | Q111: http://www.unitywater.com/About-us/Participation-agreement.aspx & http://www.unitywater.com/media/scripts/doc_download.aspx?did=581 & http://www.saiglobal.com/assurance/environmental/
B112: 97 | C112: Compliance Australia Certification Services Pty Ltd granted certification to BSSD in Jun 2012 & ISD in Dec 2011 of Environmental Management Systems under ISO 9001-2015 | D112: Waste-water via Sewer | E112: Sunshine Coast Regional Council | F112: Various | G112: N/A | H112: N/A | I112: N/A | J112: N/A | K112: Yes | L112: Yes | M112: Yes | N112: CACS | O112: No | P112: N/A | Q112: http://www.unitywater.com/About-us/Participation-agreement.aspx & http://www.unitywater.com/media/scripts/doc_download.aspx?did=581 & http://www.saiglobal.com/assurance/environmental/
B113: 98 | C113: Customer Satisfaction: Customer Satisfaction Index (from monthly survey by survey agency) | D113: Drinking water | E113: Moreton Bay Regional Council | F113: Max rating of 5.1 out of 10.0 per month | G113: N/A | H113: N/A | I113: N/A | J113: Yes | K113: Yes | L113: Yes | M113: Yes | N113: Internal | O113: No | P113: N/A | Q113: ..\Our Supporting Info\Service Standards\May 2012 Performance Report for June Board (A841417).docx
B114: 99 | C114: Customer Satisfaction: Customer Satisfaction Index (from monthly survey by survey agency) | D114: Waste-water via Sewer | E114: Moreton Bay Regional Council | F114: Max rating of 5.1 out of 10.0 per month | G114: N/A | H114: N/A | I114: N/A | J114: Yes | K114: Yes | L114: Yes | M114: Yes | N114: Internal | O114: No | P114: N/A | Q114: ..\Our Supporting Info\Service Standards\May 2012 Performance Report for June Board (A841417).docx
B115: 100 | C115: Customer Satisfaction: Customer Satisfaction Index (from monthly survey by survey agency) | D115: Drinking water | E115: Sunshine Coast Regional Council | F115: Max rating of 5.1 out of 10.0 per month | G115: N/A | H115: N/A | I115: N/A | J115: Yes | K115: Yes | L115: Yes | M115: Yes | N115: Internal | O115: No | P115: N/A | Q115: ..\Our Supporting Info\Service Standards\May 2012 Performance Report for June Board (A841417).docx
B116: 101 | C116: Customer Satisfaction: Customer Satisfaction Index (from monthly survey by survey agency) | D116: Waste-water via Sewer | E116: Sunshine Coast Regional Council | F116: Max rating of 5.1 out of 10.0 per month | G116: N/A | H116: N/A | I116: N/A | J116: Yes | K116: Yes | L116: Yes | M116: Yes | N116: Internal | O116: No | P116: N/A | Q116: ..\Our Supporting Info\Service Standards\May 2012 Performance Report for June Board (A841417).docx
B117: 102 | C117: Customer Satisfaction: Customer Complaints / Compliments to EWOQ | D117: Drinking water | E117: Moreton Bay Regional Council | F117: Max count of 0 per month | G117: N/A | H117: N/A | I117: N/A | J117: Yes | K117: Yes | L117: Yes | M117: Yes | N117: Internal & EWOQ | O117: No | P117: N/A | Q117: ..\Our Supporting Info\Service Standards\May 2012 Performance Report for June Board (A841417).docx
B118: 103 | C118: Customer Satisfaction: Customer Complaints / Compliments to EWOQ | D118: Waste-water via Sewer | E118: Moreton Bay Regional Council | F118: Max count of 0 per month | G118: N/A | H118: N/A | I118: N/A | J118: Yes | K118: Yes | L118: Yes | M118: Yes | N118: Internal & EWOQ | O118: No | P118: N/A | Q118: ..\Our Supporting Info\Service Standards\May 2012 Performance Report for June Board (A841417).docx
B119: 104 | C119: Customer Satisfaction: Customer Complaints / Compliments to EWOQ | D119: Drinking water | E119: Sunshine Coast Regional Council | F119: Max count of 0 per month | G119: N/A | H119: N/A | I119: N/A | J119: Yes | K119: Yes | L119: Yes | M119: Yes | N119: Internal & EWOQ | O119: No | P119: N/A | Q119: ..\Our Supporting Info\Service Standards\May 2012 Performance Report for June Board (A841417).docx
B120: 105 | C120: Customer Satisfaction: Customer Complaints / Compliments to EWOQ | D120: Waste-water via Sewer | E120: Sunshine Coast Regional Council | F120: Max count of 0 per month | G120: N/A | H120: N/A | I120: N/A | J120: Yes | K120: Yes | L120: Yes | M120: Yes | N120: Internal & EWOQ | O120: No | P120: N/A | Q120: ..\Our Supporting Info\Service Standards\May 2012 Performance Report for June Board (A841417).docx
B121: 106 | C121: Customer Satisfaction: Customer Contact | D121: Drinking water | E121: Moreton Bay Regional Council | F121: Max minutes of 6:00 per event | G121: N/A | H121: N/A | I121: N/A | J121: Yes | K121: Yes | L121: Yes | M121: Yes | N121: Internal | O121: No | P121: N/A | Q121: ..\Our Supporting Info\Service Standards\May 2012 Performance Report for June Board (A841417).docx
B122: 107 | C122: Customer Satisfaction: Customer Contact | D122: Waste-water via Sewer | E122: Moreton Bay Regional Council | F122: Max minutes of 6:00 per event | G122: N/A | H122: N/A | I122: N/A | J122: Yes | K122: Yes | L122: Yes | M122: Yes | N122: Internal | O122: No | P122: N/A | Q122: ..\Our Supporting Info\Service Standards\May 2012 Performance Report for June Board (A841417).docx
B123: 108 | C123: Customer Satisfaction: Customer Contact | D123: Drinking water | E123: Sunshine Coast Regional Council | F123: Max minutes of 6:00 per event | G123: N/A | H123: N/A | I123: N/A | J123: Yes | K123: Yes | L123: Yes | M123: Yes | N123: Internal | O123: No | P123: N/A | Q123: ..\Our Supporting Info\Service Standards\May 2012 Performance Report for June Board (A841417).docx
B124: 109 | C124: Customer Satisfaction: Customer Contact | D124: Waste-water via Sewer | E124: Sunshine Coast Regional Council | F124: Max minutes of 6:00 per event | G124: N/A | H124: N/A | I124: N/A | J124: Yes | K124: Yes | L124: Yes | M124: Yes | N124: Internal | O124: No | P124: N/A | Q124: ..\Our Supporting Info\Service Standards\May 2012 Performance Report for June Board (A841417).docx
B125: 110 | C125: Customer Satisfaction: Payment Options (eg Bpay, cash, cheque, EFT, post office, etc) | D125: Drinking water | E125: Moreton Bay Regional Council | F125: Various percentages (%) | G125: N/A | H125: N/A | I125: N/A | J125: Yes | K125: Yes | L125: Yes | M125: Yes | N125: Internal | O125: No | P125: N/A | Q125: ..\Our Supporting Info\Service Standards\May 2012 Performance Report for June Board (A841417).docx
B126: 111 | C126: Customer Satisfaction: Payment Options (eg Bpay, cash, cheque, EFT, post office, etc) | D126: Waste-water via Sewer | E126: Moreton Bay Regional Council | F126: Various percentages (%) | G126: N/A | H126: N/A | I126: N/A | J126: Yes | K126: Yes | L126: Yes | M126: Yes | N126: Internal | O126: No | P126: N/A | Q126: ..\Our Supporting Info\Service Standards\May 2012 Performance Report for June Board (A841417).docx
B127: 112 | C127: Customer Satisfaction: Payment Options (eg Bpay, cash, cheque, EFT, post office, etc) | D127: Drinking water | E127: Sunshine Coast Regional Council | F127: Various percentages (%) | G127: N/A | H127: N/A | I127: N/A | J127: Yes | K127: Yes | L127: Yes | M127: Yes | N127: Internal | O127: No | P127: N/A | Q127: ..\Our Supporting Info\Service Standards\May 2012 Performance Report for June Board (A841417).docx
B128: 113 | C128: Customer Satisfaction: Payment Options (eg Bpay, cash, cheque, EFT, post office, etc) | D128: Waste-water via Sewer | E128: Sunshine Coast Regional Council | F128: Various percentages (%) | G128: N/A | H128: N/A | I128: N/A | J128: Yes | K128: Yes | L128: Yes | M128: Yes | N128: Internal | O128: No | P128: N/A | Q128: ..\Our Supporting Info\Service Standards\May 2012 Performance Report for June Board (A841417).docx
B129: 114 | C129: Integrated Whole of Region Business: Interruptions to Water Supply | D129: Drinking water | E129: Moreton Bay Regional Council | F129: Max count of 255 per year | G129: N/A | H129: N/A | I129: N/A | J129: Yes | K129: Yes | L129: Yes | M129: Yes | N129: Internal | O129: No | P129: N/A | Q129: ..\Our Supporting Info\Service Standards\May 2012 Performance Report for June Board (A841417).docx
B130: 115 | C130: Integrated Whole of Region Business: Interruptions to Water Supply | D130: Drinking water | E130: Sunshine Coast Regional Council | F130: Max count of 255 per year | G130: N/A | H130: N/A | I130: N/A | J130: Yes | K130: Yes | L130: Yes | M130: Yes | N130: Internal | O130: No | P130: N/A | Q130: ..\Our Supporting Info\Service Standards\May 2012 Performance Report for June Board (A841417).docx
B131: 116 | C131: Integrated Whole of Region Business: Dry Weather Sewerage Overflows / 100km Main | D131: Waste-water via Sewer | E131: Moreton Bay Regional Council | F131: Max ratio of 1.3 per month | G131: N/A | H131: N/A | I131: N/A | J131: Yes | K131: Yes | L131: Yes | M131: Yes | N131: Internal | O131: No | P131: N/A | Q131: ..\Our Supporting Info\Service Standards\May 2012 Performance Report for June Board (A841417).docx
B132: 117 | C132: Integrated Whole of Region Business: Dry Weather Sewerage Overflows / 100km Main | D132: Waste-water via Sewer | E132: Sunshine Coast Regional Council | F132: Max ratio of 1.3 per month | G132: N/A | H132: N/A | I132: N/A | J132: Yes | K132: Yes | L132: Yes | M132: Yes | N132: Internal | O132: No | P132: N/A | Q132: ..\Our Supporting Info\Service Standards\May 2012 Performance Report for June Board (A841417).docx
B133: 118 | C133: Integrated Whole of Region Business: Breaks, Bursts & Leaks / 100km Water Main | D133: Drinking water | E133: Moreton Bay Regional Council | F133: Max ratio of 7.3 per year | G133: N/A | H133: N/A | I133: N/A | J133: Yes | K133: Yes | L133: Yes | M133: Yes | N133: Internal | O133: No | P133: N/A | Q133: ..\Our Supporting Info\Service Standards\May 2012 Performance Report for June Board (A841417).docx
B134: 119 | C134: Integrated Whole of Region Business: Breaks, Bursts & Leaks / 100km Water Main | D134: Drinking water | E134: Sunshine Coast Regional Council | F134: Max ratio of 7.3 per year | G134: N/A | H134: N/A | I134: N/A | J134: Yes | K134: Yes | L134: Yes | M134: Yes | N134: Internal | O134: No | P134: N/A | Q134: ..\Our Supporting Info\Service Standards\May 2012 Performance Report for June Board (A841417).docx
B135: 120 | C135: Integrated Whole of Region Business: Real Losses | D135: Drinking water | E135: Moreton Bay Regional Council | F135: Max ratio of 66 per year | G135: N/A | H135: N/A | I135: N/A | J135: Yes | K135: Yes | L135: Yes | M135: Yes | N135: Internal | O135: No | P135: N/A | Q135: ..\Our Supporting Info\Service Standards\May 2012 Performance Report for June Board (A841417).docx
B136: 121 | C136: Integrated Whole of Region Business: Real Losses | D136: Drinking water | E136: Sunshine Coast Regional Council | F136: Max ratio of 66 per year | G136: N/A | H136: N/A | I136: N/A | J136: Yes | K136: Yes | L136: Yes | M136: Yes | N136: Internal | O136: No | P136: N/A | Q136: ..\Our Supporting Info\Service Standards\May 2012 Performance Report for June Board (A841417).docx
B137: 122 | C137: Sustainable Value & Growth: Environmental Audits | D137: Drinking water | E137: Moreton Bay Regional Council | F137: Min count of 24 per month | G137: N/A | H137: N/A | I137: N/A | J137: Yes | K137: Yes | L137: Yes | M137: Yes | N137: Internal | O137: No | P137: N/A | Q137: ..\Our Supporting Info\Service Standards\May 2012 Performance Report for June Board (A841417).docx
B138: 123 | C138: Sustainable Value & Growth: Environmental Audits | D138: Waste-water via Sewer | E138: Moreton Bay Regional Council | F138: Min count of 24 per month | G138: N/A | H138: N/A | I138: N/A | J138: Yes | K138: Yes | L138: Yes | M138: Yes | N138: Internal | O138: No | P138: N/A | Q138: ..\Our Supporting Info\Service Standards\May 2012 Performance Report for June Board (A841417).docx
B139: 124 | C139: Sustainable Value & Growth: Environmental Audits | D139: Drinking water | E139: Sunshine Coast Regional Council | F139: Min count of 24 per month | G139: N/A | H139: N/A | I139: N/A | J139: Yes | K139: Yes | L139: Yes | M139: Yes | N139: Internal | O139: No | P139: N/A | Q139: ..\Our Supporting Info\Service Standards\May 2012 Performance Report for June Board (A841417).docx
B140: 125 | C140: Sustainable Value & Growth: Environmental Audits | D140: Waste-water via Sewer | E140: Sunshine Coast Regional Council | F140: Min count of 24 per month | G140: N/A | H140: N/A | I140: N/A | J140: Yes | K140: Yes | L140: Yes | M140: Yes | N140: Internal | O140: No | P140: N/A | Q140: ..\Our Supporting Info\Service Standards\May 2012 Performance Report for June Board (A841417).docx
B141: 126 | C141: Sustainable Value & Growth: Dry Weather Spills Reported to DERM | D141: Waste-water via Sewer | E141: Moreton Bay Regional Council | F141: Max count of 0 per month | G141: N/A | H141: N/A | I141: N/A | J141: Yes | K141: Yes | L141: Yes | M141: Yes | N141: Internal & DERM | O141: No | P141: N/A | Q141: ..\Our Supporting Info\Service Standards\May 2012 Performance Report for June Board (A841417).docx
B142: 127 | C142: Sustainable Value & Growth: Dry Weather Spills Reported to DERM | D142: Waste-water via Sewer | E142: Sunshine Coast Regional Council | F142: Max count of 0 per month | G142: N/A | H142: N/A | I142: N/A | J142: Yes | K142: Yes | L142: Yes | M142: Yes | N142: Internal & DERM | O142: No | P142: N/A | Q142: ..\Our Supporting Info\Service Standards\May 2012 Performance Report for June Board (A841417).docx
B143: 128 | C143: Sustainable Value & Growth: Sewerage Odour Complaints | D143: Waste-water via Sewer | E143: Moreton Bay Regional Council | F143: Max count of 65 per month | G143: N/A | H143: N/A | I143: N/A | J143: Yes | K143: Yes | L143: Yes | M143: Yes | N143: Internal & DERM | O143: No | P143: N/A | Q143: ..\Our Supporting Info\Service Standards\May 2012 Performance Report for June Board (A841417).docx
B144: 129 | C144: Sustainable Value & Growth: Sewerage Odour Complaints | D144: Waste-water via Sewer | E144: Sunshine Coast Regional Council | F144: Max count of 65 per month | G144: N/A | H144: N/A | I144: N/A | J144: Yes | K144: Yes | L144: Yes | M144: Yes | N144: Internal & DERM | O144: No | P144: N/A | Q144: ..\Our Supporting Info\Service Standards\May 2012 Performance Report for June Board (A841417).docx
B145: 130 | C145: Sustainable Value & Growth: Drinking Water Quality Compliance | D145: Drinking water | E145: Moreton Bay Regional Council | F145: Min percentage of 98.0% per month | G145: N/A | H145: N/A | I145: N/A | J145: Yes | K145: Yes | L145: Yes | M145: Yes | N145: Internal & DERM | O145: No | P145: N/A | Q145: ..\Our Supporting Info\Service Standards\May 2012 Performance Report for June Board (A841417).docx
B146: 131 | C146: Sustainable Value & Growth: Drinking Water Quality Compliance | D146: Drinking water | E146: Sunshine Coast Regional Council | F146: Min percentage of 98.0% per month | G146: N/A | H146: N/A | I146: N/A | J146: Yes | K146: Yes | L146: Yes | M146: Yes | N146: Internal & DERM | O146: No | P146: N/A | Q146: ..\Our Supporting Info\Service Standards\May 2012 Performance Report for June Board (A841417).docx
B147: 132 | C147: Sustainable Value & Growth: Sewerage Treatment Plant Compliance | D147: Waste-water via Sewer | E147: Moreton Bay Regional Council | F147: Min percentage of 98.0% per month | G147: N/A | H147: N/A | I147: N/A | J147: Yes | K147: Yes | L147: Yes | M147: Yes | N147: Internal & DERM | O147: No | P147: N/A | Q147: ..\Our Supporting Info\Service Standards\May 2012 Performance Report for June Board (A841417).docx
B148: 133 | C148: Sustainable Value & Growth: Sewerage Treatment Plant Compliance | D148: Waste-water via Sewer | E148: Sunshine Coast Regional Council | F148: Min percentage of 98.0% per month | G148: N/A | H148: N/A | I148: N/A | J148: Yes | K148: Yes | L148: Yes | M148: Yes | N148: Internal & DERM | O148: No | P148: N/A | Q148: ..\Our Supporting Info\Service Standards\May 2012 Performance Report for June Board (A841417).docx
B149: 134 | C149: Operational Watchlist: 3rd Party Property Damage Insurance Claims | D149: Drinking water | E149: Moreton Bay Regional Council | F149: Max count per month | G149: N/A | H149: N/A | I149: N/A | J149: Yes | K149: Yes | L149: Yes | M149: Yes | N149: Internal | O149: No | P149: N/A | Q149: ..\Our Supporting Info\Service Standards\May 2012 Performance Report for June Board (A841417).docx
B150: 135 | C150: Operational Watchlist: 3rd Party Property Damage Insurance Claims | D150: Waste-water via Sewer | E150: Moreton Bay Regional Council | F150: Max count per month | G150: N/A | H150: N/A | I150: N/A | J150: Yes | K150: Yes | L150: Yes | M150: Yes | N150: Internal | O150: No | P150: N/A | Q150: ..\Our Supporting Info\Service Standards\May 2012 Performance Report for June Board (A841417).docx
B151: 136 | C151: Operational Watchlist: 3rd Party Property Damage Insurance Claims | D151: Drinking water | E151: Sunshine Coast Regional Council | F151: Max count per month | G151: N/A | H151: N/A | I151: N/A | J151: Yes | K151: Yes | L151: Yes | M151: Yes | N151: Internal | O151: No | P151: N/A | Q151: ..\Our Supporting Info\Service Standards\May 2012 Performance Report for June Board (A841417).docx
B152: 137 | C152: Operational Watchlist: 3rd Party Property Damage Insurance Claims | D152: Waste-water via Sewer | E152: Sunshine Coast Regional Council | F152: Max count per month | G152: N/A | H152: N/A | I152: N/A | J152: Yes | K152: Yes | L152: Yes | M152: Yes | N152: Internal | O152: No | P152: N/A | Q152: ..\Our Supporting Info\Service Standards\May 2012 Performance Report for June Board (A841417).docx
B153: 138 | C153: Operational Watchlist: Leak Rebates | D153: Drinking water | E153: Moreton Bay Regional Council | F153: Max value ($) per year | G153: N/A | H153: N/A | I153: N/A | J153: Yes | K153: Yes | L153: Yes | M153: Yes | N153: Internal | O153: No | P153: N/A | Q153: ..\Our Supporting Info\Service Standards\May 2012 Performance Report for June Board (A841417).docx
B154: 139 | C154: Recycled water available to customers | D154: Other Core Water Services | E154: Sunshine Coast Regional Council | F154: Min percentage of 95% of time | G154: N/A | H154: N/A | I154: N/A | J154: Yes | K154: Yes | L154: Yes | M154: Yes | N154: Internal | O154: No | P154: N/A | Q154: ..\Our Supporting Info\Service Standards\RE QCA Info Needed re Customer Service Standards related KPIs.msg | AH154: =AG154 -> 
B155: 140 | C155: Compliance with recycled water quality (e coli): Class A+ | D155: Other Core Water Services | E155: Moreton Bay Regional Council | F155: Max ratio of 1cfu per 100mL | G155: N/A | H155: N/A | I155: N/A | J155: Yes | K155: Yes | L155: Yes | M155: Yes | N155: Internal | O155: No | P155: N/A | Q155: ..\Our Supporting Info\Service Standards\RE QCA Info Needed re Customer Service Standards related KPIs.msg
B156: 141 | C156: Compliance with recycled water quality (e coli): Class A+ | D156: Other Core Water Services | E156: Sunshine Coast Regional Council | F156: Max ratio of 1cfu per 100mL | G156: N/A | H156: N/A | I156: N/A | J156: Yes | K156: Yes | L156: Yes | M156: Yes | N156: Internal | O156: No | P156: N/A | Q156: ..\Our Supporting Info\Service Standards\RE QCA Info Needed re Customer Service Standards related KPIs.msg
B157: 142 | C157: Compliance with recycled water quality (e coli): Class A | D157: Other Core Water Services | E157: Moreton Bay Regional Council | F157: Max ratio of 10cfu per 100mL | G157: N/A | H157: N/A | I157: N/A | J157: Yes | K157: Yes | L157: Yes | M157: Yes | N157: Internal | O157: No | P157: N/A | Q157: ..\Our Supporting Info\Service Standards\RE QCA Info Needed re Customer Service Standards related KPIs.msg
B158: 143 | C158: Compliance with recycled water quality (e coli): Class A | D158: Other Core Water Services | E158: Sunshine Coast Regional Council | F158: Max ratio of 10cfu per 100mL | G158: N/A | H158: N/A | I158: N/A | J158: Yes | K158: Yes | L158: Yes | M158: Yes | N158: Internal | O158: No | P158: N/A | Q158: ..\Our Supporting Info\Service Standards\RE QCA Info Needed re Customer Service Standards related KPIs.msg
B159: 144 | C159: Compliance with recycled water quality (e coli): Class B | D159: Other Core Water Services | E159: Moreton Bay Regional Council | F159: Max ratio of 100cfu per 100mL | G159: N/A | H159: N/A | I159: N/A | J159: Yes | K159: Yes | L159: Yes | M159: Yes | N159: Internal | O159: No | P159: N/A | Q159: ..\Our Supporting Info\Service Standards\RE QCA Info Needed re Customer Service Standards related KPIs.msg
B160: 145 | C160: Compliance with recycled water quality (e coli): Class B | D160: Other Core Water Services | E160: Sunshine Coast Regional Council | F160: Max ratio of 100cfu per 100mL | G160: N/A | H160: N/A | I160: N/A | J160: Yes | K160: Yes | L160: Yes | M160: Yes | N160: Internal | O160: No | P160: N/A | Q160: ..\Our Supporting Info\Service Standards\RE QCA Info Needed re Customer Service Standards related KPIs.msg

Sheet 5.4.1
B4: ='Business Details'!$B$4 -> SEQ INTERIM REVENUE MONITORING - INFORMATION REQUIREMENT TEMPLATE
B7: =CONCATENATE("Demand Details for ",'Business Details'!D9," - Geographic Areas") -> Demand Details for Northern SEQ Distributor-Retailer Authority (Trading as Unitywater ABN: 89 791 717 472) - Geographic Areas
B8: =CONCATENATE("Reporting year = ",AnalysisYear) -> Reporting year = 2014
F11: ='5.2.1'!F11 -> For Year Ending 30 June: | M11: Estimated annual | O11: =CONCATENATE("For Year Ending 30 June ",AnalysisYear) -> For Year Ending 30 June 2014
C12: Revenue Source | F12: ='5.1.1'!F13 -> 2009 | G12: ='5.1.1'!G13 -> 2010 | H12: ='5.1.1'!H13 -> 2011 | I12: ='5.1.1'!I13 -> 2012 | J12: ='5.1.1'!J13 -> 2013 | K12: ='5.1.1'!K13 -> 2014 | L12: ='5.1.1'!L13 -> 2015 | M12: =CONCATENATE("increase post ",L12) -> increase post 2015 | O12: Supporting Documents | AH12: =AG12 -> 
B14: ="Geographical Area 1 - "&'Business Details'!$D$12 -> Geographical Area 1 - Moreton Bay Regional Council
B16: WATER
C17: Drinking Water:
C18: Residential Demand | E18: ML | G18: 21329.078 | H18: 19590.20542 | I18: 20983.1 | J18: 22271.70202 | K18: 23652.32365 | L18: 25006.95164 | M18: 0.01972179333 | O18: 2013-15 - Utility Revenue Budget A1333878 20/05/2013
C19: Non-residential Demand | E19: ML | G19: 3412.65248 | H19: 2402.512735 | I19: 3056.7 | J19: 3657.24636 | K19: 3771.616279 | L19: 3861.929586 | M19: 0.02060799446 | O19: 2013-15 - Utility Revenue Budget A1333878 20/05/2013
C20: Other Demand (Inc Commercially Negotiated ) | E20: ML | G20: 0 | H20: 0 | I20: 1071.383 | J20: 959.808 | M20: 0 | O20: 2013-15 - Utility Revenue Budget A1333878 20/05/2013
C21: Non-revenue water | E21: ML | G21: 0 | H21: 0 | I21: 3481.887 | J21: 3061.139825 | K21: 3016.307736 | L21: 3041.8309 | M21: -0.02231316932 | O21: 2013-15 - Utility Revenue Budget A1333878 20/05/2013
C22: Other core water services: | E22: Number of customers | G22: 0 | H22: 0 | I22: 0 | J22: 3472.8512 | K22: 3555.852344 | L22: 3640.837215 | M22: 0.0239 | O22: Growth rate of 2.39% based on medium series dwelling growth (OESR)
B23: Total Water | E23: ML | F23: 0 | G23: 24741.73048 | H23: 21992.71815 | I23: 28593.07 | J23: 29949.89621 | K23: 30440.24767 | L23: 31910.71213 | M23: 0.01631576032
B25: WASTEWATER
C26: Wastewater via sewer | E26: Number of connections | I26: 127682 | J26: 130516.5404 | K26: 133641.8266 | L26: 136841.9495 | M26: 0.02060757239 | O26: 2013-15 - Utility Revenue Budget A1333878 20/05/2013
C27: Trade waste | E27: Number of customers | I27: 1142 | J27: 1160 | K27: 1187.724 | L27: 1216.110604 | M27: 0.02060757239 | O27: 2014/15 growth rate of 2.39% based on medium series dwelling growth (OESR)
C28: Other core wastewater services | E28: Number of customers | J28: 1460.0768 | K28: 1494.972636 | L28: 1530.702482 | M28: 0.0239 | O28: Growth rate of 2.39% based on medium series dwelling growth (OESR)
B29: Total Wastewater | E29: [specify] | F29: 0 | G29: 0 | H29: 0 | I29: 128824 | J29: 133136.6172 | K29: 136324.5233 | L29: 139588.7625 | M29: 0.02060757239
B31: NON-REGULATED
C32: Aggregate non-regulated services
F36: =F$11 -> For Year Ending 30 June: | M36: =M$11 -> Estimated annual | O36: =CONCATENATE("For Year Ending 30 June ",AnalysisYear) -> For Year Ending 30 June 2014
C37: =C12 -> Revenue Source | F37: =F$12 -> 2009 | G37: 2010 | H37: 2011 | I37: 2012 | J37: 2013 | K37: 2014 | L37: 2015 | M37: increase post 2015 | O37: Supporting Documents | AH37: =AG37 -> 
B39: ="Geographical Area 2 - "&'Business Details'!$D$13 -> Geographical Area 2 - Sunshine Coast Regional Council
B41: =B16 -> WATER
C42: Drinking Water:
C43: Residential Demand | E43: ML | G43: 25817.22484 | H43: 20160.13877 | I43: 20310.6 | J43: 21019.08552 | K43: 22319.3352 | L43: 23659.43986 | M43: 0.02626203405 | O43: 2013-15 - Utility Revenue Budget A1333878 20/05/2013
C44: Non-residential Demand | E44: ML | G44: 4130.755974 | H44: 4582.818102 | I44: 4447.7 | J44: 6010.289448 | K44: 6142.882264 | L44: 6284.416397 | M44: 0.02271453784 | O44: 2013-15 - Utility Revenue Budget A1333878 20/05/2013
C45: Other Demand (Inc Commercially Negotiated ) | E45: ML | G45: 0 | H45: 0 | I45: 0 | J45: 0 | K45: 0 | L45: 0 | M45: 0
C46: Non-revenue water | E46: ML | G46: 0 | H46: 0 | I46: 3474.12 | J46: 3512.291662 | K46: 3419.459946 | L46: 3414.740208 | M46: -0.02549488332 | O46: 2013-15 - Utility Revenue Budget A1333878 20/05/2013
C47: =C22 -> Other core water services: | E47: Number of customers | G47: 0 | H47: 0 | I47: 0 | J47: 2490.1488 | K47: 2547.422222 | L47: 2606.012934 | M47: 0.023 | O47: 2.30% based on medium series dwelling growth (OESR)
B48: =B23 -> Total Water | E48: ML | F48: 0 | G48: 29947.98081 | H48: 24742.95687 | I48: 28232.42 | J48: 30541.66663 | K48: 31881.67741 | L48: 33358.59647 | M48: 0.02105840153
B50: =B25 -> WASTEWATER
C51: =C26 -> Wastewater via sewer | E51: Number of connections | I51: 131717 | J51: 134311.8249 | K51: 137406.4158 | L51: 140572.3072 | M51: 0.02271284862 | O51: 2013-15 - Utility Revenue Budget A1333878 20/05/2013
C52: =C27 -> Trade waste | E52: Number of customers | I52: 1383 | J52: 1912 | K52: 1955.976 | L52: 2000.963448 | M52: 0.02271284862 | O52: 2014/15 growth rate of 2.30% based on medium series dwelling growth (OESR)
C53: =C28 -> Other core wastewater services | E53: Number of customers | J53: 1046.9232 | K53: 1071.002434 | L53: 1095.63549 | M53: 0.023 | O53: 2.30% based on medium series dwelling growth (OESR)
B54: =B29 -> Total Wastewater | E54: Connections/Customers | F54: 0 | G54: 0 | H54: 0 | I54: 133100 | J54: 137270.7481 | K54: 140433.3943 | L54: 143668.9061 | M54: 0.02271284862
B56: =B31 -> NON-REGULATED
C57: =C32 -> Aggregate non-regulated services | E57: Too many atomistic services
F61: =F$11 -> For Year Ending 30 June: | M61: =M$11 -> Estimated annual | O61: =CONCATENATE("For Year Ending 30 June ",AnalysisYear) -> For Year Ending 30 June 2014
C62: =C37 -> Revenue Source | F62: =F$12 -> 2009 | G62: 2010 | H62: 2011 | I62: 2012 | J62: 2013 | K62: 2014 | L62: 2015 | M62: increase post 2015 | O62: Supporting Documents | AH62: =AG62 -> 
B64: ="Geographical Area 3 - "&'Business Details'!$D$14 -> Geographical Area 3 - N/A
B66: =B41 -> WATER
C67: Drinking Water:
C68: Residential Demand | E68: ML
C69: Non-residential Demand | E69: ML
C70: Other Demand (Inc Commercially Negotiated ) | E70: ML
C71: Non-revenue water | E71: ML
C72: =C47 -> Other core water services: | E72: =E47 -> Number of customers
B73: =B48 -> Total Water | E73: =E48 -> ML | F73: =SUM(F68:F72) -> 0 | G73: 0 | H73: 0 | I73: 0 | J73: 0 | K73: 0 | L73: =SUM(L68:L72) -> 0
B75: =B50 -> WASTEWATER
C76: =C51 -> Wastewater via sewer | E76: [specify]
C77: =C52 -> Trade waste | E77: [specify]
C78: =C53 -> Other core wastewater services | E78: [specify]
B79: =B54 -> Total Wastewater | E79: [specify] | F79: =SUM(F76:F78) -> 0 | G79: 0 | H79: 0 | I79: 0 | J79: 0 | K79: 0 | L79: =SUM(L76:L78) -> 0
B81: =B56 -> NON-REGULATED
C82: =C57 -> Aggregate non-regulated services | E82: [specify]
F86: =F$11 -> For Year Ending 30 June: | M86: =M$11 -> Estimated annual | O86: =CONCATENATE("For Year Ending 30 June ",AnalysisYear) -> For Year Ending 30 June 2014
C87: =C62 -> Revenue Source | F87: =F$12 -> 2009 | G87: 2010 | H87: 2011 | I87: 2012 | J87: 2013 | K87: 2014 | L87: 2015 | M87: increase post 2015 | O87: Supporting Documents | AH87: =AG87 -> 
B89: ="Geographical Area 4 - "&'Business Details'!$D$15 -> Geographical Area 4 - N/A
B91: =B66 -> WATER
C92: Drinking Water:
C93: Residential Demand | E93: ML
C94: Non-residential Demand | E94: ML
C95: Other Demand (Inc Commercially Negotiated ) | E95: ML
C96: Non-revenue water | E96: ML
C97: =C72 -> Other core water services: | E97: =E72 -> Number of customers
B98: =B73 -> Total Water | E98: =E73 -> ML | F98: =SUM(F93:F97) -> 0 | G98: 0 | H98: 0 | I98: 0 | J98: 0 | K98: 0 | L98: =SUM(L93:L97) -> 0
B100: =B75 -> WASTEWATER
C101: =C76 -> Wastewater via sewer | E101: [specify]
C102: =C77 -> Trade waste | E102: [specify]
C103: =C78 -> Other core wastewater services | E103: [specify]
B104: =B79 -> Total Wastewater | E104: [specify] | F104: =SUM(F101:F103) -> 0 | G104: 0 | H104: 0 | I104: 0 | J104: 0 | K104: 0 | L104: =SUM(L101:L103) -> 0
B106: =B81 -> NON-REGULATED
C107: =C82 -> Aggregate non-regulated services | E107: [specify]
F111: =F$11 -> For Year Ending 30 June: | M111: =M$11 -> Estimated annual | O111: =CONCATENATE("For Year Ending 30 June ",AnalysisYear) -> For Year Ending 30 June 2014
C112: =C87 -> Revenue Source | F112: =F$12 -> 2009 | G112: 2010 | H112: 2011 | I112: 2012 | J112: 2013 | K112: 2014 | L112: 2015 | M112: increase post 2015 | O112: Supporting Documents | AH112: =AG112 -> 
B114: ="Geographical Area 5 - "&'Business Details'!$D$16 -> Geographical Area 5 - N/A
B116: =B91 -> WATER
C117: Drinking Water:
C118: Residential Demand | E118: ML
C119: Non-residential Demand | E119: ML
C120: Other Demand (Inc Commercially Negotiated ) | E120: ML
C121: Non-revenue water | E121: ML
C122: =C97 -> Other core water services: | E122: =E97 -> Number of customers
B123: =B98 -> Total Water | E123: =E98 -> ML | F123: =SUM(F118:F122) -> 0 | G123: 0 | H123: 0 | I123: 0 | J123: 0 | K123: 0 | L123: =SUM(L118:L122) -> 0
B125: =B100 -> WASTEWATER
C126: =C101 -> Wastewater via sewer | E126: [specify]
C127: =C102 -> Trade waste | E127: [specify]
C128: =C103 -> Other core wastewater services | E128: [specify]
B129: =B104 -> Total Wastewater | E129: [specify] | F129: =SUM(F126:F128) -> 0 | G129: 0 | H129: 0 | I129: 0 | J129: 0 | K129: 0 | L129: =SUM(L126:L128) -> 0
B131: =B106 -> NON-REGULATED
C132: =C107 -> Aggregate non-regulated services | E132: [specify]
F136: =F$11 -> For Year Ending 30 June: | M136: =M$11 -> Estimated annual | O136: =CONCATENATE("For Year Ending 30 June ",AnalysisYear) -> For Year Ending 30 June 2014
C137: =C112 -> Revenue Source | F137: =F$12 -> 2009 | G137: 2010 | H137: 2011 | I137: 2012 | J137: 2013 | K137: 2014 | L137: 2015 | M137: increase post 2015 | O137: Supporting Documents | AH137: =AG137 -> 
B139: Total
B141: =B116 -> WATER
C142: Drinking Water:
C143: Residential Demand | E143: ML | F143: =F18+F43+F68+F93+F118 -> 0 | G143: 47146.30284 | H143: 39750.34418 | I143: 41293.7 | J143: 43290.78754 | K143: 45971.65885 | L143: =L18+L43+L68+L93+L118 -> 48666.3915 | M143: 0.02293713697
C144: Non-residential Demand | E144: ML | F144: 0 | G144: 7543.408454 | H144: 6985.330837 | I144: 7504.4 | J144: 9667.535808 | K144: 9914.498543 | L144: =L19+L44+L69+L94+L119 -> 10146.34598 | M144: 0.02191631904
C145: Other Demand (Inc Commercially Negotiated ) | E145: ML | F145: 0 | G145: 0 | H145: 0 | I145: 1071.383 | J145: 959.808 | K145: 0 | L145: =L20+L45+L70+L95+L120 -> 0 | M145: 0
C146: Non-revenue water | E146: ML | F146: 0 | G146: 0 | H146: 0 | I146: 6956.007 | J146: 6573.431487 | K146: 6435.767682 | L146: =L21+L46+L71+L96+L121 -> 6456.571108 | M146: -0.02398686017
C147: =C122 -> Other core water services: | E147: =E122 -> Number of customers | F147: 0 | G147: 0 | H147: 0 | I147: 0 | J147: 5963 | K147: 6103.274566 | L147: =L22+L47+L72+L97+L122 -> 6246.850148 | M147: 0
B148: =B123 -> Total Water | E148: =E123 -> ML | F148: =SUM(F143:F147) -> 0 | G148: 54689.71129 | H148: 46735.67502 | I148: 56825.49 | J148: 66454.56284 | K148: 68425.19964 | L148: =SUM(L143:L147) -> 71516.15874 | M148: 0.018758989
B150: =B125 -> WASTEWATER
C151: =C126 -> Wastewater via sewer | E151: [specify] | F151: =F26+F51+F76+F101+F126 -> 0 | G151: 0 | H151: 0 | I151: 259399 | J151: 264828.3653 | K151: 271048.2425 | L151: =L26+L51+L76+L101+L126 -> 277414.2567 | M151: 0.02167837807
C152: =C127 -> Trade waste | E152: [specify] | F152: 0 | G152: 0 | H152: 0 | I152: 2525 | J152: 3072 | K152: 3143.7 | L152: =L27+L52+L77+L102+L127 -> 3217.074052 | M152: 0.02167837807
C153: =C128 -> Other core wastewater services | E153: [specify] | F153: 0 | G153: 0 | H153: 0 | I153: 0 | J153: 2507 | K153: 2565.975069 | L153: =L28+L53+L78+L103+L128 -> 2626.337971
B154: =B129 -> Total Wastewater | E154: [specify] | F154: =SUM(F151:F153) -> 0 | G154: 0 | H154: 0 | I154: 261924 | J154: 270407.3653 | K154: 276757.9175 | L154: =SUM(L151:L153) -> 283257.6687 | M154: 0.02167837807
B156: =B131 -> NON-REGULATED
C157: =C132 -> Aggregate non-regulated services | E157: [specify] | F157: =F32+F57+F82+F107+F132 -> 0 | G157: 0 | H157: 0 | I157: 0 | J157: 0 | K157: 0 | L157: =L32+L57+L82+L107+L132 -> 0

Sheet 5.5.1
B4: ='Business Details'!$B$4 -> SEQ INTERIM REVENUE MONITORING - INFORMATION REQUIREMENT TEMPLATE
B7: =CONCATENATE("Opening Asset Base for ",'Business Details'!D9) -> Opening Asset Base for Northern SEQ Distributor-Retailer Authority (Trading as Unitywater ABN: 89 791 717 472)
B8: =CONCATENATE("Reporting year = ",AnalysisYear) -> Reporting year = 2014
F11: Geographic Area 1 | G11: Geographic Area 2 | H11: Geographic Area 3 | I11: Geographic Area 4 | J11: Geographic Area 5
E12: Numeration | F12: ='Business Details'!$D$12 -> Moreton Bay Regional Council | G12: ='Business Details'!$D$13 -> Sunshine Coast Regional Council | H12: ='Business Details'!$D$14 -> N/A | I12: ='Business Details'!$D$15 -> N/A | J12: ='Business Details'!$D$16 -> N/A | K12: Total | M12: Supporting Documents
B14: WRITTEN DOWN VALUE as at 1 July 2008
B16: Total WDV (accounting values) as at 1 July 2008 | E16: $'000 | K16: 2532700.605 | L16: =IF(K16='5.5.1 SD03'!K16,"OK","check") -> check | M16: QCA Unitywater Submission 2011 - FINAL QCA Information Requirements Templates.xls
B19: REGULATORY ASSET BASE VALUES as at 1 July 2008
C20: Water:
C21: Drinking water | E21: $'000 | F21: 496532.7751 | G21: 345004.5065 | H21: 0 | I21: 0 | J21: 0 | K21: 841537.2816 | M21: QCA Unitywater Submission 2012 - Capex RAB Roll Forward.xlsx
C22: Other core water services | E22: $'000 | F22: 13216.47784 | G22: 24051.50133 | H22: 0 | I22: 0 | J22: 0 | K22: 37267.97917
C24: Wastewater:
C25: Wastewater via sewer | E25: $'000 | F25: 584658.1057 | G25: 534710.5554 | H25: 0 | I25: 0 | J25: 0 | K25: 1119368.661 | M25: QCA Unitywater Submission 2012 - Capex RAB Roll Forward.xlsx
C26: Trade waste | E26: $'000 | F26: 15206.74994 | G26: 15925.1256 | H26: 0 | I26: 0 | J26: 0 | K26: 31131.87553
C27: Other core wastewater services | E27: $'000 | F27: 0 | G27: 0 | H27: 0 | I27: 0 | J27: 0 | K27: 0
C29: Non-regulated:
C30: Aggregate non-regulated services | E30: $'000 | F30: 402.891438 | G30: 161.3111606 | H30: 0 | I30: 0 | J30: 0 | K30: 564.2025987 | M30: QCA Unitywater Submission 2012 - Capex RAB Roll Forward.xlsx
B32: Total RAB Value as at 1 July 2008 | E32: $'000 | F32: 1110017 | G32: 919853 | H32: 0 | I32: 0 | J32: 0 | K32: 2029870
B35: Basis for Disaggregated RAB
E36: Is the disaggregated RAB based on the ratio of the RAB advised by the Minister to the audited WDV of the assets? | M36: Yes
E38: If no (i.e. an alternative methodology was used), provide supporting documentation explaining the methodology used.
A109: (Yes/No)
A110: Yes
A111: No

Sheet 5.5.1 SD03
B4: ='Business Details'!$B$4 -> SEQ INTERIM REVENUE MONITORING - INFORMATION REQUIREMENT TEMPLATE | K4: Provide (for each deemed category in section 3.4.2 of the Information Requirements, except for customer groups) details of the opening RAB for 1 July 2008. Entities are also required to allocate the RAB between asset classes. See sections 5.5.1 and 5.6.2 of the Information Requirements.
B5: 5.5.1 SD03 OPENING REGULATORY ASSET BASE as at 1 July 2008
B7: =CONCATENATE("Allocation of Opening RAB for ",'Business Details'!$D$9) -> Allocation of Opening RAB for Northern SEQ Distributor-Retailer Authority (Trading as Unitywater ABN: 89 791 717 472)
B8: =CONCATENATE("Reporting year = ",AnalysisYear) -> Reporting year = 2014
F11: Geographic Area 1 | G11: Geographic Area 2 | H11: Geographic Area 3 | I11: Geographic Area 4 | J11: Geographic Area 5
E12: Numeration | F12: ='Business Details'!$D$12 -> Moreton Bay Regional Council | G12: ='Business Details'!$D$13 -> Sunshine Coast Regional Council | H12: ='Business Details'!$D$14 -> N/A | I12: ='Business Details'!$D$15 -> N/A | J12: ='Business Details'!$D$16 -> N/A | K12: Total | M12: Supporting Documents
B14: WRITTEN DOWN VALUE as at 1 July 2008
B16: Total RAB as at 1 July 2008 | E16: $'000 | K16: =K37+K56+K75+K94+K113+K132 -> 2029870 | L16: =IF(K16='5.5.1'!K16,"OK","check") -> check | M16: See below
B19: REGULATORY ASSET BASE VALUES as at 1 July 2008
B20: Drinking water
B21: ='Business Details'!$D$40 -> Reservoirs | E21: $'000 | F21: 76581.78367 | G21: 29719.24607 | K21: 106301.0297 | M21: QCA Unitywater Submission 2012 - Capex RAB Roll Forward.xlsx
B22: ='Business Details'!$D$41 -> Pump stations | E22: $'000 | F22: 2510.490912 | G22: 3653.718318 | K22: 6164.20923
B23: ='Business Details'!$D$42 -> Treatment | E23: $'000 | F23: 0 | G23: 2.763580363 | K23: 2.763580363
B24: ='Business Details'!$D$43 -> Associated telemetry and control systems | E24: $'000 | F24: 782.9394964 | G24: 264.6579396 | K24: 1047.597436
B25: ='Business Details'!$D$44 -> Meters | E25: $'000 | F25: 15236.14904 | G25: 8691.772371 | K25: 23927.92141
B26: ='Business Details'!$D$45 -> Billing systems | E26: $'000 | F26: 0 | G26: 0 | K26: 0
B27: ='Business Details'!$D$46 -> Corporate systems | E27: $'000 | F27: 0 | G27: 0 | K27: 0
B28: ='Business Details'!$D$47 -> Sundry property, plant and equipment | E28: $'000 | F28: 0 | G28: 243.5249689 | K28: 243.5249689
B29: ='Business Details'!$D$48 -> Land | E29: $'000 | F29: 0 | G29: 11598.34952 | K29: 11598.34952
B30: ='Business Details'!$D$49 -> Building other than infrastructure housing | E30: $'000 | F30: 0 | G30: 797.4630492 | K30: 797.4630492
B31: ='Business Details'!$D$50 -> Distribution infrastructure not included in another category | E31: $'000 | F31: 36345.7901 | G31: 22020.64008 | K31: 58366.43018
B32: ='Business Details'!$D$51 -> Support services | E32: $'000 | F32: 18378.61178 | G32: 520.3714451 | K32: 18898.98322
B33: ='Business Details'!$D$52 -> Mains | E33: $'000 | F33: 346697.0101 | G33: 267491.9991 | K33: 614189.0092
B34: ='Business Details'!$D$53 -> Establishment Costs | E34: $'000 | F34: 0 | G34: 0 | K34: 0
B35: ='Business Details'!$D$54 -> Unallocated cash contribution | E35: $'000 | F35: 0 | G35: 0 | K35: 0
B37: Total RAB Value for Drinking water as at 1 July 2008 | E37: $'000 | F37: 496532.7751 | G37: 345004.5065 | H37: 0 | I37: 0 | J37: 0 | K37: 841537.2816
B39: Other core water services
B40: ='Business Details'!$D$40 -> Reservoirs | E40: $'000 | F40: 0 | G40: 0 | K40: 0 | M40: QCA Unitywater Submission 2012 - Capex RAB Roll Forward.xlsx
B41: ='Business Details'!$D$41 -> Pump stations | E41: $'000 | F41: 0 | G41: 1725.312217 | K41: 1725.312217
B42: ='Business Details'!$D$42 -> Treatment | E42: $'000 | F42: 0 | G42: 13607.5092 | K42: 13607.5092
B43: ='Business Details'!$D$43 -> Associated telemetry and control systems | E43: $'000 | F43: 0 | G43: 0 | K43: 0
B44: ='Business Details'!$D$44 -> Meters | E44: $'000 | F44: 7485.916185 | G44: 0 | K44: 7485.916185
B45: ='Business Details'!$D$45 -> Billing systems | E45: $'000 | F45: 0 | G45: 0 | K45: 0
B46: ='Business Details'!$D$46 -> Corporate systems | E46: $'000 | F46: 0 | G46: 0 | K46: 0
B47: ='Business Details'!$D$47 -> Sundry property, plant and equipment | E47: $'000 | F47: 0 | G47: 0 | K47: 0
B48: ='Business Details'!$D$48 -> Land | E48: $'000 | F48: 0 | G48: 0 | K48: 0
B49: ='Business Details'!$D$49 -> Building other than infrastructure housing | E49: $'000 | F49: 0 | G49: 0 | K49: 0
B50: ='Business Details'!$D$50 -> Distribution infrastructure not included in another category | E50: $'000 | F50: 723.1047972 | G50: 106.0330849 | K50: 829.1378822
B51: ='Business Details'!$D$51 -> Support services | E51: $'000 | F51: 825.3907063 | G51: 23.37008691 | K51: 848.7607932
B52: ='Business Details'!$D$52 -> Mains | E52: $'000 | F52: 4182.066148 | G52: 8589.27674 | K52: 12771.34289
B53: ='Business Details'!$D$53 -> Establishment Costs | E53: $'000 | F53: 0 | G53: 0 | K53: 0
B54: ='Business Details'!$D$54 -> Unallocated cash contribution | E54: $'000 | F54: 0 | G54: 0 | K54: 0
B56: Total RAB Value for Other core water services as at 1 July 2008 | E56: $'000 | F56: 13216.47784 | G56: 24051.50133 | H56: 0 | I56: 0 | J56: 0 | K56: 37267.97917
B58: Wastewater via sewer
B59: ='Business Details'!$D$40 -> Reservoirs | E59: $'000 | F59: 0 | G59: 0 | K59: 0 | M59: QCA Unitywater Submission 2012 - Capex RAB Roll Forward.xlsx
B60: ='Business Details'!$D$41 -> Pump stations | E60: $'000 | F60: 4035.158988 | G60: 0 | K60: 4035.158988
B61: ='Business Details'!$D$42 -> Treatment | E61: $'000 | F61: 30278.85277 | G61: 48171.26605 | K61: 78450.11882
B62: ='Business Details'!$D$43 -> Associated telemetry and control systems | E62: $'000 | F62: 100.0490777 | G62: 80434.61796 | K62: 80534.66704
B63: ='Business Details'!$D$44 -> Meters | E63: $'000 | F63: 103763.0682 | G63: 371.7468319 | K63: 104134.815
B64: ='Business Details'!$D$45 -> Billing systems | E64: $'000 | F64: 0 | G64: 0 | K64: 0
B65: ='Business Details'!$D$46 -> Corporate systems | E65: $'000 | F65: 0 | G65: 0 | K65: 0
B66: ='Business Details'!$D$47 -> Sundry property, plant and equipment | E66: $'000 | F66: 0 | G66: 446.8965487 | K66: 446.8965487
B67: ='Business Details'!$D$48 -> Land | E67: $'000 | F67: 0 | G67: 3349.542329 | K67: 3349.542329
B68: ='Business Details'!$D$49 -> Building other than infrastructure housing | E68: $'000 | F68: 0 | G68: 2386.726297 | K68: 2386.726297
B69: ='Business Details'!$D$50 -> Distribution infrastructure not included in another category | E69: $'000 | F69: 145332.0017 | G69: 98676.50539 | K69: 244008.5071
B70: ='Business Details'!$D$51 -> Support services | E70: $'000 | F70: 20100.7708 | G70: 569.1326023 | K70: 20669.9034
B71: ='Business Details'!$D$52 -> Mains | E71: $'000 | F71: 281048.2041 | G71: 300304.1214 | K71: 581352.3255
B72: ='Business Details'!$D$53 -> Establishment Costs | E72: $'000 | F72: 0 | G72: 0 | K72: 0
B73: ='Business Details'!$D$54 -> Unallocated cash contribution | E73: $'000 | F73: 0 | G73: 0 | K73: 0
B75: Total RAB Value for Wastewater via Sewer as at 1 July 2008 | E75: $'000 | F75: 584658.1057 | G75: 534710.5554 | H75: 0 | I75: 0 | J75: 0 | K75: 1119368.661
B77: Trade Waste
B78: ='Business Details'!$D$40 -> Reservoirs | E78: $'000 | F78: 0 | G78: 0 | K78: 0 | M78: QCA Unitywater Submission 2012 - Capex RAB Roll Forward.xlsx
B79: ='Business Details'!$D$41 -> Pump stations | E79: $'000 | F79: 106.5241605 | G79: 0 | K79: 106.5241605
B80: ='Business Details'!$D$42 -> Treatment | E80: $'000 | F80: 799.3314216 | G80: 1434.814552 | K80: 2234.145974
B81: ='Business Details'!$D$43 -> Associated telemetry and control systems | E81: $'000 | F81: 2.641195562 | G81: 2392.837304 | K81: 2395.4785
B82: ='Business Details'!$D$44 -> Meters | E82: $'000 | F82: 2739.241195 | G82: 11.05904037 | K82: 2750.300235
B83: ='Business Details'!$D$45 -> Billing systems | E83: $'000 | F83: 0 | G83: 0 | K83: 0
B84: ='Business Details'!$D$46 -> Corporate systems | E84: $'000 | F84: 0 | G84: 0 | K84: 0
B85: ='Business Details'!$D$47 -> Sundry property, plant and equipment | E85: $'000 | F85: 0 | G85: 13.29465795 | K85: 13.29465795
B86: ='Business Details'!$D$48 -> Land | E86: $'000 | F86: 0 | G86: 124.3240965 | K86: 124.3240965
B87: ='Business Details'!$D$49 -> Building other than infrastructure housing | E87: $'000 | F87: 0 | G87: 71.00236021 | K87: 71.00236021
B88: ='Business Details'!$D$50 -> Distribution infrastructure not included in another category | E88: $'000 | F88: 3836.619453 | G88: 2935.512459 | K88: 6772.131912
B89: ='Business Details'!$D$51 -> Support services | E89: $'000 | F89: 303.0010868 | G89: 8.579163395 | K89: 311.5802502
B90: ='Business Details'!$D$52 -> Mains | E90: $'000 | F90: 7419.391424 | G90: 8933.701962 | K90: 16353.09339
B91: ='Business Details'!$D$53 -> Establishment Costs | E91: $'000 | F91: 0 | G91: 0 | K91: 0
B92: ='Business Details'!$D$54 -> Unallocated cash contribution | E92: $'000 | F92: 0 | G92: 0 | K92: 0
B94: Total RAB Value for Trade Waste as at 1 July 2008 | E94: $'000 | F94: 15206.74994 | G94: 15925.1256 | H94: 0 | I94: 0 | J94: 0 | K94: 31131.87553
B96: Other core wastewater services
B97: ='Business Details'!$D$40 -> Reservoirs | E97: $'000 | F97: 0 | G97: 0 | K97: 0 | M97: QCA Unitywater Submission 2012 - Capex RAB Roll Forward.xlsx
B98: ='Business Details'!$D$41 -> Pump stations | E98: $'000 | F98: 0 | G98: 0 | K98: 0
B99: ='Business Details'!$D$42 -> Treatment | E99: $'000 | F99: 0 | G99: 0 | K99: 0
B100: ='Business Details'!$D$43 -> Associated telemetry and control systems | E100: $'000 | F100: 0 | G100: 0 | K100: 0
B101: ='Business Details'!$D$44 -> Meters | E101: $'000 | F101: 0 | G101: 0 | K101: 0
B102: ='Business Details'!$D$45 -> Billing systems | E102: $'000 | F102: 0 | G102: 0 | K102: 0
B103: ='Business Details'!$D$46 -> Corporate systems | E103: $'000 | F103: 0 | G103: 0 | K103: 0
B104: ='Business Details'!$D$47 -> Sundry property, plant and equipment | E104: $'000 | F104: 0 | G104: 0 | K104: 0
B105: ='Business Details'!$D$48 -> Land | E105: $'000 | F105: 0 | G105: 0 | K105: 0
B106: ='Business Details'!$D$49 -> Building other than infrastructure housing | E106: $'000 | F106: 0 | G106: 0 | K106: 0
B107: ='Business Details'!$D$50 -> Distribution infrastructure not included in another category | E107: $'000 | F107: 0 | G107: 0 | K107: 0
B108: ='Business Details'!$D$51 -> Support services | E108: $'000 | F108: 0 | G108: 0 | K108: 0
B109: ='Business Details'!$D$52 -> Mains | E109: $'000 | F109: 0 | G109: 0 | K109: 0
B110: ='Business Details'!$D$53 -> Establishment Costs | E110: $'000 | F110: 0 | G110: 0 | K110: 0
B111: ='Business Details'!$D$54 -> Unallocated cash contribution | E111: $'000 | F111: 0 | G111: 0 | K111: 0
B113: Total RAB Value for Other core wastewater services as at 1 July 2008 | E113: $'000 | F113: 0 | G113: 0 | H113: 0 | I113: 0 | J113: 0 | K113: 0
B115: Aggregate non-regulated services
B116: ='Business Details'!$D$40 -> Reservoirs | E116: $'000 | F116: 0 | G116: 0 | K116: 0 | M116: QCA Unitywater Submission 2012 - Capex RAB Roll Forward.xlsx
B117: ='Business Details'!$D$41 -> Pump stations | E117: $'000 | F117: 0 | G117: 0 | K117: 0
B118: ='Business Details'!$D$42 -> Treatment | E118: $'000 | F118: 0 | G118: 0 | K118: 0
B119: ='Business Details'!$D$43 -> Associated telemetry and control systems | E119: $'000 | F119: 0 | G119: 0 | K119: 0
B120: ='Business Details'!$D$44 -> Meters | E120: $'000 | F120: 0 | G120: 0 | K120: 0
B121: ='Business Details'!$D$45 -> Billing systems | E121: $'000 | F121: 0 | G121: 0 | K121: 0
B122: ='Business Details'!$D$46 -> Corporate systems | E122: $'000 | F122: 0 | G122: 0 | K122: 0
B123: ='Business Details'!$D$47 -> Sundry property, plant and equipment | E123: $'000 | F123: 0 | G123: 140.8228227 | K123: 140.8228227
B124: ='Business Details'!$D$48 -> Land | E124: $'000 | F124: 0 | G124: 0 | K124: 0
B125: ='Business Details'!$D$49 -> Building other than infrastructure housing | E125: $'000 | F125: 0 | G125: 9.080882224 | K125: 9.080882224
B126: ='Business Details'!$D$50 -> Distribution infrastructure not included in another category | E126: $'000 | F126: 0 | G126: 0 | K126: 0
B127: ='Business Details'!$D$51 -> Support services | E127: $'000 | F127: 402.891438 | G127: 11.40745571 | K127: 414.2988938
B128: ='Business Details'!$D$52 -> Mains | E128: $'000 | F128: 0 | G128: 0 | K128: 0
B129: ='Business Details'!$D$53 -> Establishment Costs | E129: $'000 | F129: 0 | G129: 0 | K129: 0
B130: ='Business Details'!$D$54 -> Unallocated cash contribution | E130: $'000 | F130: 0 | G130: 0 | K130: 0
B132: Total RAB Value for Aggregate Non-regulated Services as at 1 July 2008 | E132: $'000 | F132: 402.891438 | G132: 161.3111606 | H132: 0 | I132: 0 | J132: 0 | K132: 564.2025987

Sheet 5.5.1 SD04
B4: ='Business Details'!$B$4 -> SEQ INTERIM REVENUE MONITORING - INFORMATION REQUIREMENT TEMPLATE | K4: Provide (for each deemed category in section 3.4.2 of the Information Requirements, except for customer groups) details for the opening tax asset base as at 1 July 2008.
B5: 5.5.1 SD04 OPENING ASSET BASE as at 1 July 2008 (TAX VALUES)
B7: =CONCATENATE("Allocation of Opening Tax Asset Base for ",'Business Details'!$D$9) -> Allocation of Opening Tax Asset Base for Northern SEQ Distributor-Retailer Authority (Trading as Unitywater ABN: 89 791 717 472)
B8: =CONCATENATE("Reporting year = ",AnalysisYear) -> Reporting year = 2014
F11: Geographic Area 1 | G11: Geographic Area 2 | H11: Geographic Area 3 | I11: Geographic Area 4 | J11: Geographic Area 5
E12: Numeration | F12: ='Business Details'!$D$12 -> Moreton Bay Regional Council | G12: ='Business Details'!$D$13 -> Sunshine Coast Regional Council | H12: ='Business Details'!$D$14 -> N/A | I12: ='Business Details'!$D$15 -> N/A | J12: ='Business Details'!$D$16 -> N/A | K12: Total | M12: Supporting Documents
B14: WRITTEN DOWN VALUE as at 1 July 2008
B16: Total WDV (accounting values) as at 1 July 2008 | E16: $'000 | K16: 2029870 | M16: 5.5.1 SD03'
B19: TAX ASSET BASE VALUES as at 1 July 2008
B20: Drinking water
B21: ='Business Details'!$D$40 -> Reservoirs | E21: $'000 | F21: 76581.78367 | G21: 29719.24607 | K21: 106301.0297 | M21: 5.5.1 SD03'
B22: ='Business Details'!$D$41 -> Pump stations | E22: $'000 | F22: 2510.490912 | G22: 3653.718318 | K22: 6164.20923 | M22: 5.5.1 SD03'
B23: ='Business Details'!$D$42 -> Treatment | E23: $'000 | F23: 0 | G23: 2.763580363 | K23: 2.763580363 | M23: 5.5.1 SD03'
B24: ='Business Details'!$D$43 -> Associated telemetry and control systems | E24: $'000 | F24: 782.9394964 | G24: 264.6579396 | K24: 1047.597436 | M24: 5.5.1 SD03'
B25: ='Business Details'!$D$44 -> Meters | E25: $'000 | F25: 15236.14904 | G25: 8691.772371 | K25: 23927.92141 | M25: 5.5.1 SD03'
B26: ='Business Details'!$D$45 -> Billing systems | E26: $'000 | F26: 0 | G26: 0 | K26: 0 | M26: 5.5.1 SD03'
B27: ='Business Details'!$D$46 -> Corporate systems | E27: $'000 | F27: 0 | G27: 0 | K27: 0 | M27: 5.5.1 SD03'
B28: ='Business Details'!$D$47 -> Sundry property, plant and equipment | E28: $'000 | F28: 0 | G28: 243.5249689 | K28: 243.5249689 | M28: 5.5.1 SD03'
B29: ='Business Details'!$D$48 -> Land | E29: $'000 | F29: 0 | G29: 11598.34952 | K29: 11598.34952 | M29: 5.5.1 SD03'
B30: ='Business Details'!$D$49 -> Building other than infrastructure housing | E30: $'000 | F30: 0 | G30: 797.4630492 | K30: 797.4630492 | M30: 5.5.1 SD03'
B31: ='Business Details'!$D$50 -> Distribution infrastructure not included in another category | E31: $'000 | F31: 36345.7901 | G31: 22020.64008 | K31: 58366.43018 | M31: 5.5.1 SD03'
B32: ='Business Details'!$D$51 -> Support services | E32: $'000 | F32: 18378.61178 | G32: 520.3714451 | K32: 18898.98322 | M32: 5.5.1 SD03'
B33: ='Business Details'!$D$52 -> Mains | E33: $'000 | F33: 346697.0101 | G33: 267491.9991 | K33: 614189.0092 | M33: 5.5.1 SD03'
B34: ='Business Details'!$D$53 -> Establishment Costs | E34: $'000 | F34: 0 | G34: 0 | K34: 0 | M34: 5.5.1 SD03'
B35: ='Business Details'!$D$54 -> Unallocated cash contribution | E35: $'000 | F35: 0 | G35: 0 | K35: 0 | M35: 5.5.1 SD03'
B37: =CONCATENATE("Total Opening Tax Asset Base Value for ",B20) -> Total Opening Tax Asset Base Value for Drinking water | E37: $'000 | F37: 496532.7751 | G37: 345004.5065 | H37: 0 | I37: 0 | J37: 0 | K37: 841537.2816
B39: Other core water services
B40: ='Business Details'!$D$40 -> Reservoirs | E40: $'000 | F40: 0 | G40: 0 | K40: 0 | M40: 5.5.1 SD03'
B41: ='Business Details'!$D$41 -> Pump stations | E41: $'000 | F41: 0 | G41: 1725.312217 | K41: 1725.312217 | M41: 5.5.1 SD03'
B42: ='Business Details'!$D$42 -> Treatment | E42: $'000 | F42: 0 | G42: 13607.5092 | K42: 13607.5092 | M42: 5.5.1 SD03'
B43: ='Business Details'!$D$43 -> Associated telemetry and control systems | E43: $'000 | F43: 0 | G43: 0 | K43: 0 | M43: 5.5.1 SD03'
B44: ='Business Details'!$D$44 -> Meters | E44: $'000 | F44: 7485.916185 | G44: 0 | K44: 7485.916185 | M44: 5.5.1 SD03'
B45: ='Business Details'!$D$45 -> Billing systems | E45: $'000 | F45: 0 | G45: 0 | K45: 0 | M45: 5.5.1 SD03'
B46: ='Business Details'!$D$46 -> Corporate systems | E46: $'000 | F46: 0 | G46: 0 | K46: 0 | M46: 5.5.1 SD03'
B47: ='Business Details'!$D$47 -> Sundry property, plant and equipment | E47: $'000 | F47: 0 | G47: 0 | K47: 0 | M47: 5.5.1 SD03'
B48: ='Business Details'!$D$48 -> Land | E48: $'000 | F48: 0 | G48: 0 | K48: 0 | M48: 5.5.1 SD03'
B49: ='Business Details'!$D$49 -> Building other than infrastructure housing | E49: $'000 | F49: 0 | G49: 0 | K49: 0 | M49: 5.5.1 SD03'
B50: ='Business Details'!$D$50 -> Distribution infrastructure not included in another category | E50: $'000 | F50: 723.1047972 | G50: 106.0330849 | K50: 829.1378822 | M50: 5.5.1 SD03'
B51: ='Business Details'!$D$51 -> Support services | E51: $'000 | F51: 825.3907063 | G51: 23.37008691 | K51: 848.7607932 | M51: 5.5.1 SD03'
B52: ='Business Details'!$D$52 -> Mains | E52: $'000 | F52: 4182.066148 | G52: 8589.27674 | K52: 12771.34289 | M52: 5.5.1 SD03'
B53: ='Business Details'!$D$53 -> Establishment Costs | E53: $'000 | F53: 0 | G53: 0 | K53: 0 | M53: 5.5.1 SD03'
B54: ='Business Details'!$D$54 -> Unallocated cash contribution | E54: $'000 | F54: 0 | G54: 0 | K54: 0 | M54: 5.5.1 SD03'
B56: =CONCATENATE("Total Opening Tax Asset Base Value for ",B39) -> Total Opening Tax Asset Base Value for Other core water services | E56: $'000 | F56: 13216.47784 | G56: 24051.50133 | H56: 0 | I56: 0 | J56: 0 | K56: 37267.97917
B58: Wastewater via sewer
B59: ='Business Details'!$D$40 -> Reservoirs | E59: $'000 | F59: 0 | G59: 0 | K59: 0 | M59: 5.5.1 SD03'
B60: ='Business Details'!$D$41 -> Pump stations | E60: $'000 | F60: 4035.158988 | G60: 0 | K60: 4035.158988 | M60: 5.5.1 SD03'
B61: ='Business Details'!$D$42 -> Treatment | E61: $'000 | F61: 30278.85277 | G61: 48171.26605 | K61: 78450.11882 | M61: 5.5.1 SD03'
B62: ='Business Details'!$D$43 -> Associated telemetry and control systems | E62: $'000 | F62: 100.0490777 | G62: 80434.61796 | K62: 80534.66704 | M62: 5.5.1 SD03'
B63: ='Business Details'!$D$44 -> Meters | E63: $'000 | F63: 103763.0682 | G63: 371.7468319 | K63: 104134.815 | M63: 5.5.1 SD03'
B64: ='Business Details'!$D$45 -> Billing systems | E64: $'000 | F64: 0 | G64: 0 | K64: 0 | M64: 5.5.1 SD03'
B65: ='Business Details'!$D$46 -> Corporate systems | E65: $'000 | F65: 0 | G65: 0 | K65: 0 | M65: 5.5.1 SD03'
B66: ='Business Details'!$D$47 -> Sundry property, plant and equipment | E66: $'000 | F66: 0 | G66: 446.8965487 | K66: 446.8965487 | M66: 5.5.1 SD03'
B67: ='Business Details'!$D$48 -> Land | E67: $'000 | F67: 0 | G67: 3349.542329 | K67: 3349.542329 | M67: 5.5.1 SD03'
B68: ='Business Details'!$D$49 -> Building other than infrastructure housing | E68: $'000 | F68: 0 | G68: 2386.726297 | K68: 2386.726297 | M68: 5.5.1 SD03'
B69: ='Business Details'!$D$50 -> Distribution infrastructure not included in another category | E69: $'000 | F69: 145332.0017 | G69: 98676.50539 | K69: 244008.5071 | M69: 5.5.1 SD03'
B70: ='Business Details'!$D$51 -> Support services | E70: $'000 | F70: 20100.7708 | G70: 569.1326023 | K70: 20669.9034 | M70: 5.5.1 SD03'
B71: ='Business Details'!$D$52 -> Mains | E71: $'000 | F71: 281048.2041 | G71: 300304.1214 | K71: 581352.3255 | M71: 5.5.1 SD03'
B72: ='Business Details'!$D$53 -> Establishment Costs | E72: $'000 | F72: 0 | G72: 0 | K72: 0 | M72: 5.5.1 SD03'
B73: ='Business Details'!$D$54 -> Unallocated cash contribution | E73: $'000 | F73: 0 | G73: 0 | K73: 0 | M73: 5.5.1 SD03'
B75: =CONCATENATE("Total Opening Tax Asset Base Value for ",B58) -> Total Opening Tax Asset Base Value for Wastewater via sewer | E75: $'000 | F75: 584658.1057 | G75: 534710.5554 | H75: 0 | I75: 0 | J75: 0 | K75: 1119368.661
B77: Trade Waste
B78: ='Business Details'!$D$40 -> Reservoirs | E78: $'000 | F78: 0 | G78: 0 | K78: 0 | M78: 5.5.1 SD03'
B79: ='Business Details'!$D$41 -> Pump stations | E79: $'000 | F79: 106.5241605 | G79: 0 | K79: 106.5241605 | M79: 5.5.1 SD03'
B80: ='Business Details'!$D$42 -> Treatment | E80: $'000 | F80: 799.3314216 | G80: 1434.814552 | K80: 2234.145974 | M80: 5.5.1 SD03'
B81: ='Business Details'!$D$43 -> Associated telemetry and control systems | E81: $'000 | F81: 2.641195562 | G81: 2392.837304 | K81: 2395.4785 | M81: 5.5.1 SD03'
B82: ='Business Details'!$D$44 -> Meters | E82: $'000 | F82: 2739.241195 | G82: 11.05904037 | K82: 2750.300235 | M82: 5.5.1 SD03'
B83: ='Business Details'!$D$45 -> Billing systems | E83: $'000 | F83: 0 | G83: 0 | K83: 0 | M83: 5.5.1 SD03'
B84: ='Business Details'!$D$46 -> Corporate systems | E84: $'000 | F84: 0 | G84: 0 | K84: 0 | M84: 5.5.1 SD03'
B85: ='Business Details'!$D$47 -> Sundry property, plant and equipment | E85: $'000 | F85: 0 | G85: 13.29465795 | K85: 13.29465795 | M85: 5.5.1 SD03'
B86: ='Business Details'!$D$48 -> Land | E86: $'000 | F86: 0 | G86: 124.3240965 | K86: 124.3240965 | M86: 5.5.1 SD03'
B87: ='Business Details'!$D$49 -> Building other than infrastructure housing | E87: $'000 | F87: 0 | G87: 71.00236021 | K87: 71.00236021 | M87: 5.5.1 SD03'
B88: ='Business Details'!$D$50 -> Distribution infrastructure not included in another category | E88: $'000 | F88: 3836.619453 | G88: 2935.512459 | K88: 6772.131912 | M88: 5.5.1 SD03'
B89: ='Business Details'!$D$51 -> Support services | E89: $'000 | F89: 303.0010868 | G89: 8.579163395 | K89: 311.5802502 | M89: 5.5.1 SD03'
B90: ='Business Details'!$D$52 -> Mains | E90: $'000 | F90: 7419.391424 | G90: 8933.701962 | K90: 16353.09339 | M90: 5.5.1 SD03'
B91: ='Business Details'!$D$53 -> Establishment Costs | E91: $'000 | F91: 0 | G91: 0 | K91: 0 | M91: 5.5.1 SD03'
B92: ='Business Details'!$D$54 -> Unallocated cash contribution | E92: $'000 | F92: 0 | G92: 0 | K92: 0 | M92: 5.5.1 SD03'
B94: =CONCATENATE("Total Opening Tax Asset Base Value for ",B77) -> Total Opening Tax Asset Base Value for Trade Waste | E94: $'000 | F94: 15206.74994 | G94: 15925.1256 | H94: 0 | I94: 0 | J94: 0 | K94: 31131.87553
B97: Other core wastewater services
B98: ='Business Details'!$D$40 -> Reservoirs | E98: $'000 | F98: 0 | G98: 0 | K98: 0 | M98: 5.5.1 SD03'
B99: ='Business Details'!$D$41 -> Pump stations | E99: $'000 | F99: 0 | G99: 0 | K99: 0 | M99: 5.5.1 SD03'
B100: ='Business Details'!$D$42 -> Treatment | E100: $'000 | F100: 0 | G100: 0 | K100: 0 | M100: 5.5.1 SD03'
B101: ='Business Details'!$D$43 -> Associated telemetry and control systems | E101: $'000 | F101: 0 | G101: 0 | K101: 0 | M101: 5.5.1 SD03'
B102: ='Business Details'!$D$44 -> Meters | E102: $'000 | F102: 0 | G102: 0 | K102: 0 | M102: 5.5.1 SD03'
B103: ='Business Details'!$D$45 -> Billing systems | E103: $'000 | F103: 0 | G103: 0 | K103: 0 | M103: 5.5.1 SD03'
B104: ='Business Details'!$D$46 -> Corporate systems | E104: $'000 | F104: 0 | G104: 0 | K104: 0 | M104: 5.5.1 SD03'
B105: ='Business Details'!$D$47 -> Sundry property, plant and equipment | E105: $'000 | F105: 0 | G105: 0 | K105: 0 | M105: 5.5.1 SD03'
B106: ='Business Details'!$D$48 -> Land | E106: $'000 | F106: 0 | G106: 0 | K106: 0 | M106: 5.5.1 SD03'
B107: ='Business Details'!$D$49 -> Building other than infrastructure housing | E107: $'000 | F107: 0 | G107: 0 | K107: 0 | M107: 5.5.1 SD03'
B108: ='Business Details'!$D$50 -> Distribution infrastructure not included in another category | E108: $'000 | F108: 0 | G108: 0 | K108: 0 | M108: 5.5.1 SD03'
B109: ='Business Details'!$D$51 -> Support services | E109: $'000 | F109: 0 | G109: 0 | K109: 0 | M109: 5.5.1 SD03'
B110: ='Business Details'!$D$52 -> Mains | E110: $'000 | F110: 0 | G110: 0 | K110: 0 | M110: 5.5.1 SD03'
B111: ='Business Details'!$D$53 -> Establishment Costs | E111: $'000 | F111: 0 | G111: 0 | K111: 0 | M111: 5.5.1 SD03'
B112: ='Business Details'!$D$54 -> Unallocated cash contribution | E112: $'000 | F112: 0 | G112: 0 | K112: 0 | M112: 5.5.1 SD03'
B114: =CONCATENATE("Total Opening Tax Asset Base Value for ",B97) -> Total Opening Tax Asset Base Value for Other core wastewater services | E114: $'000 | F114: 0 | G114: 0 | H114: 0 | I114: 0 | J114: 0 | K114: 0
B116: Aggregate non-regulated services
B117: ='Business Details'!$D$40 -> Reservoirs | E117: $'000 | F117: 0 | G117: 0 | K117: 0 | M117: 5.5.1 SD03'
B118: ='Business Details'!$D$41 -> Pump stations | E118: $'000 | F118: 0 | G118: 0 | K118: 0 | M118: 5.5.1 SD03'
B119: ='Business Details'!$D$42 -> Treatment | E119: $'000 | F119: 0 | G119: 0 | K119: 0 | M119: 5.5.1 SD03'
B120: ='Business Details'!$D$43 -> Associated telemetry and control systems | E120: $'000 | F120: 0 | G120: 0 | K120: 0 | M120: 5.5.1 SD03'
B121: ='Business Details'!$D$44 -> Meters | E121: $'000 | F121: 0 | G121: 0 | K121: 0 | M121: 5.5.1 SD03'
B122: ='Business Details'!$D$45 -> Billing systems | E122: $'000 | F122: 0 | G122: 0 | K122: 0 | M122: 5.5.1 SD03'
B123: ='Business Details'!$D$46 -> Corporate systems | E123: $'000 | F123: 0 | G123: 0 | K123: 0 | M123: 5.5.1 SD03'
B124: ='Business Details'!$D$47 -> Sundry property, plant and equipment | E124: $'000 | F124: 0 | G124: 140.8228227 | K124: 140.8228227 | M124: 5.5.1 SD03'
B125: ='Business Details'!$D$48 -> Land | E125: $'000 | F125: 0 | G125: 0 | K125: 0 | M125: 5.5.1 SD03'
B126: ='Business Details'!$D$49 -> Building other than infrastructure housing | E126: $'000 | F126: 0 | G126: 9.080882224 | K126: 9.080882224 | M126: 5.5.1 SD03'
B127: ='Business Details'!$D$50 -> Distribution infrastructure not included in another category | E127: $'000 | F127: 0 | G127: 0 | K127: 0 | M127: 5.5.1 SD03'
B128: ='Business Details'!$D$51 -> Support services | E128: $'000 | F128: 402.891438 | G128: 11.40745571 | K128: 414.2988938 | M128: 5.5.1 SD03'
B129: ='Business Details'!$D$52 -> Mains | E129: $'000 | F129: 0 | G129: 0 | K129: 0 | M129: 5.5.1 SD03'
B130: ='Business Details'!$D$53 -> Establishment Costs | E130: $'000 | F130: 0 | G130: 0 | K130: 0 | M130: 5.5.1 SD03'
B131: ='Business Details'!$D$54 -> Unallocated cash contribution | E131: $'000 | F131: 0 | G131: 0 | K131: 0 | M131: 5.5.1 SD03'
B133: =CONCATENATE("Total Opening Tax Asset Base Value for ",B116) -> Total Opening Tax Asset Base Value for Aggregate non-regulated services | E133: $'000 | F133: 402.891438 | G133: 161.3111606 | H133: 0 | I133: 0 | J133: 0 | K133: 564.2025987

Sheet 5.5.2
AA1: ="If revenues are smoothed beyond "&J11&", additional data is to be provided for the corresponding period. Additional years can be accessed by clicking on the '+' sign above." -> If revenues are smoothed beyond 2013, additional data is to be provided for the corresponding period. Additional years can be accessed by clicking on the '+' sign above.
B4: ='Business Details'!$B$4 -> SEQ INTERIM REVENUE MONITORING - INFORMATION REQUIREMENT TEMPLATE
B8: =CONCATENATE("Asset Disposals for ",'Business Details'!$D$9) -> Asset Disposals for Northern SEQ Distributor-Retailer Authority (Trading as Unitywater ABN: 89 791 717 472)
B9: =CONCATENATE("Reporting year = ",AnalysisYear) -> Reporting year = 2014
B10: Geographic Area / Service / Asset Class | F10: ='5.1.1'!F12 -> For Year Ending 30 June: | AA10: ='5.1.1'!N12 -> For Year Ending 30 June 2014:
F11: ='5.1.1'!F13 -> 2009 | G11: ='5.1.1'!G13 -> 2010 | H11: ='5.1.1'!H13 -> 2011 | I11: ='5.1.1'!I13 -> 2012 | J11: ='5.1.1'!J13 -> 2013 | K11: =J11+1 -> 2014 | L11: =K11+1 -> 2015 | M11: 2016 | N11: 2017 | O11: 2018 | P11: 2019 | Q11: 2020 | R11: 2021 | S11: 2022 | T11: 2023 | U11: 2024 | V11: 2025 | W11: 2026 | X11: 2027 | Y11: 2028 | AA11: Supporting Documents
B13: =CONCATENATE("Geographic Area ",'Business Details'!$C$12," - ",'Business Details'!$D$12) -> Geographic Area 1 - Moreton Bay Regional Council
B15: TOTAL FOR GEOGRAPHIC AREA
D17: Gross value of disposals | E17: $'000 | F17: =F24+F29+F34+F39+F44+F49+F54+F59+F64+F69+F74+F79+F84+F89+F94+F103+F108+F113+F118+F123+F128+F133+F138+F143+F148+F153+F158+F163+F173+F182+F187+F192+F197+F202+F207+F217+F222+F212+F232+F227+F237+F242+F247+F252+F261+F266+F271+F276+F281+F286+F291+F296+F301+F306+F311+F316+F321+F326+F331+F340+F345+F350+F355+F360+F365+F370+F375+F380+F385+F390+F395+F400+F405+F410+F419+F424+F429+F434+F439+F444+F449+F454+F459+F464+F469+F474+F479+F484+F489 -> 0 | G17: 0 | H17: 1626.1 | I17: 853.9 | J17: 0 | K17: 0 | L17: =L24+L29+L34+L39+L44+L49+L54+L59+L64+L69+L74+L79+L84+L89+L94+L103+L108+L113+L118+L123+L128+L133+L138+L143+L148+L153+L158+L163+L173+L182+L187+L192+L197+L202+L207+L217+L222+L212+L232+L227+L237+L242+L247+L252+L261+L266+L271+L276+L281+L286+L291+L296+L301+L306+L311+L316+L321+L326+L331+L340+L345+L350+L355+L360+L365+L370+L375+L380+L385+L390+L395+L400+L405+L410+L419+L424+L429+L434+L439+L444+L449+L454+L459+L464+L469+L474+L479+L484+L489 -> 0 | M17: 0 | N17: 0 | O17: 0 | P17: 0 | Q17: 0 | R17: 0 | S17: 0 | T17: 0 | U17: 0 | V17: 0 | W17: 0 | X17: 0 | Y17: 0
D18: less Accumulated depreciation on disposals | E18: $'000 | F18: 0 | G18: 0 | H18: 0 | I18: 0 | J18: 0 | K18: 0 | L18: =L25+L30+L35+L40+L45+L50+L55+L60+L65+L70+L75+L80+L85+L90+L95+L104+L109+L114+L119+L124+L129+L134+L139+L144+L149+L154+L159+L164+L174+L183+L188+L193+L198+L203+L208+L218+L223+L213+L233+L228+L238+L243+L248+L253+L262+L267+L272+L277+L282+L287+L292+L297+L302+L307+L312+L317+L322+L327+L332+L341+L346+L351+L356+L361+L366+L371+L376+L381+L386+L391+L396+L401+L406+L411+L420+L425+L430+L435+L440+L445+L450+L455+L460+L465+L470+L475+L480+L485+L490 -> 0 | M18: 0 | N18: 0 | O18: 0 | P18: 0 | Q18: 0 | R18: 0 | S18: 0 | T18: 0 | U18: 0 | V18: 0 | W18: 0 | X18: 0 | Y18: 0
D19: Net value of disposals | E19: $'000 | F19: =F17-F18 -> 0 | G19: 0 | H19: 1626.1 | I19: 853.9 | J19: 0 | K19: 0 | L19: =L17-L18 -> 0 | M19: 0 | N19: 0 | O19: 0 | P19: 0 | Q19: 0 | R19: 0 | S19: 0 | T19: 0 | U19: 0 | V19: 0 | W19: 0 | X19: 0 | Y19: 0
B21: DRINKING WATER
C23: ='Business Details'!$D$40 -> Reservoirs
D24: Gross value of disposals | E24: $'000 | AC24: Enter both the gross value and accumulated depreciation as positive numbers.
D25: less Accumulated depreciation on disposals | E25: $'000
D26: Net value of disposals | E26: $'000 | F26: =F24-F25 -> 0 | G26: =G24-G25 -> 0 | H26: =H24-H25 -> 0 | I26: =I24-I25 -> 0 | J26: =J24-J25 -> 0 | K26: =K24-K25 -> 0 | L26: 0 | M26: 0 | N26: 0 | O26: 0 | P26: 0 | Q26: 0 | R26: 0 | S26: 0 | T26: 0 | U26: 0 | V26: 0 | W26: 0 | X26: 0 | Y26: 0
C28: ='Business Details'!$D$41 -> Pump stations
D29: Gross value of disposals | E29: $'000
D30: less Accumulated depreciation on disposals | E30: $'000
D31: Net value of disposals | E31: $'000 | F31: =F29-F30 -> 0 | G31: =G29-G30 -> 0 | H31: =H29-H30 -> 0 | I31: =I29-I30 -> 0 | J31: =J29-J30 -> 0 | K31: =K29-K30 -> 0 | L31: 0 | M31: 0 | N31: 0 | O31: 0 | P31: 0 | Q31: 0 | R31: 0 | S31: 0 | T31: 0 | U31: 0 | V31: 0 | W31: 0 | X31: 0 | Y31: 0
C33: ='Business Details'!$D$42 -> Treatment
D34: Gross value of disposals | E34: $'000
D35: less Accumulated depreciation on disposals | E35: $'000
D36: Net value of disposals | E36: $'000 | F36: =F34-F35 -> 0 | G36: =G34-G35 -> 0 | H36: =H34-H35 -> 0 | I36: =I34-I35 -> 0 | J36: =J34-J35 -> 0 | K36: =K34-K35 -> 0 | L36: 0 | M36: 0 | N36: 0 | O36: 0 | P36: 0 | Q36: 0 | R36: 0 | S36: 0 | T36: 0 | U36: 0 | V36: 0 | W36: 0 | X36: 0 | Y36: 0
C38: ='Business Details'!$D$43 -> Associated telemetry and control systems
D39: Gross value of disposals | E39: $'000
D40: less Accumulated depreciation on disposals | E40: $'000
D41: Net value of disposals | E41: $'000 | F41: =F39-F40 -> 0 | G41: =G39-G40 -> 0 | H41: =H39-H40 -> 0 | I41: =I39-I40 -> 0 | J41: =J39-J40 -> 0 | K41: =K39-K40 -> 0 | L41: 0 | M41: 0 | N41: 0 | O41: 0 | P41: 0 | Q41: 0 | R41: 0 | S41: 0 | T41: 0 | U41: 0 | V41: 0 | W41: 0 | X41: 0 | Y41: 0
C43: ='Business Details'!$D$44 -> Meters
D44: Gross value of disposals | E44: $'000
D45: less Accumulated depreciation on disposals | E45: $'000
D46: Net value of disposals | E46: $'000 | F46: =F44-F45 -> 0 | G46: =G44-G45 -> 0 | H46: =H44-H45 -> 0 | I46: =I44-I45 -> 0 | J46: =J44-J45 -> 0 | K46: =K44-K45 -> 0 | L46: 0 | M46: 0 | N46: 0 | O46: 0 | P46: 0 | Q46: 0 | R46: 0 | S46: 0 | T46: 0 | U46: 0 | V46: 0 | W46: 0 | X46: 0 | Y46: 0
C48: ='Business Details'!$D$45 -> Billing systems
D49: Gross value of disposals | E49: $'000
D50: less Accumulated depreciation on disposals | E50: $'000
D51: Net value of disposals | E51: $'000 | F51: =F49-F50 -> 0 | G51: =G49-G50 -> 0 | H51: =H49-H50 -> 0 | I51: =I49-I50 -> 0 | J51: =J49-J50 -> 0 | K51: =K49-K50 -> 0 | L51: 0 | M51: 0 | N51: 0 | O51: 0 | P51: 0 | Q51: 0 | R51: 0 | S51: 0 | T51: 0 | U51: 0 | V51: 0 | W51: 0 | X51: 0 | Y51: 0
C53: ='Business Details'!$D$46 -> Corporate systems
D54: Gross value of disposals | E54: $'000
D55: less Accumulated depreciation on disposals | E55: $'000
D56: Net value of disposals | E56: $'000 | F56: =F54-F55 -> 0 | G56: =G54-G55 -> 0 | H56: =H54-H55 -> 0 | I56: =I54-I55 -> 0 | J56: =J54-J55 -> 0 | K56: =K54-K55 -> 0 | L56: 0 | M56: 0 | N56: 0 | O56: 0 | P56: 0 | Q56: 0 | R56: 0 | S56: 0 | T56: 0 | U56: 0 | V56: 0 | W56: 0 | X56: 0 | Y56: 0
C58: ='Business Details'!$D$47 -> Sundry property, plant and equipment
D59: Gross value of disposals | E59: $'000
D60: less Accumulated depreciation on disposals | E60: $'000
D61: Net value of disposals | E61: $'000 | F61: =F59-F60 -> 0 | G61: =G59-G60 -> 0 | H61: =H59-H60 -> 0 | I61: =I59-I60 -> 0 | J61: =J59-J60 -> 0 | K61: =K59-K60 -> 0 | L61: 0 | M61: 0 | N61: 0 | O61: 0 | P61: 0 | Q61: 0 | R61: 0 | S61: 0 | T61: 0 | U61: 0 | V61: 0 | W61: 0 | X61: 0 | Y61: 0
C63: ='Business Details'!$D$48 -> Land
D64: Gross value of disposals | E64: $'000
D65: less Accumulated depreciation on disposals | E65: $'000
D66: Net value of disposals | E66: $'000 | F66: =F64-F65 -> 0 | G66: =G64-G65 -> 0 | H66: =H64-H65 -> 0 | I66: =I64-I65 -> 0 | J66: =J64-J65 -> 0 | K66: =K64-K65 -> 0 | L66: 0 | M66: 0 | N66: 0 | O66: 0 | P66: 0 | Q66: 0 | R66: 0 | S66: 0 | T66: 0 | U66: 0 | V66: 0 | W66: 0 | X66: 0 | Y66: 0
C68: ='Business Details'!$D$49 -> Building other than infrastructure housing
D69: Gross value of disposals | E69: $'000
D70: less Accumulated depreciation on disposals | E70: $'000
D71: Net value of disposals | E71: $'000 | F71: =F69-F70 -> 0 | G71: =G69-G70 -> 0 | H71: =H69-H70 -> 0 | I71: =I69-I70 -> 0 | J71: =J69-J70 -> 0 | K71: =K69-K70 -> 0 | L71: 0 | M71: 0 | N71: 0 | O71: 0 | P71: 0 | Q71: 0 | R71: 0 | S71: 0 | T71: 0 | U71: 0 | V71: 0 | W71: 0 | X71: 0 | Y71: 0
C73: ='Business Details'!$D$50 -> Distribution infrastructure not included in another category
D74: Gross value of disposals | E74: $'000
D75: less Accumulated depreciation on disposals | E75: $'000
D76: Net value of disposals | E76: $'000 | F76: =F74-F75 -> 0 | G76: =G74-G75 -> 0 | H76: =H74-H75 -> 0 | I76: =I74-I75 -> 0 | J76: =J74-J75 -> 0 | K76: =K74-K75 -> 0 | L76: 0 | M76: 0 | N76: 0 | O76: 0 | P76: 0 | Q76: 0 | R76: 0 | S76: 0 | T76: 0 | U76: 0 | V76: 0 | W76: 0 | X76: 0 | Y76: 0
C78: ='Business Details'!$D$51 -> Support services
D79: Gross value of disposals | E79: $'000
D80: less Accumulated depreciation on disposals | E80: $'000
D81: Net value of disposals | E81: $'000 | F81: =F79-F80 -> 0 | G81: =G79-G80 -> 0 | H81: =H79-H80 -> 0 | I81: =I79-I80 -> 0 | J81: =J79-J80 -> 0 | K81: =K79-K80 -> 0 | L81: 0 | M81: 0 | N81: 0 | O81: 0 | P81: 0 | Q81: 0 | R81: 0 | S81: 0 | T81: 0 | U81: 0 | V81: 0 | W81: 0 | X81: 0 | Y81: 0
C83: ='Business Details'!$D$52 -> Mains
D84: Gross value of disposals | E84: $'000
D85: less Accumulated depreciation on disposals | E85: $'000
D86: Net value of disposals | E86: $'000 | F86: =F84-F85 -> 0 | G86: =G84-G85 -> 0 | H86: =H84-H85 -> 0 | I86: =I84-I85 -> 0 | J86: =J84-J85 -> 0 | K86: =K84-K85 -> 0 | L86: 0 | M86: 0 | N86: 0 | O86: 0 | P86: 0 | Q86: 0 | R86: 0 | S86: 0 | T86: 0 | U86: 0 | V86: 0 | W86: 0 | X86: 0 | Y86: 0
C88: ='Business Details'!$D$53 -> Establishment Costs
D89: Gross value of disposals | E89: $'000
D90: less Accumulated depreciation on disposals | E90: $'000
D91: Net value of disposals | E91: $'000 | F91: =F89-F90 -> 0 | G91: =G89-G90 -> 0 | H91: =H89-H90 -> 0 | I91: =I89-I90 -> 0 | J91: =J89-J90 -> 0 | K91: =K89-K90 -> 0 | L91: 0 | M91: 0 | N91: 0 | O91: 0 | P91: 0 | Q91: 0 | R91: 0 | S91: 0 | T91: 0 | U91: 0 | V91: 0 | W91: 0 | X91: 0 | Y91: 0
C93: ='Business Details'!$D$54 -> Unallocated cash contribution
D94: Gross value of disposals | E94: $'000
D95: less Accumulated depreciation on disposals | E95: $'000
D96: Net value of disposals | E96: $'000 | F96: =F94-F95 -> 0 | G96: =G94-G95 -> 0 | H96: =H94-H95 -> 0 | I96: =I94-I95 -> 0 | J96: =J94-J95 -> 0 | K96: =K94-K95 -> 0 | L96: 0 | M96: 0 | N96: 0 | O96: 0 | P96: 0 | Q96: 0 | R96: 0 | S96: 0 | T96: 0 | U96: 0 | V96: 0 | W96: 0 | X96: 0 | Y96: 0
B100: Other core water services
C102: Reservoirs
D103: Gross value of disposals | E103: $'000
D104: less Accumulated depreciation on disposals | E104: $'000
D105: Net value of disposals | E105: $'000 | F105: =F103-F104 -> 0 | G105: =G103-G104 -> 0 | H105: =H103-H104 -> 0 | I105: =I103-I104 -> 0 | J105: =J103-J104 -> 0 | K105: =K103-K104 -> 0 | L105: 0 | M105: 0 | N105: 0 | O105: 0 | P105: 0 | Q105: 0 | R105: 0 | S105: 0 | T105: 0 | U105: 0 | V105: 0 | W105: 0 | X105: 0 | Y105: 0
C107: Pump stations
D108: Gross value of disposals | E108: $'000
D109: less Accumulated depreciation on disposals | E109: $'000
D110: Net value of disposals | E110: $'000 | F110: =F108-F109 -> 0 | G110: =G108-G109 -> 0 | H110: =H108-H109 -> 0 | I110: =I108-I109 -> 0 | J110: =J108-J109 -> 0 | K110: =K108-K109 -> 0 | L110: 0 | M110: 0 | N110: 0 | O110: 0 | P110: 0 | Q110: 0 | R110: 0 | S110: 0 | T110: 0 | U110: 0 | V110: 0 | W110: 0 | X110: 0 | Y110: 0
C112: Treatment
D113: Gross value of disposals | E113: $'000
D114: less Accumulated depreciation on disposals | E114: $'000
D115: Net value of disposals | E115: $'000 | F115: =F113-F114 -> 0 | G115: =G113-G114 -> 0 | H115: =H113-H114 -> 0 | I115: =I113-I114 -> 0 | J115: =J113-J114 -> 0 | K115: =K113-K114 -> 0 | L115: 0 | M115: 0 | N115: 0 | O115: 0 | P115: 0 | Q115: 0 | R115: 0 | S115: 0 | T115: 0 | U115: 0 | V115: 0 | W115: 0 | X115: 0 | Y115: 0
C117: Associated telemetry and control systems
D118: Gross value of disposals | E118: $'000
D119: less Accumulated depreciation on disposals | E119: $'000
D120: Net value of disposals | E120: $'000 | F120: =F118-F119 -> 0 | G120: =G118-G119 -> 0 | H120: =H118-H119 -> 0 | I120: =I118-I119 -> 0 | J120: =J118-J119 -> 0 | K120: =K118-K119 -> 0 | L120: 0 | M120: 0 | N120: 0 | O120: 0 | P120: 0 | Q120: 0 | R120: 0 | S120: 0 | T120: 0 | U120: 0 | V120: 0 | W120: 0 | X120: 0 | Y120: 0
C122: Meters
D123: Gross value of disposals | E123: $'000
D124: less Accumulated depreciation on disposals | E124: $'000
D125: Net value of disposals | E125: $'000 | F125: =F123-F124 -> 0 | G125: =G123-G124 -> 0 | H125: =H123-H124 -> 0 | I125: =I123-I124 -> 0 | J125: =J123-J124 -> 0 | K125: =K123-K124 -> 0 | L125: 0 | M125: 0 | N125: 0 | O125: 0 | P125: 0 | Q125: 0 | R125: 0 | S125: 0 | T125: 0 | U125: 0 | V125: 0 | W125: 0 | X125: 0 | Y125: 0
C127: Billing systems
D128: Gross value of disposals | E128: $'000
D129: less Accumulated depreciation on disposals | E129: $'000
D130: Net value of disposals | E130: $'000 | F130: =F128-F129 -> 0 | G130: =G128-G129 -> 0 | H130: =H128-H129 -> 0 | I130: =I128-I129 -> 0 | J130: =J128-J129 -> 0 | K130: =K128-K129 -> 0 | L130: 0 | M130: 0 | N130: 0 | O130: 0 | P130: 0 | Q130: 0 | R130: 0 | S130: 0 | T130: 0 | U130: 0 | V130: 0 | W130: 0 | X130: 0 | Y130: 0
C132: Corporate systems
D133: Gross value of disposals | E133: $'000
D134: less Accumulated depreciation on disposals | E134: $'000
D135: Net value of disposals | E135: $'000 | F135: =F133-F134 -> 0 | G135: =G133-G134 -> 0 | H135: =H133-H134 -> 0 | I135: =I133-I134 -> 0 | J135: =J133-J134 -> 0 | K135: =K133-K134 -> 0 | L135: 0 | M135: 0 | N135: 0 | O135: 0 | P135: 0 | Q135: 0 | R135: 0 | S135: 0 | T135: 0 | U135: 0 | V135: 0 | W135: 0 | X135: 0 | Y135: 0
C137: Sundry Property, Plant and Equipments
D138: Gross value of disposals | E138: $'000
D139: less Accumulated depreciation on disposals | E139: $'000
D140: Net value of disposals | E140: $'000 | F140: =F138-F139 -> 0 | G140: =G138-G139 -> 0 | H140: =H138-H139 -> 0 | I140: =I138-I139 -> 0 | J140: =J138-J139 -> 0 | K140: =K138-K139 -> 0 | L140: 0 | M140: 0 | N140: 0 | O140: 0 | P140: 0 | Q140: 0 | R140: 0 | S140: 0 | T140: 0 | U140: 0 | V140: 0 | W140: 0 | X140: 0 | Y140: 0
C142: Land
D143: Gross value of disposals | E143: $'000
D144: less Accumulated depreciation on disposals | E144: $'000
D145: Net value of disposals | E145: $'000 | F145: =F143-F144 -> 0 | G145: =G143-G144 -> 0 | H145: =H143-H144 -> 0 | I145: =I143-I144 -> 0 | J145: =J143-J144 -> 0 | K145: =K143-K144 -> 0 | L145: 0 | M145: 0 | N145: 0 | O145: 0 | P145: 0 | Q145: 0 | R145: 0 | S145: 0 | T145: 0 | U145: 0 | V145: 0 | W145: 0 | X145: 0 | Y145: 0
C147: Buildings other than infrastructure housing
D148: Gross value of disposals | E148: $'000
D149: less Accumulated depreciation on disposals | E149: $'000
D150: Net value of disposals | E150: $'000 | F150: =F148-F149 -> 0 | G150: =G148-G149 -> 0 | H150: =H148-H149 -> 0 | I150: =I148-I149 -> 0 | J150: =J148-J149 -> 0 | K150: =K148-K149 -> 0 | L150: 0 | M150: 0 | N150: 0 | O150: 0 | P150: 0 | Q150: 0 | R150: 0 | S150: 0 | T150: 0 | U150: 0 | V150: 0 | W150: 0 | X150: 0 | Y150: 0
C152: Distribution infrastructure not listed above
D153: Gross value of disposals | E153: $'000
D154: less Accumulated depreciation on disposals | E154: $'000
D155: Net value of disposals | E155: $'000 | F155: =F153-F154 -> 0 | G155: =G153-G154 -> 0 | H155: =H153-H154 -> 0 | I155: =I153-I154 -> 0 | J155: =J153-J154 -> 0 | K155: =K153-K154 -> 0 | L155: 0 | M155: 0 | N155: 0 | O155: 0 | P155: 0 | Q155: 0 | R155: 0 | S155: 0 | T155: 0 | U155: 0 | V155: 0 | W155: 0 | X155: 0 | Y155: 0
C157: ='Business Details'!$D$51 -> Support services
D158: Gross value of disposals | E158: $'000
D159: less Accumulated depreciation on disposals | E159: $'000
D160: Net value of disposals | E160: $'000 | F160: =F158-F159 -> 0 | G160: =G158-G159 -> 0 | H160: =H158-H159 -> 0 | I160: =I158-I159 -> 0 | J160: =J158-J159 -> 0 | K160: =K158-K159 -> 0 | L160: 0 | M160: 0 | N160: 0 | O160: 0 | P160: 0 | Q160: 0 | R160: 0 | S160: 0 | T160: 0 | U160: 0 | V160: 0 | W160: 0 | X160: 0 | Y160: 0
C162: ='Business Details'!$D$52 -> Mains
D163: Gross value of disposals | E163: $'000
D164: less Accumulated depreciation on disposals | E164: $'000
D165: Net value of disposals | E165: $'000 | F165: =F163-F164 -> 0 | G165: =G163-G164 -> 0 | H165: =H163-H164 -> 0 | I165: =I163-I164 -> 0 | J165: =J163-J164 -> 0 | K165: =K163-K164 -> 0 | L165: 0 | M165: 0 | N165: 0 | O165: 0 | P165: 0 | Q165: 0 | R165: 0 | S165: 0 | T165: 0 | U165: 0 | V165: 0 | W165: 0 | X165: 0 | Y165: 0
C167: ='Business Details'!$D$53 -> Establishment Costs
D168: Gross value of disposals | E168: $'000
D169: less Accumulated depreciation on disposals | E169: $'000
D170: Net value of disposals | E170: $'000 | F170: =F168-F169 -> 0 | G170: =G168-G169 -> 0 | H170: =H168-H169 -> 0 | I170: =I168-I169 -> 0 | J170: =J168-J169 -> 0 | K170: =K168-K169 -> 0 | L170: 0 | M170: 0 | N170: 0 | O170: 0 | P170: 0 | Q170: 0 | R170: 0 | S170: 0 | T170: 0 | U170: 0 | V170: 0 | W170: 0 | X170: 0 | Y170: 0
C172: ='Business Details'!$D$54 -> Unallocated cash contribution
D173: Gross value of disposals | E173: $'000
D174: less Accumulated depreciation on disposals | E174: $'000
D175: Net value of disposals | E175: $'000 | F175: =F173-F174 -> 0 | G175: =G173-G174 -> 0 | H175: =H173-H174 -> 0 | I175: =I173-I174 -> 0 | J175: =J173-J174 -> 0 | K175: =K173-K174 -> 0 | L175: 0 | M175: 0 | N175: 0 | O175: 0 | P175: 0 | Q175: 0 | R175: 0 | S175: 0 | T175: 0 | U175: 0 | V175: 0 | W175: 0 | X175: 0 | Y175: 0
B179: WASTEWATER VIA SEWER
C181: Reservoirs
D182: Gross value of disposals | E182: $'000
D183: less Accumulated depreciation on disposals | E183: $'000
D184: Net value of disposals | E184: $'000 | F184: =F182-F183 -> 0 | G184: =G182-G183 -> 0 | H184: =H182-H183 -> 0 | I184: =I182-I183 -> 0 | J184: =J182-J183 -> 0 | K184: =K182-K183 -> 0 | L184: 0 | M184: 0 | N184: 0 | O184: 0 | P184: 0 | Q184: 0 | R184: 0 | S184: 0 | T184: 0 | U184: 0 | V184: 0 | W184: 0 | X184: 0 | Y184: 0
C186: Pump stations
D187: Gross value of disposals | E187: $'000
D188: less Accumulated depreciation on disposals | E188: $'000
D189: Net value of disposals | E189: $'000 | F189: =F187-F188 -> 0 | G189: =G187-G188 -> 0 | H189: =H187-H188 -> 0 | I189: =I187-I188 -> 0 | J189: =J187-J188 -> 0 | K189: =K187-K188 -> 0 | L189: 0 | M189: 0 | N189: 0 | O189: 0 | P189: 0 | Q189: 0 | R189: 0 | S189: 0 | T189: 0 | U189: 0 | V189: 0 | W189: 0 | X189: 0 | Y189: 0
C191: Treatment
D192: Gross value of disposals | E192: $'000
D193: less Accumulated depreciation on disposals | E193: $'000
D194: Net value of disposals | E194: $'000 | F194: =F192-F193 -> 0 | G194: =G192-G193 -> 0 | H194: =H192-H193 -> 0 | I194: =I192-I193 -> 0 | J194: =J192-J193 -> 0 | K194: =K192-K193 -> 0 | L194: 0 | M194: 0 | N194: 0 | O194: 0 | P194: 0 | Q194: 0 | R194: 0 | S194: 0 | T194: 0 | U194: 0 | V194: 0 | W194: 0 | X194: 0 | Y194: 0
C196: Associated telemetry and control systems
D197: Gross value of disposals | E197: $'000
D198: less Accumulated depreciation on disposals | E198: $'000
D199: Net value of disposals | E199: $'000 | F199: =F197-F198 -> 0 | G199: =G197-G198 -> 0 | H199: =H197-H198 -> 0 | I199: =I197-I198 -> 0 | J199: =J197-J198 -> 0 | K199: =K197-K198 -> 0 | L199: 0 | M199: 0 | N199: 0 | O199: 0 | P199: 0 | Q199: 0 | R199: 0 | S199: 0 | T199: 0 | U199: 0 | V199: 0 | W199: 0 | X199: 0 | Y199: 0
C201: Meters
D202: Gross value of disposals | E202: $'000
D203: less Accumulated depreciation on disposals | E203: $'000
D204: Net value of disposals | E204: $'000 | F204: =F202-F203 -> 0 | G204: =G202-G203 -> 0 | H204: =H202-H203 -> 0 | I204: =I202-I203 -> 0 | J204: =J202-J203 -> 0 | K204: =K202-K203 -> 0 | L204: 0 | M204: 0 | N204: 0 | O204: 0 | P204: 0 | Q204: 0 | R204: 0 | S204: 0 | T204: 0 | U204: 0 | V204: 0 | W204: 0 | X204: 0 | Y204: 0
C206: Billing systems
D207: Gross value of disposals | E207: $'000
D208: less Accumulated depreciation on disposals | E208: $'000
D209: Net value of disposals | E209: $'000 | F209: =F207-F208 -> 0 | G209: =G207-G208 -> 0 | H209: =H207-H208 -> 0 | I209: =I207-I208 -> 0 | J209: =J207-J208 -> 0 | K209: =K207-K208 -> 0 | L209: 0 | M209: 0 | N209: 0 | O209: 0 | P209: 0 | Q209: 0 | R209: 0 | S209: 0 | T209: 0 | U209: 0 | V209: 0 | W209: 0 | X209: 0 | Y209: 0
C211: Corporate systems
D212: Gross value of disposals | E212: $'000
D213: less Accumulated depreciation on disposals | E213: $'000
D214: Net value of disposals | E214: $'000 | F214: =F212-F213 -> 0 | G214: =G212-G213 -> 0 | H214: =H212-H213 -> 0 | I214: =I212-I213 -> 0 | J214: =J212-J213 -> 0 | K214: =K212-K213 -> 0 | L214: 0 | M214: 0 | N214: 0 | O214: 0 | P214: 0 | Q214: 0 | R214: 0 | S214: 0 | T214: 0 | U214: 0 | V214: 0 | W214: 0 | X214: 0 | Y214: 0
C216: Sundry Property, Plant and Equipments
D217: Gross value of disposals | E217: $'000
D218: less Accumulated depreciation on disposals | E218: $'000
D219: Net value of disposals | E219: $'000 | F219: =F217-F218 -> 0 | G219: =G217-G218 -> 0 | H219: =H217-H218 -> 0 | I219: =I217-I218 -> 0 | J219: =J217-J218 -> 0 | K219: =K217-K218 -> 0 | L219: 0 | M219: 0 | N219: 0 | O219: 0 | P219: 0 | Q219: 0 | R219: 0 | S219: 0 | T219: 0 | U219: 0 | V219: 0 | W219: 0 | X219: 0 | Y219: 0
C221: Land
D222: Gross value of disposals | E222: $'000
D223: less Accumulated depreciation on disposals | E223: $'000
D224: Net value of disposals | E224: $'000 | F224: =F222-F223 -> 0 | G224: =G222-G223 -> 0 | H224: =H222-H223 -> 0 | I224: =I222-I223 -> 0 | J224: =J222-J223 -> 0 | K224: =K222-K223 -> 0 | L224: 0 | M224: 0 | N224: 0 | O224: 0 | P224: 0 | Q224: 0 | R224: 0 | S224: 0 | T224: 0 | U224: 0 | V224: 0 | W224: 0 | X224: 0 | Y224: 0
C226: Buildings other than infrastructure housing
D227: Gross value of disposals | E227: $'000
D228: less Accumulated depreciation on disposals | E228: $'000
D229: Net value of disposals | E229: $'000 | F229: =F227-F228 -> 0 | G229: =G227-G228 -> 0 | H229: =H227-H228 -> 0 | I229: =I227-I228 -> 0 | J229: =J227-J228 -> 0 | K229: =K227-K228 -> 0 | L229: 0 | M229: 0 | N229: 0 | O229: 0 | P229: 0 | Q229: 0 | R229: 0 | S229: 0 | T229: 0 | U229: 0 | V229: 0 | W229: 0 | X229: 0 | Y229: 0
C231: Distribution infrastructure not listed above
D232: Gross value of disposals | E232: $'000
D233: less Accumulated depreciation on disposals | E233: $'000
D234: Net value of disposals | E234: $'000 | F234: =F232-F233 -> 0 | G234: =G232-G233 -> 0 | H234: =H232-H233 -> 0 | I234: =I232-I233 -> 0 | J234: =J232-J233 -> 0 | K234: =K232-K233 -> 0 | L234: 0 | M234: 0 | N234: 0 | O234: 0 | P234: 0 | Q234: 0 | R234: 0 | S234: 0 | T234: 0 | U234: 0 | V234: 0 | W234: 0 | X234: 0 | Y234: 0
C236: ='Business Details'!$D$51 -> Support services
D237: Gross value of disposals | E237: $'000
D238: less Accumulated depreciation on disposals | E238: $'000
D239: Net value of disposals | E239: $'000 | F239: =F237-F238 -> 0 | G239: =G237-G238 -> 0 | H239: =H237-H238 -> 0 | I239: =I237-I238 -> 0 | J239: =J237-J238 -> 0 | K239: =K237-K238 -> 0 | L239: 0 | M239: 0 | N239: 0 | O239: 0 | P239: 0 | Q239: 0 | R239: 0 | S239: 0 | T239: 0 | U239: 0 | V239: 0 | W239: 0 | X239: 0 | Y239: 0
C241: ='Business Details'!$D$52 -> Mains
D242: Gross value of disposals | E242: $'000
D243: less Accumulated depreciation on disposals | E243: $'000
D244: Net value of disposals | E244: $'000 | F244: =F242-F243 -> 0 | G244: =G242-G243 -> 0 | H244: =H242-H243 -> 0 | I244: =I242-I243 -> 0 | J244: =J242-J243 -> 0 | K244: =K242-K243 -> 0 | L244: 0 | M244: 0 | N244: 0 | O244: 0 | P244: 0 | Q244: 0 | R244: 0 | S244: 0 | T244: 0 | U244: 0 | V244: 0 | W244: 0 | X244: 0 | Y244: 0
C246: ='Business Details'!$D$53 -> Establishment Costs
D247: Gross value of disposals | E247: $'000
D248: less Accumulated depreciation on disposals | E248: $'000
D249: Net value of disposals | E249: $'000 | F249: =F247-F248 -> 0 | G249: =G247-G248 -> 0 | H249: =H247-H248 -> 0 | I249: =I247-I248 -> 0 | J249: =J247-J248 -> 0 | K249: =K247-K248 -> 0 | L249: 0 | M249: 0 | N249: 0 | O249: 0 | P249: 0 | Q249: 0 | R249: 0 | S249: 0 | T249: 0 | U249: 0 | V249: 0 | W249: 0 | X249: 0 | Y249: 0
C251: ='Business Details'!$D$54 -> Unallocated cash contribution
D252: Gross value of disposals | E252: $'000
D253: less Accumulated depreciation on disposals | E253: $'000
D254: Net value of disposals | E254: $'000 | F254: =F252-F253 -> 0 | G254: =G252-G253 -> 0 | H254: =H252-H253 -> 0 | I254: =I252-I253 -> 0 | J254: =J252-J253 -> 0 | K254: =K252-K253 -> 0 | L254: 0 | M254: 0 | N254: 0 | O254: 0 | P254: 0 | Q254: 0 | R254: 0 | S254: 0 | T254: 0 | U254: 0 | V254: 0 | W254: 0 | X254: 0 | Y254: 0
B258: TRADE WASTE
C260: Reservoirs
D261: Gross value of disposals | E261: $'000
D262: less Accumulated depreciation on disposals | E262: $'000
D263: Net value of disposals | E263: $'000 | F263: =F261-F262 -> 0 | G263: =G261-G262 -> 0 | H263: =H261-H262 -> 0 | I263: =I261-I262 -> 0 | J263: =J261-J262 -> 0 | K263: =K261-K262 -> 0 | L263: 0 | M263: 0 | N263: 0 | O263: 0 | P263: 0 | Q263: 0 | R263: 0 | S263: 0 | T263: 0 | U263: 0 | V263: 0 | W263: 0 | X263: 0 | Y263: 0
C265: Pump stations
... 1669 more rows

Sheet 5.5.3
AA1: ="If revenues are smoothed beyond "&J11&", additional data is to be provided for the corresponding period. Additional years can be accessed by clicking on the '+' sign above." -> If revenues are smoothed beyond 2013, additional data is to be provided for the corresponding period. Additional years can be accessed by clicking on the '+' sign above.
B4: ='Business Details'!$B$4 -> SEQ INTERIM REVENUE MONITORING - INFORMATION REQUIREMENT TEMPLATE
B8: =CONCATENATE("Asset Disposals for ",'Business Details'!$D$9) -> Asset Disposals for Northern SEQ Distributor-Retailer Authority (Trading as Unitywater ABN: 89 791 717 472)
B9: =CONCATENATE("Reporting year = ",AnalysisYear) -> Reporting year = 2014
B10: Geographic Area / Service / Asset Class | F10: ='5.1.1'!F12 -> For Year Ending 30 June: | AA10: ='5.1.1'!N12 -> For Year Ending 30 June 2014:
F11: ='5.1.1'!F13 -> 2009 | G11: ='5.1.1'!G13 -> 2010 | H11: ='5.1.1'!H13 -> 2011 | I11: ='5.1.1'!I13 -> 2012 | J11: ='5.1.1'!J13 -> 2013 | K11: =J11+1 -> 2014 | L11: =K11+1 -> 2015 | M11: 2016 | N11: 2017 | O11: 2018 | P11: 2019 | Q11: 2020 | R11: 2021 | S11: 2022 | T11: 2023 | U11: 2024 | V11: 2025 | W11: 2026 | X11: 2027 | Y11: 2028 | AA11: Supporting Documents
B13: =CONCATENATE("Geographic Area ",'Business Details'!$C$12," - ",'Business Details'!$D$12) -> Geographic Area 1 - Moreton Bay Regional Council
B15: TOTAL FOR GEOGRAPHIC AREA
D17: Gross value of disposals | E17: $'000 | F17: =F24+F29+F34+F39+F44+F49+F54+F59+F64+F69+F74+F79+F84+F89+F94+F103+F108+F113+F118+F123+F128+F133+F138+F143+F148+F153+F158+F163+F173+F182+F187+F192+F197+F202+F207+F217+F222+F212+F232+F227+F237+F242+F247+F252+F261+F266+F271+F276+F281+F286+F291+F296+F301+F306+F311+F316+F321+F326+F331+F340+F345+F350+F355+F360+F365+F370+F375+F380+F385+F390+F395+F400+F405+F410+F419+F424+F429+F434+F439+F444+F449+F454+F459+F464+F469+F474+F479+F484+F489 -> 0 | G17: 0 | H17: 1626.1 | I17: 853.9 | J17: 0 | K17: 0 | L17: 0 | M17: =M24+M29+M34+M39+M44+M49+M54+M59+M64+M69+M74+M79+M84+M89+M94+M103+M108+M113+M118+M123+M128+M133+M138+M143+M148+M153+M158+M163+M173+M182+M187+M192+M197+M202+M207+M217+M222+M212+M232+M227+M237+M242+M247+M252+M261+M266+M271+M276+M281+M286+M291+M296+M301+M306+M311+M316+M321+M326+M331+M340+M345+M350+M355+M360+M365+M370+M375+M380+M385+M390+M395+M400+M405+M410+M419+M424+M429+M434+M439+M444+M449+M454+M459+M464+M469+M474+M479+M484+M489 -> 0 | N17: 0 | O17: 0 | P17: 0 | Q17: 0 | R17: 0 | S17: 0 | T17: 0 | U17: 0 | V17: 0 | W17: 0 | X17: 0 | Y17: 0
D18: less Accumulated depreciation on disposals | E18: $'000 | F18: 0 | G18: 0 | H18: 0 | I18: 0 | J18: 0 | K18: 0 | L18: =L25+L30+L35+L40+L45+L50+L55+L60+L65+L70+L75+L80+L85+L90+L95+L104+L109+L114+L119+L124+L129+L134+L139+L144+L149+L154+L159+L164+L174+L183+L188+L193+L198+L203+L208+L218+L223+L213+L233+L228+L238+L243+L248+L253+L262+L267+L272+L277+L282+L287+L292+L297+L302+L307+L312+L317+L322+L327+L332+L341+L346+L351+L356+L361+L366+L371+L376+L381+L386+L391+L396+L401+L406+L411+L420+L425+L430+L435+L440+L445+L450+L455+L460+L465+L470+L475+L480+L485+L490 -> 0 | M18: 0 | N18: 0 | O18: 0 | P18: 0 | Q18: 0 | R18: 0 | S18: 0 | T18: 0 | U18: 0 | V18: 0 | W18: 0 | X18: 0 | Y18: 0
D19: Net value of disposals | E19: $'000 | F19: =F17-F18 -> 0 | G19: 0 | H19: 1626.1 | I19: 853.9 | J19: 0 | K19: 0 | L19: =L17-L18 -> 0 | M19: 0 | N19: 0 | O19: 0 | P19: 0 | Q19: 0 | R19: 0 | S19: 0 | T19: 0 | U19: 0 | V19: 0 | W19: 0 | X19: 0 | Y19: 0
B21: DRINKING WATER
C23: ='Business Details'!$D$40 -> Reservoirs
D24: Gross value of disposals | E24: $'000 | AC24: Enter both the gross value and accumulated depreciation as positive numbers.
D25: less Accumulated depreciation on disposals | E25: $'000
D26: Net value of disposals | E26: $'000 | F26: =F24-F25 -> 0 | G26: =G24-G25 -> 0 | H26: =H24-H25 -> 0 | I26: =I24-I25 -> 0 | J26: =J24-J25 -> 0 | K26: =K24-K25 -> 0 | L26: 0 | M26: 0 | N26: 0 | O26: 0 | P26: 0 | Q26: 0 | R26: 0 | S26: 0 | T26: 0 | U26: 0 | V26: 0 | W26: 0 | X26: 0 | Y26: 0
C28: ='Business Details'!$D$41 -> Pump stations
D29: Gross value of disposals | E29: $'000
D30: less Accumulated depreciation on disposals | E30: $'000
D31: Net value of disposals | E31: $'000 | F31: =F29-F30 -> 0 | G31: =G29-G30 -> 0 | H31: =H29-H30 -> 0 | I31: =I29-I30 -> 0 | J31: =J29-J30 -> 0 | K31: =K29-K30 -> 0 | L31: 0 | M31: 0 | N31: 0 | O31: 0 | P31: 0 | Q31: 0 | R31: 0 | S31: 0 | T31: 0 | U31: 0 | V31: 0 | W31: 0 | X31: 0 | Y31: 0
C33: ='Business Details'!$D$42 -> Treatment
D34: Gross value of disposals | E34: $'000
D35: less Accumulated depreciation on disposals | E35: $'000
D36: Net value of disposals | E36: $'000 | F36: =F34-F35 -> 0 | G36: =G34-G35 -> 0 | H36: =H34-H35 -> 0 | I36: =I34-I35 -> 0 | J36: =J34-J35 -> 0 | K36: =K34-K35 -> 0 | L36: 0 | M36: 0 | N36: 0 | O36: 0 | P36: 0 | Q36: 0 | R36: 0 | S36: 0 | T36: 0 | U36: 0 | V36: 0 | W36: 0 | X36: 0 | Y36: 0
C38: ='Business Details'!$D$43 -> Associated telemetry and control systems
D39: Gross value of disposals | E39: $'000
D40: less Accumulated depreciation on disposals | E40: $'000
D41: Net value of disposals | E41: $'000 | F41: =F39-F40 -> 0 | G41: =G39-G40 -> 0 | H41: =H39-H40 -> 0 | I41: =I39-I40 -> 0 | J41: =J39-J40 -> 0 | K41: =K39-K40 -> 0 | L41: 0 | M41: 0 | N41: 0 | O41: 0 | P41: 0 | Q41: 0 | R41: 0 | S41: 0 | T41: 0 | U41: 0 | V41: 0 | W41: 0 | X41: 0 | Y41: 0
C43: ='Business Details'!$D$44 -> Meters
D44: Gross value of disposals | E44: $'000
D45: less Accumulated depreciation on disposals | E45: $'000
D46: Net value of disposals | E46: $'000 | F46: =F44-F45 -> 0 | G46: =G44-G45 -> 0 | H46: =H44-H45 -> 0 | I46: =I44-I45 -> 0 | J46: =J44-J45 -> 0 | K46: =K44-K45 -> 0 | L46: 0 | M46: 0 | N46: 0 | O46: 0 | P46: 0 | Q46: 0 | R46: 0 | S46: 0 | T46: 0 | U46: 0 | V46: 0 | W46: 0 | X46: 0 | Y46: 0
C48: ='Business Details'!$D$45 -> Billing systems
D49: Gross value of disposals | E49: $'000
D50: less Accumulated depreciation on disposals | E50: $'000
D51: Net value of disposals | E51: $'000 | F51: =F49-F50 -> 0 | G51: =G49-G50 -> 0 | H51: =H49-H50 -> 0 | I51: =I49-I50 -> 0 | J51: =J49-J50 -> 0 | K51: =K49-K50 -> 0 | L51: 0 | M51: 0 | N51: 0 | O51: 0 | P51: 0 | Q51: 0 | R51: 0 | S51: 0 | T51: 0 | U51: 0 | V51: 0 | W51: 0 | X51: 0 | Y51: 0
C53: ='Business Details'!$D$46 -> Corporate systems
D54: Gross value of disposals | E54: $'000
D55: less Accumulated depreciation on disposals | E55: $'000
D56: Net value of disposals | E56: $'000 | F56: =F54-F55 -> 0 | G56: =G54-G55 -> 0 | H56: =H54-H55 -> 0 | I56: =I54-I55 -> 0 | J56: =J54-J55 -> 0 | K56: =K54-K55 -> 0 | L56: 0 | M56: 0 | N56: 0 | O56: 0 | P56: 0 | Q56: 0 | R56: 0 | S56: 0 | T56: 0 | U56: 0 | V56: 0 | W56: 0 | X56: 0 | Y56: 0
C58: ='Business Details'!$D$47 -> Sundry property, plant and equipment
D59: Gross value of disposals | E59: $'000
D60: less Accumulated depreciation on disposals | E60: $'000
D61: Net value of disposals | E61: $'000 | F61: =F59-F60 -> 0 | G61: =G59-G60 -> 0 | H61: =H59-H60 -> 0 | I61: =I59-I60 -> 0 | J61: =J59-J60 -> 0 | K61: =K59-K60 -> 0 | L61: 0 | M61: 0 | N61: 0 | O61: 0 | P61: 0 | Q61: 0 | R61: 0 | S61: 0 | T61: 0 | U61: 0 | V61: 0 | W61: 0 | X61: 0 | Y61: 0
C63: ='Business Details'!$D$48 -> Land
D64: Gross value of disposals | E64: $'000
D65: less Accumulated depreciation on disposals | E65: $'000
D66: Net value of disposals | E66: $'000 | F66: =F64-F65 -> 0 | G66: =G64-G65 -> 0 | H66: =H64-H65 -> 0 | I66: =I64-I65 -> 0 | J66: =J64-J65 -> 0 | K66: =K64-K65 -> 0 | L66: 0 | M66: 0 | N66: 0 | O66: 0 | P66: 0 | Q66: 0 | R66: 0 | S66: 0 | T66: 0 | U66: 0 | V66: 0 | W66: 0 | X66: 0 | Y66: 0
C68: ='Business Details'!$D$49 -> Building other than infrastructure housing
D69: Gross value of disposals | E69: $'000
D70: less Accumulated depreciation on disposals | E70: $'000
D71: Net value of disposals | E71: $'000 | F71: =F69-F70 -> 0 | G71: =G69-G70 -> 0 | H71: =H69-H70 -> 0 | I71: =I69-I70 -> 0 | J71: =J69-J70 -> 0 | K71: =K69-K70 -> 0 | L71: 0 | M71: 0 | N71: 0 | O71: 0 | P71: 0 | Q71: 0 | R71: 0 | S71: 0 | T71: 0 | U71: 0 | V71: 0 | W71: 0 | X71: 0 | Y71: 0
C73: ='Business Details'!$D$50 -> Distribution infrastructure not included in another category
D74: Gross value of disposals | E74: $'000
D75: less Accumulated depreciation on disposals | E75: $'000
D76: Net value of disposals | E76: $'000 | F76: =F74-F75 -> 0 | G76: =G74-G75 -> 0 | H76: =H74-H75 -> 0 | I76: =I74-I75 -> 0 | J76: =J74-J75 -> 0 | K76: =K74-K75 -> 0 | L76: 0 | M76: 0 | N76: 0 | O76: 0 | P76: 0 | Q76: 0 | R76: 0 | S76: 0 | T76: 0 | U76: 0 | V76: 0 | W76: 0 | X76: 0 | Y76: 0
C78: ='Business Details'!$D$51 -> Support services
D79: Gross value of disposals | E79: $'000
D80: less Accumulated depreciation on disposals | E80: $'000
D81: Net value of disposals | E81: $'000 | F81: =F79-F80 -> 0 | G81: =G79-G80 -> 0 | H81: =H79-H80 -> 0 | I81: =I79-I80 -> 0 | J81: =J79-J80 -> 0 | K81: =K79-K80 -> 0 | L81: 0 | M81: 0 | N81: 0 | O81: 0 | P81: 0 | Q81: 0 | R81: 0 | S81: 0 | T81: 0 | U81: 0 | V81: 0 | W81: 0 | X81: 0 | Y81: 0
C83: ='Business Details'!$D$52 -> Mains
D84: Gross value of disposals | E84: $'000
D85: less Accumulated depreciation on disposals | E85: $'000
D86: Net value of disposals | E86: $'000 | F86: =F84-F85 -> 0 | G86: =G84-G85 -> 0 | H86: =H84-H85 -> 0 | I86: =I84-I85 -> 0 | J86: =J84-J85 -> 0 | K86: =K84-K85 -> 0 | L86: 0 | M86: 0 | N86: 0 | O86: 0 | P86: 0 | Q86: 0 | R86: 0 | S86: 0 | T86: 0 | U86: 0 | V86: 0 | W86: 0 | X86: 0 | Y86: 0
C88: ='Business Details'!$D$53 -> Establishment Costs
D89: Gross value of disposals | E89: $'000
D90: less Accumulated depreciation on disposals | E90: $'000
D91: Net value of disposals | E91: $'000 | F91: =F89-F90 -> 0 | G91: =G89-G90 -> 0 | H91: =H89-H90 -> 0 | I91: =I89-I90 -> 0 | J91: =J89-J90 -> 0 | K91: =K89-K90 -> 0 | L91: 0 | M91: 0 | N91: 0 | O91: 0 | P91: 0 | Q91: 0 | R91: 0 | S91: 0 | T91: 0 | U91: 0 | V91: 0 | W91: 0 | X91: 0 | Y91: 0
C93: ='Business Details'!$D$54 -> Unallocated cash contribution
D94: Gross value of disposals | E94: $'000
D95: less Accumulated depreciation on disposals | E95: $'000
D96: Net value of disposals | E96: $'000 | F96: =F94-F95 -> 0 | G96: =G94-G95 -> 0 | H96: =H94-H95 -> 0 | I96: =I94-I95 -> 0 | J96: =J94-J95 -> 0 | K96: =K94-K95 -> 0 | L96: 0 | M96: 0 | N96: 0 | O96: 0 | P96: 0 | Q96: 0 | R96: 0 | S96: 0 | T96: 0 | U96: 0 | V96: 0 | W96: 0 | X96: 0 | Y96: 0
B100: Other core water services
C102: Reservoirs
D103: Gross value of disposals | E103: $'000
D104: less Accumulated depreciation on disposals | E104: $'000
D105: Net value of disposals | E105: $'000 | F105: =F103-F104 -> 0 | G105: =G103-G104 -> 0 | H105: =H103-H104 -> 0 | I105: =I103-I104 -> 0 | J105: =J103-J104 -> 0 | K105: =K103-K104 -> 0 | L105: 0 | M105: 0 | N105: 0 | O105: 0 | P105: 0 | Q105: 0 | R105: 0 | S105: 0 | T105: 0 | U105: 0 | V105: 0 | W105: 0 | X105: 0 | Y105: 0
C107: Pump stations
D108: Gross value of disposals | E108: $'000
D109: less Accumulated depreciation on disposals | E109: $'000
D110: Net value of disposals | E110: $'000 | F110: =F108-F109 -> 0 | G110: =G108-G109 -> 0 | H110: =H108-H109 -> 0 | I110: =I108-I109 -> 0 | J110: =J108-J109 -> 0 | K110: =K108-K109 -> 0 | L110: 0 | M110: 0 | N110: 0 | O110: 0 | P110: 0 | Q110: 0 | R110: 0 | S110: 0 | T110: 0 | U110: 0 | V110: 0 | W110: 0 | X110: 0 | Y110: 0
C112: Treatment
D113: Gross value of disposals | E113: $'000
D114: less Accumulated depreciation on disposals | E114: $'000
D115: Net value of disposals | E115: $'000 | F115: =F113-F114 -> 0 | G115: =G113-G114 -> 0 | H115: =H113-H114 -> 0 | I115: =I113-I114 -> 0 | J115: =J113-J114 -> 0 | K115: =K113-K114 -> 0 | L115: 0 | M115: 0 | N115: 0 | O115: 0 | P115: 0 | Q115: 0 | R115: 0 | S115: 0 | T115: 0 | U115: 0 | V115: 0 | W115: 0 | X115: 0 | Y115: 0
C117: Associated telemetry and control systems
D118: Gross value of disposals | E118: $'000
D119: less Accumulated depreciation on disposals | E119: $'000
D120: Net value of disposals | E120: $'000 | F120: =F118-F119 -> 0 | G120: =G118-G119 -> 0 | H120: =H118-H119 -> 0 | I120: =I118-I119 -> 0 | J120: =J118-J119 -> 0 | K120: =K118-K119 -> 0 | L120: 0 | M120: 0 | N120: 0 | O120: 0 | P120: 0 | Q120: 0 | R120: 0 | S120: 0 | T120: 0 | U120: 0 | V120: 0 | W120: 0 | X120: 0 | Y120: 0
C122: Meters
D123: Gross value of disposals | E123: $'000
D124: less Accumulated depreciation on disposals | E124: $'000
D125: Net value of disposals | E125: $'000 | F125: =F123-F124 -> 0 | G125: =G123-G124 -> 0 | H125: =H123-H124 -> 0 | I125: =I123-I124 -> 0 | J125: =J123-J124 -> 0 | K125: =K123-K124 -> 0 | L125: 0 | M125: 0 | N125: 0 | O125: 0 | P125: 0 | Q125: 0 | R125: 0 | S125: 0 | T125: 0 | U125: 0 | V125: 0 | W125: 0 | X125: 0 | Y125: 0
C127: Billing systems
D128: Gross value of disposals | E128: $'000
D129: less Accumulated depreciation on disposals | E129: $'000
D130: Net value of disposals | E130: $'000 | F130: =F128-F129 -> 0 | G130: =G128-G129 -> 0 | H130: =H128-H129 -> 0 | I130: =I128-I129 -> 0 | J130: =J128-J129 -> 0 | K130: =K128-K129 -> 0 | L130: 0 | M130: 0 | N130: 0 | O130: 0 | P130: 0 | Q130: 0 | R130: 0 | S130: 0 | T130: 0 | U130: 0 | V130: 0 | W130: 0 | X130: 0 | Y130: 0
C132: Corporate systems
D133: Gross value of disposals | E133: $'000
D134: less Accumulated depreciation on disposals | E134: $'000
D135: Net value of disposals | E135: $'000 | F135: =F133-F134 -> 0 | G135: =G133-G134 -> 0 | H135: =H133-H134 -> 0 | I135: =I133-I134 -> 0 | J135: =J133-J134 -> 0 | K135: =K133-K134 -> 0 | L135: 0 | M135: 0 | N135: 0 | O135: 0 | P135: 0 | Q135: 0 | R135: 0 | S135: 0 | T135: 0 | U135: 0 | V135: 0 | W135: 0 | X135: 0 | Y135: 0
C137: Sundry Property, Plant and Equipments
D138: Gross value of disposals | E138: $'000
D139: less Accumulated depreciation on disposals | E139: $'000
D140: Net value of disposals | E140: $'000 | F140: =F138-F139 -> 0 | G140: =G138-G139 -> 0 | H140: =H138-H139 -> 0 | I140: =I138-I139 -> 0 | J140: =J138-J139 -> 0 | K140: =K138-K139 -> 0 | L140: 0 | M140: 0 | N140: 0 | O140: 0 | P140: 0 | Q140: 0 | R140: 0 | S140: 0 | T140: 0 | U140: 0 | V140: 0 | W140: 0 | X140: 0 | Y140: 0
C142: Land
D143: Gross value of disposals | E143: $'000
D144: less Accumulated depreciation on disposals | E144: $'000
D145: Net value of disposals | E145: $'000 | F145: =F143-F144 -> 0 | G145: =G143-G144 -> 0 | H145: =H143-H144 -> 0 | I145: =I143-I144 -> 0 | J145: =J143-J144 -> 0 | K145: =K143-K144 -> 0 | L145: 0 | M145: 0 | N145: 0 | O145: 0 | P145: 0 | Q145: 0 | R145: 0 | S145: 0 | T145: 0 | U145: 0 | V145: 0 | W145: 0 | X145: 0 | Y145: 0
C147: Buildings other than infrastructure housing
D148: Gross value of disposals | E148: $'000
D149: less Accumulated depreciation on disposals | E149: $'000
D150: Net value of disposals | E150: $'000 | F150: =F148-F149 -> 0 | G150: =G148-G149 -> 0 | H150: =H148-H149 -> 0 | I150: =I148-I149 -> 0 | J150: =J148-J149 -> 0 | K150: =K148-K149 -> 0 | L150: 0 | M150: 0 | N150: 0 | O150: 0 | P150: 0 | Q150: 0 | R150: 0 | S150: 0 | T150: 0 | U150: 0 | V150: 0 | W150: 0 | X150: 0 | Y150: 0
C152: Distribution infrastructure not listed above
D153: Gross value of disposals | E153: $'000
D154: less Accumulated depreciation on disposals | E154: $'000
D155: Net value of disposals | E155: $'000 | F155: =F153-F154 -> 0 | G155: =G153-G154 -> 0 | H155: =H153-H154 -> 0 | I155: =I153-I154 -> 0 | J155: =J153-J154 -> 0 | K155: =K153-K154 -> 0 | L155: 0 | M155: 0 | N155: 0 | O155: 0 | P155: 0 | Q155: 0 | R155: 0 | S155: 0 | T155: 0 | U155: 0 | V155: 0 | W155: 0 | X155: 0 | Y155: 0
C157: ='Business Details'!$D$51 -> Support services
D158: Gross value of disposals | E158: $'000
D159: less Accumulated depreciation on disposals | E159: $'000
D160: Net value of disposals | E160: $'000 | F160: =F158-F159 -> 0 | G160: =G158-G159 -> 0 | H160: =H158-H159 -> 0 | I160: =I158-I159 -> 0 | J160: =J158-J159 -> 0 | K160: =K158-K159 -> 0 | L160: 0 | M160: 0 | N160: 0 | O160: 0 | P160: 0 | Q160: 0 | R160: 0 | S160: 0 | T160: 0 | U160: 0 | V160: 0 | W160: 0 | X160: 0 | Y160: 0
C162: ='Business Details'!$D$52 -> Mains
D163: Gross value of disposals | E163: $'000
D164: less Accumulated depreciation on disposals | E164: $'000
D165: Net value of disposals | E165: $'000 | F165: =F163-F164 -> 0 | G165: =G163-G164 -> 0 | H165: =H163-H164 -> 0 | I165: =I163-I164 -> 0 | J165: =J163-J164 -> 0 | K165: =K163-K164 -> 0 | L165: 0 | M165: 0 | N165: 0 | O165: 0 | P165: 0 | Q165: 0 | R165: 0 | S165: 0 | T165: 0 | U165: 0 | V165: 0 | W165: 0 | X165: 0 | Y165: 0
C167: ='Business Details'!$D$53 -> Establishment Costs
D168: Gross value of disposals | E168: $'000
D169: less Accumulated depreciation on disposals | E169: $'000
D170: Net value of disposals | E170: $'000 | F170: =F168-F169 -> 0 | G170: =G168-G169 -> 0 | H170: =H168-H169 -> 0 | I170: =I168-I169 -> 0 | J170: =J168-J169 -> 0 | K170: =K168-K169 -> 0 | L170: 0 | M170: 0 | N170: 0 | O170: 0 | P170: 0 | Q170: 0 | R170: 0 | S170: 0 | T170: 0 | U170: 0 | V170: 0 | W170: 0 | X170: 0 | Y170: 0
C172: ='Business Details'!$D$54 -> Unallocated cash contribution
D173: Gross value of disposals | E173: $'000
D174: less Accumulated depreciation on disposals | E174: $'000
D175: Net value of disposals | E175: $'000 | F175: =F173-F174 -> 0 | G175: =G173-G174 -> 0 | H175: =H173-H174 -> 0 | I175: =I173-I174 -> 0 | J175: =J173-J174 -> 0 | K175: =K173-K174 -> 0 | L175: 0 | M175: 0 | N175: 0 | O175: 0 | P175: 0 | Q175: 0 | R175: 0 | S175: 0 | T175: 0 | U175: 0 | V175: 0 | W175: 0 | X175: 0 | Y175: 0
B179: WASTEWATER VIA SEWER
C181: Reservoirs
D182: Gross value of disposals | E182: $'000
D183: less Accumulated depreciation on disposals | E183: $'000
D184: Net value of disposals | E184: $'000 | F184: =F182-F183 -> 0 | G184: =G182-G183 -> 0 | H184: =H182-H183 -> 0 | I184: =I182-I183 -> 0 | J184: =J182-J183 -> 0 | K184: =K182-K183 -> 0 | L184: 0 | M184: 0 | N184: 0 | O184: 0 | P184: 0 | Q184: 0 | R184: 0 | S184: 0 | T184: 0 | U184: 0 | V184: 0 | W184: 0 | X184: 0 | Y184: 0
C186: Pump stations
D187: Gross value of disposals | E187: $'000
D188: less Accumulated depreciation on disposals | E188: $'000
D189: Net value of disposals | E189: $'000 | F189: =F187-F188 -> 0 | G189: =G187-G188 -> 0 | H189: =H187-H188 -> 0 | I189: =I187-I188 -> 0 | J189: =J187-J188 -> 0 | K189: =K187-K188 -> 0 | L189: 0 | M189: 0 | N189: 0 | O189: 0 | P189: 0 | Q189: 0 | R189: 0 | S189: 0 | T189: 0 | U189: 0 | V189: 0 | W189: 0 | X189: 0 | Y189: 0
C191: Treatment
D192: Gross value of disposals | E192: $'000
D193: less Accumulated depreciation on disposals | E193: $'000
D194: Net value of disposals | E194: $'000 | F194: =F192-F193 -> 0 | G194: =G192-G193 -> 0 | H194: =H192-H193 -> 0 | I194: =I192-I193 -> 0 | J194: =J192-J193 -> 0 | K194: =K192-K193 -> 0 | L194: 0 | M194: 0 | N194: 0 | O194: 0 | P194: 0 | Q194: 0 | R194: 0 | S194: 0 | T194: 0 | U194: 0 | V194: 0 | W194: 0 | X194: 0 | Y194: 0
C196: Associated telemetry and control systems
D197: Gross value of disposals | E197: $'000
D198: less Accumulated depreciation on disposals | E198: $'000
D199: Net value of disposals | E199: $'000 | F199: =F197-F198 -> 0 | G199: =G197-G198 -> 0 | H199: =H197-H198 -> 0 | I199: =I197-I198 -> 0 | J199: =J197-J198 -> 0 | K199: =K197-K198 -> 0 | L199: 0 | M199: 0 | N199: 0 | O199: 0 | P199: 0 | Q199: 0 | R199: 0 | S199: 0 | T199: 0 | U199: 0 | V199: 0 | W199: 0 | X199: 0 | Y199: 0
C201: Meters
D202: Gross value of disposals | E202: $'000
D203: less Accumulated depreciation on disposals | E203: $'000
D204: Net value of disposals | E204: $'000 | F204: =F202-F203 -> 0 | G204: =G202-G203 -> 0 | H204: =H202-H203 -> 0 | I204: =I202-I203 -> 0 | J204: =J202-J203 -> 0 | K204: =K202-K203 -> 0 | L204: 0 | M204: 0 | N204: 0 | O204: 0 | P204: 0 | Q204: 0 | R204: 0 | S204: 0 | T204: 0 | U204: 0 | V204: 0 | W204: 0 | X204: 0 | Y204: 0
C206: Billing systems
D207: Gross value of disposals | E207: $'000
D208: less Accumulated depreciation on disposals | E208: $'000
D209: Net value of disposals | E209: $'000 | F209: =F207-F208 -> 0 | G209: =G207-G208 -> 0 | H209: =H207-H208 -> 0 | I209: =I207-I208 -> 0 | J209: =J207-J208 -> 0 | K209: =K207-K208 -> 0 | L209: 0 | M209: 0 | N209: 0 | O209: 0 | P209: 0 | Q209: 0 | R209: 0 | S209: 0 | T209: 0 | U209: 0 | V209: 0 | W209: 0 | X209: 0 | Y209: 0
C211: Corporate systems
D212: Gross value of disposals | E212: $'000
D213: less Accumulated depreciation on disposals | E213: $'000
D214: Net value of disposals | E214: $'000 | F214: =F212-F213 -> 0 | G214: =G212-G213 -> 0 | H214: =H212-H213 -> 0 | I214: =I212-I213 -> 0 | J214: =J212-J213 -> 0 | K214: =K212-K213 -> 0 | L214: 0 | M214: 0 | N214: 0 | O214: 0 | P214: 0 | Q214: 0 | R214: 0 | S214: 0 | T214: 0 | U214: 0 | V214: 0 | W214: 0 | X214: 0 | Y214: 0
C216: Sundry Property, Plant and Equipments
D217: Gross value of disposals | E217: $'000
D218: less Accumulated depreciation on disposals | E218: $'000
D219: Net value of disposals | E219: $'000 | F219: =F217-F218 -> 0 | G219: =G217-G218 -> 0 | H219: =H217-H218 -> 0 | I219: =I217-I218 -> 0 | J219: =J217-J218 -> 0 | K219: =K217-K218 -> 0 | L219: 0 | M219: 0 | N219: 0 | O219: 0 | P219: 0 | Q219: 0 | R219: 0 | S219: 0 | T219: 0 | U219: 0 | V219: 0 | W219: 0 | X219: 0 | Y219: 0
C221: Land
D222: Gross value of disposals | E222: $'000
D223: less Accumulated depreciation on disposals | E223: $'000
D224: Net value of disposals | E224: $'000 | F224: =F222-F223 -> 0 | G224: =G222-G223 -> 0 | H224: =H222-H223 -> 0 | I224: =I222-I223 -> 0 | J224: =J222-J223 -> 0 | K224: =K222-K223 -> 0 | L224: 0 | M224: 0 | N224: 0 | O224: 0 | P224: 0 | Q224: 0 | R224: 0 | S224: 0 | T224: 0 | U224: 0 | V224: 0 | W224: 0 | X224: 0 | Y224: 0
C226: Buildings other than infrastructure housing
D227: Gross value of disposals | E227: $'000
D228: less Accumulated depreciation on disposals | E228: $'000
D229: Net value of disposals | E229: $'000 | F229: =F227-F228 -> 0 | G229: =G227-G228 -> 0 | H229: =H227-H228 -> 0 | I229: =I227-I228 -> 0 | J229: =J227-J228 -> 0 | K229: =K227-K228 -> 0 | L229: 0 | M229: 0 | N229: 0 | O229: 0 | P229: 0 | Q229: 0 | R229: 0 | S229: 0 | T229: 0 | U229: 0 | V229: 0 | W229: 0 | X229: 0 | Y229: 0
C231: Distribution infrastructure not listed above
D232: Gross value of disposals | E232: $'000
D233: less Accumulated depreciation on disposals | E233: $'000
D234: Net value of disposals | E234: $'000 | F234: =F232-F233 -> 0 | G234: =G232-G233 -> 0 | H234: =H232-H233 -> 0 | I234: =I232-I233 -> 0 | J234: =J232-J233 -> 0 | K234: =K232-K233 -> 0 | L234: 0 | M234: 0 | N234: 0 | O234: 0 | P234: 0 | Q234: 0 | R234: 0 | S234: 0 | T234: 0 | U234: 0 | V234: 0 | W234: 0 | X234: 0 | Y234: 0
C236: ='Business Details'!$D$51 -> Support services
D237: Gross value of disposals | E237: $'000
D238: less Accumulated depreciation on disposals | E238: $'000
D239: Net value of disposals | E239: $'000 | F239: =F237-F238 -> 0 | G239: =G237-G238 -> 0 | H239: =H237-H238 -> 0 | I239: =I237-I238 -> 0 | J239: =J237-J238 -> 0 | K239: =K237-K238 -> 0 | L239: 0 | M239: 0 | N239: 0 | O239: 0 | P239: 0 | Q239: 0 | R239: 0 | S239: 0 | T239: 0 | U239: 0 | V239: 0 | W239: 0 | X239: 0 | Y239: 0
C241: ='Business Details'!$D$52 -> Mains
D242: Gross value of disposals | E242: $'000
D243: less Accumulated depreciation on disposals | E243: $'000
D244: Net value of disposals | E244: $'000 | F244: =F242-F243 -> 0 | G244: =G242-G243 -> 0 | H244: =H242-H243 -> 0 | I244: =I242-I243 -> 0 | J244: =J242-J243 -> 0 | K244: =K242-K243 -> 0 | L244: 0 | M244: 0 | N244: 0 | O244: 0 | P244: 0 | Q244: 0 | R244: 0 | S244: 0 | T244: 0 | U244: 0 | V244: 0 | W244: 0 | X244: 0 | Y244: 0
C246: ='Business Details'!$D$53 -> Establishment Costs
D247: Gross value of disposals | E247: $'000
D248: less Accumulated depreciation on disposals | E248: $'000
D249: Net value of disposals | E249: $'000 | F249: =F247-F248 -> 0 | G249: =G247-G248 -> 0 | H249: =H247-H248 -> 0 | I249: =I247-I248 -> 0 | J249: =J247-J248 -> 0 | K249: =K247-K248 -> 0 | L249: 0 | M249: 0 | N249: 0 | O249: 0 | P249: 0 | Q249: 0 | R249: 0 | S249: 0 | T249: 0 | U249: 0 | V249: 0 | W249: 0 | X249: 0 | Y249: 0
C251: ='Business Details'!$D$54 -> Unallocated cash contribution
D252: Gross value of disposals | E252: $'000
D253: less Accumulated depreciation on disposals | E253: $'000
D254: Net value of disposals | E254: $'000 | F254: =F252-F253 -> 0 | G254: =G252-G253 -> 0 | H254: =H252-H253 -> 0 | I254: =I252-I253 -> 0 | J254: =J252-J253 -> 0 | K254: =K252-K253 -> 0 | L254: 0 | M254: 0 | N254: 0 | O254: 0 | P254: 0 | Q254: 0 | R254: 0 | S254: 0 | T254: 0 | U254: 0 | V254: 0 | W254: 0 | X254: 0 | Y254: 0
B258: TRADE WASTE
C260: Reservoirs
D261: Gross value of disposals | E261: $'000
D262: less Accumulated depreciation on disposals | E262: $'000
D263: Net value of disposals | E263: $'000 | F263: =F261-F262 -> 0 | G263: =G261-G262 -> 0 | H263: =H261-H262 -> 0 | I263: =I261-I262 -> 0 | J263: =J261-J262 -> 0 | K263: =K261-K262 -> 0 | L263: 0 | M263: 0 | N263: 0 | O263: 0 | P263: 0 | Q263: 0 | R263: 0 | S263: 0 | T263: 0 | U263: 0 | V263: 0 | W263: 0 | X263: 0 | Y263: 0
C265: Pump stations
... 1669 more rows

Sheet 5.6.1
AA1: ="If revenues are smoothed beyond "&J11&", additional data is to be provided for the corresponding period. Additional years can be accessed by clicking on the '+' sign above." -> If revenues are smoothed beyond 2013, additional data is to be provided for the corresponding period. Additional years can be accessed by clicking on the '+' sign above.
B4: ='Business Details'!$B$4 -> SEQ INTERIM REVENUE MONITORING - INFORMATION REQUIREMENT TEMPLATE
B5: 5.6.1 CAPITAL EXPENDITURE | F5: Entities are to provide total capital expenditure (i.e. include capital contributions). Establishment costs are shown separately in this Schedule and included in 2009/10 capital expenditure. Capital expenditures is to be entered in the year that the asset is commissioned. See 5.6.2 worksheet. See section 5.6.1 of the Information Requirements.
B8: =CONCATENATE("Capital Expenditure for ",'Business Details'!$D$9) -> Capital Expenditure for Northern SEQ Distributor-Retailer Authority (Trading as Unitywater ABN: 89 791 717 472) | AA8: The entity is required to include a complete list of projects for sampling purposes.
B9: =CONCATENATE("Reporting year = ",AnalysisYear) -> Reporting year = 2014
B10: Geographic Area / Service / Asset Class | F10: ='5.1.1'!F12 -> For Year Ending 30 June: | AA10: ='5.1.1'!N12 -> For Year Ending 30 June 2014:
F11: ='5.1.1'!F13 -> 2009 | G11: ='5.1.1'!G13 -> 2010 | H11: ='5.1.1'!H13 -> 2011 | I11: ='5.1.1'!I13 -> 2012 | J11: ='5.1.1'!J13 -> 2013 | K11: =J11+1 -> 2014 | L11: =K11+1 -> 2015 | M11: 2016 | N11: 2017 | O11: 2018 | P11: 2019 | Q11: 2020 | R11: 2021 | S11: 2022 | T11: 2023 | U11: 2024 | V11: 2025 | W11: 2026 | X11: 2027 | Y11: 2028 | AA11: Supporting Documents
B13: ="Geographic Area 1 - "&'Business Details'!D12 -> Geographic Area 1 - Moreton Bay Regional Council
B15: TOTAL FOR GEOGRAPHIC AREA
D17: value of capex - new | E17: $'000 | H17: 123610 | I17: 295031 | J17: 53178.2 | K17: 63493.9 | L17: 85685.4
D18: value of capex - renewal of existing infrastructure | E18: $'000
D19: value of capex - improvements | E19: $'000
D20: value of capex - compliance | E20: $'000
D21: value of Contributed, donated and gifted assets | E21: $'000
D22: Total capital expenditure | E22: $'000 | F22: =SUM(F17:F21) -> 0 | G22: 0 | H22: 123610 | I22: 295031 | J22: 53178.2 | K22: 63493.9 | L22: =SUM(L17:L20) -> 85685.4 | M22: 0 | N22: 0 | O22: 0 | P22: 0 | Q22: 0 | R22: 0 | S22: 0 | T22: 0 | U22: 0 | V22: 0 | W22: 0 | X22: 0 | Y22: 0
B24: DRINKING WATER
C26: ='Business Details'!$D$40 -> Reservoirs
D27: value of capex - new | E27: $'000
D28: value of capex - renewal of existing infrastructure | E28: $'000
D29: value of capex - improvements | E29: $'000
D30: value of capex - compliance | E30: $'000
D31: value of Contributed, donated and gifted assets
D32: Total capital expenditure | E32: $'000 | F32: =SUM(F27:F31) -> 0 | G32: 0 | H32: 0 | I32: 0 | J32: 0 | K32: 0 | L32: =SUM(L27:L30) -> 0 | M32: 0 | N32: 0 | O32: 0 | P32: 0 | Q32: 0 | R32: 0 | S32: 0 | T32: 0 | U32: 0 | V32: 0 | W32: 0 | X32: 0 | Y32: 0
C34: ='Business Details'!$D$41 -> Pump stations
D35: value of capex - new | E35: $'000
D36: value of capex - renewal of existing infrastructure | E36: $'000
D37: value of capex - improvements | E37: $'000
D38: value of capex - compliance | E38: $'000
D39: value of Contributed, donated and gifted assets
D40: Total capital expenditure | E40: $'000 | F40: =SUM(F35:F39) -> 0 | G40: 0 | H40: 0 | I40: 0 | J40: 0 | K40: 0 | L40: =SUM(L35:L38) -> 0 | M40: 0 | N40: 0 | O40: 0 | P40: 0 | Q40: 0 | R40: 0 | S40: 0 | T40: 0 | U40: 0 | V40: 0 | W40: 0 | X40: 0 | Y40: 0
C42: ='Business Details'!$D$42 -> Treatment
D43: value of capex - new | E43: $'000
D44: value of capex - renewal of existing infrastructure | E44: $'000
D45: value of capex - improvements | E45: $'000
D46: value of capex - compliance | E46: $'000
D47: value of Contributed, donated and gifted assets
D48: Total capital expenditure | E48: $'000 | F48: =SUM(F43:F47) -> 0 | G48: 0 | H48: 0 | I48: 0 | J48: 0 | K48: 0 | L48: =SUM(L43:L46) -> 0 | M48: 0 | N48: 0 | O48: 0 | P48: 0 | Q48: 0 | R48: 0 | S48: 0 | T48: 0 | U48: 0 | V48: 0 | W48: 0 | X48: 0 | Y48: 0
C50: ='Business Details'!$D$43 -> Associated telemetry and control systems
D51: value of capex - new | E51: $'000
D52: value of capex - renewal of existing infrastructure | E52: $'000
D53: value of capex - improvements | E53: $'000
D54: value of capex - compliance | E54: $'000
D55: value of Contributed, donated and gifted assets
D56: Total capital expenditure | E56: $'000 | F56: =SUM(F51:F55) -> 0 | G56: 0 | H56: 0 | I56: 0 | J56: 0 | K56: 0 | L56: =SUM(L51:L54) -> 0 | M56: 0 | N56: 0 | O56: 0 | P56: 0 | Q56: 0 | R56: 0 | S56: 0 | T56: 0 | U56: 0 | V56: 0 | W56: 0 | X56: 0 | Y56: 0
C58: ='Business Details'!$D$44 -> Meters
D59: value of capex - new | E59: $'000
D60: value of capex - renewal of existing infrastructure | E60: $'000
D61: value of capex - improvements | E61: $'000
D62: value of capex - compliance | E62: $'000
D63: value of Contributed, donated and gifted assets
D64: Total capital expenditure | E64: $'000 | F64: =SUM(F59:F63) -> 0 | G64: 0 | H64: 0 | I64: 0 | J64: 0 | K64: 0 | L64: =SUM(L59:L62) -> 0 | M64: 0 | N64: 0 | O64: 0 | P64: 0 | Q64: 0 | R64: 0 | S64: 0 | T64: 0 | U64: 0 | V64: 0 | W64: 0 | X64: 0 | Y64: 0
C66: ='Business Details'!$D$45 -> Billing systems
D67: value of capex - new | E67: $'000
D68: value of capex - renewal of existing infrastructure | E68: $'000
D69: value of capex - improvements | E69: $'000
D70: value of capex - compliance | E70: $'000
D71: value of Contributed, donated and gifted assets
D72: Total capital expenditure | E72: $'000 | F72: =SUM(F67:F71) -> 0 | G72: 0 | H72: 0 | I72: 0 | J72: 0 | K72: 0 | L72: =SUM(L67:L70) -> 0 | M72: 0 | N72: 0 | O72: 0 | P72: 0 | Q72: 0 | R72: 0 | S72: 0 | T72: 0 | U72: 0 | V72: 0 | W72: 0 | X72: 0 | Y72: 0
C74: ='Business Details'!$D$46 -> Corporate systems
D75: value of capex - new | E75: $'000
D76: value of capex - renewal of existing infrastructure | E76: $'000
D77: value of capex - improvements | E77: $'000
D78: value of capex - compliance | E78: $'000
D79: value of Contributed, donated and gifted assets
D80: Total capital expenditure | E80: $'000 | F80: =SUM(F75:F79) -> 0 | G80: 0 | H80: 0 | I80: 0 | J80: 0 | K80: 0 | L80: =SUM(L75:L78) -> 0 | M80: 0 | N80: 0 | O80: 0 | P80: 0 | Q80: 0 | R80: 0 | S80: 0 | T80: 0 | U80: 0 | V80: 0 | W80: 0 | X80: 0 | Y80: 0
C82: ='Business Details'!$D$47 -> Sundry property, plant and equipment
D83: value of capex - new | E83: $'000
D84: value of capex - renewal of existing infrastructure | E84: $'000
D85: value of capex - improvements | E85: $'000
D86: value of capex - compliance | E86: $'000
D87: value of Contributed, donated and gifted assets
D88: Total capital expenditure | E88: $'000 | F88: =SUM(F83:F87) -> 0 | G88: 0 | H88: 0 | I88: 0 | J88: 0 | K88: 0 | L88: =SUM(L83:L86) -> 0 | M88: 0 | N88: 0 | O88: 0 | P88: 0 | Q88: 0 | R88: 0 | S88: 0 | T88: 0 | U88: 0 | V88: 0 | W88: 0 | X88: 0 | Y88: 0
C90: ='Business Details'!$D$48 -> Land
D91: value of capex - new | E91: $'000
D92: value of capex - renewal of existing infrastructure | E92: $'000
D93: value of capex - improvements | E93: $'000
D94: value of capex - compliance | E94: $'000
D95: value of Contributed, donated and gifted assets
D96: Total capital expenditure | E96: $'000 | F96: =SUM(F91:F95) -> 0 | G96: 0 | H96: 0 | I96: 0 | J96: 0 | K96: 0 | L96: =SUM(L91:L94) -> 0 | M96: 0 | N96: 0 | O96: 0 | P96: 0 | Q96: 0 | R96: 0 | S96: 0 | T96: 0 | U96: 0 | V96: 0 | W96: 0 | X96: 0 | Y96: 0
C98: ='Business Details'!$D$49 -> Building other than infrastructure housing
D99: value of capex - new | E99: $'000
D100: value of capex - renewal of existing infrastructure | E100: $'000
D101: value of capex - improvements | E101: $'000
D102: value of capex - compliance | E102: $'000
D103: value of Contributed, donated and gifted assets
D104: Total capital expenditure | E104: $'000 | F104: =SUM(F99:F103) -> 0 | G104: 0 | H104: 0 | I104: 0 | J104: 0 | K104: 0 | L104: =SUM(L99:L102) -> 0 | M104: 0 | N104: 0 | O104: 0 | P104: 0 | Q104: 0 | R104: 0 | S104: 0 | T104: 0 | U104: 0 | V104: 0 | W104: 0 | X104: 0 | Y104: 0
C106: ='Business Details'!$D$50 -> Distribution infrastructure not included in another category
D107: value of capex - new | E107: $'000
D108: value of capex - renewal of existing infrastructure | E108: $'000
D109: value of capex - improvements | E109: $'000
D110: value of capex - compliance | E110: $'000
D111: value of Contributed, donated and gifted assets
D112: Total capital expenditure | E112: $'000 | F112: =SUM(F107:F111) -> 0 | G112: 0 | H112: 0 | I112: 0 | J112: 0 | K112: 0 | L112: =SUM(L107:L110) -> 0 | M112: 0 | N112: 0 | O112: 0 | P112: 0 | Q112: 0 | R112: 0 | S112: 0 | T112: 0 | U112: 0 | V112: 0 | W112: 0 | X112: 0 | Y112: 0
C114: ='Business Details'!$D$51 -> Support services
D115: value of capex - new | E115: $'000
D116: value of capex - renewal of existing infrastructure | E116: $'000
D117: value of capex - improvements | E117: $'000
D118: value of capex - compliance | E118: $'000
D119: value of Contributed, donated and gifted assets
D120: Total capital expenditure | E120: $'000 | F120: =SUM(F115:F119) -> 0 | G120: 0 | H120: 0 | I120: 0 | J120: 0 | K120: 0 | L120: =SUM(L115:L118) -> 0 | M120: 0 | N120: 0 | O120: 0 | P120: 0 | Q120: 0 | R120: 0 | S120: 0 | T120: 0 | U120: 0 | V120: 0 | W120: 0 | X120: 0 | Y120: 0
C122: ='Business Details'!$D$52 -> Mains
D123: value of capex - new | E123: $'000
D124: value of capex - renewal of existing infrastructure | E124: $'000
D125: value of capex - improvements | E125: $'000
D126: value of capex - compliance | E126: $'000
D127: value of Contributed, donated and gifted assets
D128: Total capital expenditure | E128: $'000 | F128: =SUM(F123:F127) -> 0 | G128: 0 | H128: 0 | I128: 0 | J128: 0 | K128: 0 | L128: =SUM(L123:L126) -> 0 | M128: 0 | N128: 0 | O128: 0 | P128: 0 | Q128: 0 | R128: 0 | S128: 0 | T128: 0 | U128: 0 | V128: 0 | W128: 0 | X128: 0 | Y128: 0
C130: ='Business Details'!$D$53 -> Establishment Costs
D131: value of capex - new | E131: $'000
D132: value of capex - renewal of existing infrastructure | E132: $'000
D133: value of capex - improvements | E133: $'000
D134: value of capex - compliance | E134: $'000
D135: value of Contributed, donated and gifted assets
D136: Total capital expenditure | E136: $'000 | F136: =SUM(F131:F135) -> 0 | G136: 0 | H136: 0 | I136: 0 | J136: 0 | K136: 0 | L136: =SUM(L131:L134) -> 0 | M136: 0 | N136: 0 | O136: 0 | P136: 0 | Q136: 0 | R136: 0 | S136: 0 | T136: 0 | U136: 0 | V136: 0 | W136: 0 | X136: 0 | Y136: 0
C138: ='Business Details'!$D$54 -> Unallocated cash contribution
D139: value of capex - new | E139: $'000
D140: value of capex - renewal of existing infrastructure | E140: $'000
D141: value of capex - improvements | E141: $'000
D142: value of capex - compliance | E142: $'000
D143: value of Contributed, donated and gifted assets
D144: Total capital expenditure | E144: $'000 | F144: =SUM(F139:F143) -> 0 | G144: 0 | H144: 0 | I144: 0 | J144: 0 | K144: 0 | L144: =SUM(L139:L142) -> 0 | M144: 0 | N144: 0 | O144: 0 | P144: 0 | Q144: 0 | R144: 0 | S144: 0 | T144: 0 | U144: 0 | V144: 0 | W144: 0 | X144: 0 | Y144: 0
B148: Other core water services
C150: ='Business Details'!$D$40 -> Reservoirs
D151: value of capex - new | E151: $'000
D152: value of capex - renewal of existing infrastructure | E152: $'000
D153: value of capex - improvements | E153: $'000
D154: value of capex - compliance | E154: $'000
D155: value of Contributed, donated and gifted assets
D156: Total capital expenditure | E156: $'000 | F156: =SUM(F151:F155) -> 0 | G156: 0 | H156: 0 | I156: 0 | J156: 0 | K156: 0 | L156: =SUM(L151:L154) -> 0 | M156: 0 | N156: 0 | O156: 0 | P156: 0 | Q156: 0 | R156: 0 | S156: 0 | T156: 0 | U156: 0 | V156: 0 | W156: 0 | X156: 0 | Y156: 0
C158: ='Business Details'!$D$41 -> Pump stations
D159: value of capex - new | E159: $'000
D160: value of capex - renewal of existing infrastructure | E160: $'000
D161: value of capex - improvements | E161: $'000
D162: value of capex - compliance | E162: $'000
D163: value of Contributed, donated and gifted assets
D164: Total capital expenditure | E164: $'000 | F164: =SUM(F159:F163) -> 0 | G164: 0 | H164: 0 | I164: 0 | J164: 0 | K164: 0 | L164: =SUM(L159:L162) -> 0 | M164: 0 | N164: 0 | O164: 0 | P164: 0 | Q164: 0 | R164: 0 | S164: 0 | T164: 0 | U164: 0 | V164: 0 | W164: 0 | X164: 0 | Y164: 0
C166: ='Business Details'!$D$42 -> Treatment
D167: value of capex - new | E167: $'000
D168: value of capex - renewal of existing infrastructure | E168: $'000
D169: value of capex - improvements | E169: $'000
D170: value of capex - compliance | E170: $'000
D171: value of Contributed, donated and gifted assets
D172: Total capital expenditure | E172: $'000 | F172: =SUM(F167:F171) -> 0 | G172: 0 | H172: 0 | I172: 0 | J172: 0 | K172: 0 | L172: =SUM(L167:L170) -> 0 | M172: 0 | N172: 0 | O172: 0 | P172: 0 | Q172: 0 | R172: 0 | S172: 0 | T172: 0 | U172: 0 | V172: 0 | W172: 0 | X172: 0 | Y172: 0
C174: ='Business Details'!$D$43 -> Associated telemetry and control systems
D175: value of capex - new | E175: $'000
D176: value of capex - renewal of existing infrastructure | E176: $'000
D177: value of capex - improvements | E177: $'000
D178: value of capex - compliance | E178: $'000
D179: value of Contributed, donated and gifted assets
D180: Total capital expenditure | E180: $'000 | F180: =SUM(F175:F179) -> 0 | G180: 0 | H180: 0 | I180: 0 | J180: 0 | K180: 0 | L180: =SUM(L175:L178) -> 0 | M180: 0 | N180: 0 | O180: 0 | P180: 0 | Q180: 0 | R180: 0 | S180: 0 | T180: 0 | U180: 0 | V180: 0 | W180: 0 | X180: 0 | Y180: 0
C182: ='Business Details'!$D$44 -> Meters
D183: value of capex - new | E183: $'000
D184: value of capex - renewal of existing infrastructure | E184: $'000
D185: value of capex - improvements | E185: $'000
D186: value of capex - compliance | E186: $'000
D187: value of Contributed, donated and gifted assets
D188: Total capital expenditure | E188: $'000 | F188: =SUM(F183:F187) -> 0 | G188: 0 | H188: 0 | I188: 0 | J188: 0 | K188: 0 | L188: =SUM(L183:L186) -> 0 | M188: 0 | N188: 0 | O188: 0 | P188: 0 | Q188: 0 | R188: 0 | S188: 0 | T188: 0 | U188: 0 | V188: 0 | W188: 0 | X188: 0 | Y188: 0
C190: ='Business Details'!$D$45 -> Billing systems
D191: value of capex - new | E191: $'000
D192: value of capex - renewal of existing infrastructure | E192: $'000
D193: value of capex - improvements | E193: $'000
D194: value of capex - compliance | E194: $'000
D195: value of Contributed, donated and gifted assets
D196: Total capital expenditure | E196: $'000 | F196: =SUM(F191:F195) -> 0 | G196: 0 | H196: 0 | I196: 0 | J196: 0 | K196: 0 | L196: =SUM(L191:L194) -> 0 | M196: 0 | N196: 0 | O196: 0 | P196: 0 | Q196: 0 | R196: 0 | S196: 0 | T196: 0 | U196: 0 | V196: 0 | W196: 0 | X196: 0 | Y196: 0
C198: ='Business Details'!$D$46 -> Corporate systems
D199: value of capex - new | E199: $'000
D200: value of capex - renewal of existing infrastructure | E200: $'000
D201: value of capex - improvements | E201: $'000
D202: value of capex - compliance | E202: $'000
D203: value of Contributed, donated and gifted assets
D204: Total capital expenditure | E204: $'000 | F204: =SUM(F199:F203) -> 0 | G204: 0 | H204: 0 | I204: 0 | J204: 0 | K204: 0 | L204: =SUM(L199:L202) -> 0 | M204: 0 | N204: 0 | O204: 0 | P204: 0 | Q204: 0 | R204: 0 | S204: 0 | T204: 0 | U204: 0 | V204: 0 | W204: 0 | X204: 0 | Y204: 0
C206: ='Business Details'!$D$47 -> Sundry property, plant and equipment
D207: value of capex - new | E207: $'000
D208: value of capex - renewal of existing infrastructure | E208: $'000
D209: value of capex - improvements | E209: $'000
D210: value of capex - compliance | E210: $'000
D211: value of Contributed, donated and gifted assets
D212: Total capital expenditure | E212: $'000 | F212: =SUM(F207:F211) -> 0 | G212: 0 | H212: 0 | I212: 0 | J212: 0 | K212: 0 | L212: =SUM(L207:L210) -> 0 | M212: 0 | N212: 0 | O212: 0 | P212: 0 | Q212: 0 | R212: 0 | S212: 0 | T212: 0 | U212: 0 | V212: 0 | W212: 0 | X212: 0 | Y212: 0
C214: ='Business Details'!$D$48 -> Land
D215: value of capex - new | E215: $'000
D216: value of capex - renewal of existing infrastructure | E216: $'000
D217: value of capex - improvements | E217: $'000
D218: value of capex - compliance | E218: $'000
D219: value of Contributed, donated and gifted assets
D220: Total capital expenditure | E220: $'000 | F220: =SUM(F215:F219) -> 0 | G220: 0 | H220: 0 | I220: 0 | J220: 0 | K220: 0 | L220: =SUM(L215:L218) -> 0 | M220: 0 | N220: 0 | O220: 0 | P220: 0 | Q220: 0 | R220: 0 | S220: 0 | T220: 0 | U220: 0 | V220: 0 | W220: 0 | X220: 0 | Y220: 0
C222: ='Business Details'!$D$49 -> Building other than infrastructure housing
D223: value of capex - new | E223: $'000
D224: value of capex - renewal of existing infrastructure | E224: $'000
D225: value of capex - improvements | E225: $'000
D226: value of capex - compliance | E226: $'000
D227: value of Contributed, donated and gifted assets
D228: Total capital expenditure | E228: $'000 | F228: =SUM(F223:F227) -> 0 | G228: 0 | H228: 0 | I228: 0 | J228: 0 | K228: 0 | L228: =SUM(L223:L226) -> 0 | M228: 0 | N228: 0 | O228: 0 | P228: 0 | Q228: 0 | R228: 0 | S228: 0 | T228: 0 | U228: 0 | V228: 0 | W228: 0 | X228: 0 | Y228: 0
C230: ='Business Details'!$D$50 -> Distribution infrastructure not included in another category
D231: value of capex - new | E231: $'000
D232: value of capex - renewal of existing infrastructure | E232: $'000
D233: value of capex - improvements | E233: $'000
D234: value of capex - compliance | E234: $'000
D235: value of Contributed, donated and gifted assets
D236: Total capital expenditure | E236: $'000 | F236: =SUM(F231:F235) -> 0 | G236: 0 | H236: 0 | I236: 0 | J236: 0 | K236: 0 | L236: =SUM(L231:L234) -> 0 | M236: 0 | N236: 0 | O236: 0 | P236: 0 | Q236: 0 | R236: 0 | S236: 0 | T236: 0 | U236: 0 | V236: 0 | W236: 0 | X236: 0 | Y236: 0
C238: ='Business Details'!$D$51 -> Support services
... 3050 more rows

Sheet 5.6.2
D1: Yes
D2: No
B4: ='Business Details'!$B$4 -> SEQ INTERIM REVENUE MONITORING - INFORMATION REQUIREMENT TEMPLATE
B7: =CONCATENATE("Capital Expenditure for ",'Business Details'!$D$9," - ") -> Capital Expenditure for Northern SEQ Distributor-Retailer Authority (Trading as Unitywater ABN: 89 791 717 472) -
B8: =CONCATENATE("Reporting year = ",AnalysisYear) -> Reporting year = 2014
C13: Project Name | D13: Geographic Area | F13: Service Category | H13: Driver (% Allocation ) | N13: Asset Class (% allocation) | AD13: Year of Commissioning | AF13: Indexation Rate Applied | AG13: Indexation included in entry | AH13: Total Capital Expenditure as Commissioned | AK13: Capital Expenditure as Incurred For Year Ending 30 June: | BD13: Supporting
D14: (dropdown list) | F14: (dropdown list) | H14: Growth | I14: Renewals | J14: Compliance | K14: Improvement | L14: Donated | N14: Reservoirs | O14: Pump stations | P14: Treatment | Q14: Telemetry & control | R14: Meters | S14: Billing systems | T14: Corporate systems | U14: Sundry property, plant & equipment | V14: Land | W14: Building other than infrastructure housing | X14: Distribution infrastructure not included in another category | Y14: Support services | Z14: Mains | AB14: Project Description | AI14: Unit | AK14: ='5.1.1'!H13 -> 2011 | AL14: ='5.1.1'!I13 -> 2012 | AM14: ='5.1.1'!J13 -> 2013 | AN14: =AM14+1 -> 2014 | AO14: =AN14+1 -> 2015 | AP14: 2016 | AQ14: 2017 | AR14: 2018 | AS14: 2019 | AT14: 2020 | AU14: 2021 | AV14: 2022 | AW14: 2023 | AX14: 2024 | AY14: 2025 | AZ14: 2026 | BA14: 2027 | BB14: 2028 | BD14: Documents | BZ14: =BY14 -> 
B16: 1 | C16: Refer to 5.6.2 Supplementary Worksheet | AG16: No | AI16: $
B17: 2 | AI17: $
B18: 3 | AI18: $
B19: 4 | AI19: $
B20: 5 | AI20: $
B21: 6 | AI21: $
B22: 7 | AI22: $
B23: 8 | AI23: $
B24: 9 | AI24: $
B25: 10 | AI25: $
B26: 11 | AI26: $
B27: 12 | AI27: $
B28: 13 | AI28: $
B29: 14 | AI29: $
B30: 15 | AI30: $
B31: 16 | AI31: $
B32: 17 | AI32: $
B33: 18 | AI33: $
B34: 19 | AI34: $
B35: 20 | AI35: $
B36: 21 | AI36: $
B37: 22 | AI37: $
B38: 23 | AI38: $
B39: 24 | AI39: $
B40: 25 | AI40: $
B41: 26 | AI41: $
B42: 27 | AI42: $
B43: 28 | AI43: $
B44: 29 | AI44: $
B45: 30 | AI45: $
B46: 31 | AI46: $
B47: 32 | AI47: $
B48: 33 | AI48: $
B49: 34 | AI49: $
B50: 35 | AI50: $
B51: 36 | AI51: $
B52: 37 | AI52: $
B53: 38 | AI53: $
B57: Total Expenditure | AI57: $'000 | AK57: =SUM(AK16:AK53) -> 0 | AL57: =SUM(AL16:AL53) -> 0 | AM57: =SUM(AM16:AM53) -> 0 | AN57: =SUMIF($C:$C,"=Revenue",AN:AN) -> 0 | AO57: 0 | AP57: 0 | AQ57: 0 | AR57: 0 | AS57: 0 | AT57: 0 | AU57: 0 | AV57: 0 | AW57: 0 | AX57: 0 | AY57: 0 | AZ57: 0 | BA57: 0 | BB57: 0
AO58: =IF(AO57=('5.6.1'!L22+'5.6.1'!#REF!+'5.6.1'!#REF!+'5.6.1'!#REF!+'5.6.1'!#REF!),"OK","check") ->  | AP58: =IF(AP57=('5.6.1'!M22+'5.6.1'!#REF!+'5.6.1'!#REF!+'5.6.1'!#REF!+'5.6.1'!#REF!),"OK","check") ->  | AQ58: =IF(AQ57=('5.6.1'!N22+'5.6.1'!#REF!+'5.6.1'!#REF!+'5.6.1'!#REF!+'5.6.1'!#REF!),"OK","check") ->  | AR58: =IF(AR57=('5.6.1'!O22+'5.6.1'!#REF!+'5.6.1'!#REF!+'5.6.1'!#REF!+'5.6.1'!#REF!),"OK","check") ->  | AS58: =IF(AS57=('5.6.1'!P22+'5.6.1'!#REF!+'5.6.1'!#REF!+'5.6.1'!#REF!+'5.6.1'!#REF!),"OK","check") ->  | AT58: =IF(AT57=('5.6.1'!Q22+'5.6.1'!#REF!+'5.6.1'!#REF!+'5.6.1'!#REF!+'5.6.1'!#REF!),"OK","check") ->  | AU58: =IF(AU57=('5.6.1'!R22+'5.6.1'!#REF!+'5.6.1'!#REF!+'5.6.1'!#REF!+'5.6.1'!#REF!),"OK","check") ->  | AV58: =IF(AV57=('5.6.1'!S22+'5.6.1'!#REF!+'5.6.1'!#REF!+'5.6.1'!#REF!+'5.6.1'!#REF!),"OK","check") ->  | AW58: =IF(AW57=('5.6.1'!T22+'5.6.1'!#REF!+'5.6.1'!#REF!+'5.6.1'!#REF!+'5.6.1'!#REF!),"OK","check") ->  | AX58: =IF(AX57=('5.6.1'!U22+'5.6.1'!#REF!+'5.6.1'!#REF!+'5.6.1'!#REF!+'5.6.1'!#REF!),"OK","check") ->  | AY58: =IF(AY57=('5.6.1'!V22+'5.6.1'!#REF!+'5.6.1'!#REF!+'5.6.1'!#REF!+'5.6.1'!#REF!),"OK","check") ->  | AZ58: =IF(AZ57=('5.6.1'!W22+'5.6.1'!#REF!+'5.6.1'!#REF!+'5.6.1'!#REF!+'5.6.1'!#REF!),"OK","check") ->  | BA58: =IF(BA57=('5.6.1'!X22+'5.6.1'!#REF!+'5.6.1'!#REF!+'5.6.1'!#REF!+'5.6.1'!#REF!),"OK","check") ->  | BB58: =IF(BB57=('5.6.1'!Y22+'5.6.1'!#REF!+'5.6.1'!#REF!+'5.6.1'!#REF!+'5.6.1'!#REF!),"OK","check") -> 
A91: List for Geographic Areas
A92: ='Business Details'!D12 -> Moreton Bay Regional Council
A93: ='Business Details'!D13 -> Sunshine Coast Regional Council
A94: ='Business Details'!D14 -> N/A
A95: ='Business Details'!D15 -> N/A
A96: ='Business Details'!D16 -> N/A
A98: List for Services
A99: Drinking water
A100: Other Core Water Services
A101: Waste-water via Sewer
A102: Trade Waste
A103: Other Core Waste-water Services
A104: Aggregate Non-regulated Services
A108: Driver type
A109: Growth
A110: Renewal of Existing Infrastructure
A111: Improvements
A112: compliance

Sheet 5.6.2 Supplementary
S1: Total Capital | T1: 151535708 | U1: 136843791 | V1: 117256884 | W1: 128065024 | X1: 194539423 | AA1: OCAM | AB1: 25773209.94 | AC1: 24825175.33 | AD1: 27187843.42 | AE1: 33674122.51 | AJ1: Interest | AL1: 5591340.83 | AM1: 4851134.094 | AN1: 5616514.974 | AO1: 9397421.177
S2: Total OCAM Capital | T2: 142300509 | U2: 129531621 | V2: 113075353 | W2: 120203190 | X2: 188478068 | AA2: Check | AB2: 0 | AC2: 0 | AD2: 0 | AE2: 0 | AJ2: Check | AL2: 0 | AM2: 0 | AN2: 0 | AO2: 0
S3: Total Interest Capital | T3: 91678628 | U3: 83605552 | V3: 81109076 | W3: 104511203 | X3: 177608278
A4: Provided By Management Accountant - IPCD | B4: Provided By Management Accountant - IPCD | C4: Provided By Management Accountant - IPCD | D4: Provided By Management Accountant - IPCD | E4: Provided By Management Accountant - IPCD | F4: Provided by Project Scheduler in Capital Delivery and Management Accountant Corporate | H4: Provided By Management Accountant - IPCD | I4: Provided By Management Accountant - IPCD | K4: Provided By Management Accountant - IPCD | O4: Provided By Management Accountant - IPCD | P4: Provided By Management Accountant - IPCD | Q4: Provided By Management Accountant - IPCD | R4: Provided By Management Accountant - IPCD | S4: Provided By Management Accountant - IPCD and Corporate | T4: Provided By Management Accountant - IPCD | U4: Provided By Management Accountant - IPCD | V4: Provided By Management Accountant - IPCD | W4: Provided By Management Accountant - IPCD | X4: Provided By Management Accountant - IPCD | Z4: Based on 13/14 OCAM | AA4: Provided By Management Accountant - IPCD | AB4: Provided LTFM as per 13-14 budget board papers | AC4: Provided LTFM as per 13-14 budget board papers | AD4: Provided LTFM as per 13-14 budget board papers | AE4: Provided LTFM as per 13-14 budget board papers | AK4: Provided By Management Accountant - IPCD | AL4: Provided LTFM as per 13-14 budget board papers | AM4: Provided LTFM as per 13-14 budget board papers | AN4: Provided LTFM as per 13-14 budget board papers | AO4: Provided LTFM as per 13-14 budget board papers
A5: F1 System | B5: F1 System | C5: F1 System | D5: F1 System | E5: F1 System | F5: Based on 1st May Schedule Update - P6 (for ISD Projects) | H5: F1 System | I5: F1 System | J5: Unknown | K5: F1 System | L5: Unknown | M5: Unknown | N5: Unknown | O5: F1 System | P5: F1 System | Q5: F1 System | R5: F1 System | S5: F1 System | T5: Budget Module F1 | U5: Budget Module F1 | V5: Budget Module F1 | W5: Budget Module F1 | X5: Budget Module F1 | AA5: Budget Module F1 | AB5: Budget Module F1 | AC5: Budget Module F1 | AD5: Budget Module F1 | AE5: Budget Module F1 | AK5: Budget Module F1 | AL5: Budget Module F1 | AM5: Budget Module F1 | AN5: Budget Module F1 | AO5: Budget Module F1
A6: Division | B6: Capital Group | C6: Project Number | D6: Project Name | E6: Project Description/Justification | F6: Start Date | G6: Completion Date | H6: Responsible Officer | I6: Cost Driver | J6: Asset Life | K6: Asset Class | L6: Asset Category | M6: Asset Group | N6: QCA Service | O6: QCA Sub Service | P6: Product Type | Q6: Region | R6: Function | S6: Forecasted Exp.FY 12/13 | T6: Budgeted Exp. FY 13/14 | U6: Budgeted Exp. FY 14/15 | V6: Budgeted Exp. FY 15/16 | W6: Budgeted Exp. FY 16/17 | X6: Budgeted Exp. FY 17/18 | Y6: 13/14 to 17/18 | Z6: OCAM Applicable | AA6: Budgeted OCAM FY 13/14 | AB6: Budgeted OCAM FY 14/15 | AC6: Budgeted OCAM FY 15/16 | AD6: Budgeted OCAM FY 16/17 | AE6: Budgeted OCAM FY 17/18 | AF6: Interest Applicable 13/14 | AG6: Interest Applicable 14/15 | AH6: Interest Applicable 15/16 | AI6: Interest Applicable 16/17 | AJ6: Interest Applicable 17/18 | AK6: Budgeted Interest Cap. FY 13/14 | AL6: Budgeted Interest Cap. FY 14/15 | AM6: Budgeted Interest Cap. FY 15/16 | AN6: Budgeted Interest Cap. FY 16/17 | AO6: Budgeted Interest Cap. FY 17/18
A7: ISD | B7: 12 - Major Projects | C7: C0001 | D7: NOOSA HEADS STP, Augmentation | E7: Budget FY13/14 | F7: 2010-07-01 | G7: 2016-08-02 | H7: 904 - Ben Goodall | I7: 02 - Compliance | K7: 10 - Treatment | O7: 305 - Sewerage Treatment | P7: 2 - Sewerage | Q7: NTH - North | R7: 2 - Distribution | S7: 232313.32 | T7: 381193 | U7: 6707830 | V7: 10164095 | W7: 0 | X7: 0 | Y7: 17253118 | Z7: 1 | AA7: 59034 | AB7: 1334672.642 | AC7: 2231480.457 | AD7: 0 | AE7: 0 | AF7: 1 | AG7: 1 | AH7: 1 | AI7: 1 | AJ7: 1 | AK7: 45135 | AL7: 448603.7453 | AM7: 607914.5543 | AN7: 0 | AO7: 0
A8: ISD | B8: 14 - Network Projects | C8: C0008 | D8: Bundilla Blvd., MOUNTAIN CREEK - SPS MTN036 Diversion RM | E8: Budget FY13/14 | F8: 2009-11-02 | G8: 2019-04-09 | H8: 954 - Steve Alfredson | I8: 04 - Growth | K8: 06 - Pump Stations | O8: 304 - Sewerage Collection | P8: 2 - Sewerage | Q8: NTH - North | R8: 2 - Distribution | S8: 132260 | T8: 0 | U8: 0 | V8: 0 | W8: 0 | X8: 461525 | Y8: 461525 | Z8: 1 | AA8: 0 | AB8: 0 | AC8: 0 | AD8: 0 | AE8: 82457.60134 | AF8: 0 | AG8: 1 | AH8: 1 | AI8: 1 | AJ8: 1 | AK8: 0 | AL8: 0 | AM8: 0 | AN8: 0 | AO8: 24419.7222
A9: ISD | B9: 14 - Network Projects | C9: C0012 | D9: Juron St, NOOSAVILLE - SPS NVL010 (NV10) | E9: Budget FY13/14 | F9: 2011-01-19 | G9: 2014-01-09 | H9: 929 - Murray Green | I9: 04 - Growth | K9: 05 - Other Distribution | O9: 304 - Sewerage Collection | P9: 2 - Sewerage | Q9: NTH - North | R9: 2 - Distribution | S9: 305770.8 | T9: 650312 | U9: 0 | V9: 0 | W9: 0 | X9: 0 | Y9: 650312 | Z9: 1 | AA9: 112553 | AB9: 0 | AC9: 0 | AD9: 0 | AE9: 0 | AF9: 1 | AG9: 1 | AH9: 1 | AI9: 1 | AJ9: 1 | AK9: 1033 | AL9: 0 | AM9: 0 | AN9: 0 | AO9: 0
A10: ISD | B10: 14 - Network Projects | C10: C0020 | D10: Wastewater Pump Station PS07X (117L/s v 28m) | E10: Budget FY13/14 | F10: 2013-07-02 | G10: 2014-02-05 | H10: 926 - Melissa Johnson | I10: 04 - Growth | K10: 05 - Other Distribution | O10: 304 - Sewerage Collection | P10: 2 - Sewerage | Q10: STH - South | R10: 2 - Distribution | S10: 20695.34 | T10: 203343 | U10: 0 | V10: 0 | W10: 0 | X10: 0 | Y10: 203343 | Z10: 1 | AA10: 0 | AB10: 0 | AC10: 0 | AD10: 0 | AE10: 0 | AF10: 0 | AG10: 0 | AH10: 0 | AI10: 0 | AJ10: 0 | AK10: 0 | AL10: 0 | AM10: 0 | AN10: 0 | AO10: 0
A11: ISD | B11: 14 - Network Projects | C11: C0024 | D11: Emergency Storage EMS-03X (50kL) | E11: Budget FY13/14 | F11: 2010-11-01 | G11: 2016-12-22 | H11: 926 - Melissa Johnson | I11: 05 - Improvements | K11: 05 - Other Distribution | O11: 304 - Sewerage Collection | P11: 2 - Sewerage | Q11: STH - South | R11: 2 - Distribution | S11: 0 | T11: 0 | U11: 0 | V11: 133447 | W11: 715022 | X11: 0 | Y11: 848469 | Z11: 1 | AA11: 0 | AB11: 0 | AC11: 29297.67703 | AD11: 161725.3766 | AE11: 0 | AF11: 0 | AG11: 1 | AH11: 1 | AI11: 1 | AJ11: 1 | AK11: 0 | AL11: 0 | AM11: 7981.465495 | AN11: 38425.84962 | AO11: 0
A12: ISD | B12: 12 - Major Projects | C12: C0028 | D12: MALENY STP, Upgrade | E12: Budget FY13/14 | F12: 2010-11-03 | G12: 2014-05-27 | H12: 962 - Andrew Mills | I12: 02 - Compliance | K12: 10 - Treatment | O12: 305 - Sewerage Treatment | P12: 2 - Sewerage | Q12: NTH - North | R12: 2 - Distribution | S12: 4668355.58 | T12: 10776309 | U12: 678615 | V12: 194618 | W12: 0 | X12: 0 | Y12: 11649542 | Z12: 1 | AA12: 1846725 | AB12: 135025.6156 | AC12: 42727.48963 | AD12: 0 | AE12: 0 | AF12: 1 | AG12: 1 | AH12: 1 | AI12: 1 | AJ12: 1 | AK12: 746770 | AL12: 45384.1601 | AM12: 11640.1032 | AN12: 0 | AO12: 0
A13: ISD | B13: 14 - Network Projects | C13: C0039 | D13: Ningi Upgrade of Red Line | E13: Budget FY13/14 | F13: 2010-09-15 | G13: 2013-11-27 | H13: 932 - Paul Eder | I13: 02 - Compliance | K13: 05 - Other Distribution | O13: 304 - Sewerage Collection | P13: 2 - Sewerage | Q13: STH - South | R13: 2 - Distribution | S13: 60955.93 | T13: 684609 | U13: 0 | V13: 0 | W13: 0 | X13: 0 | Y13: 684609 | Z13: 1 | AA13: 110032 | AB13: 0 | AC13: 0 | AD13: 0 | AE13: 0 | AF13: 0 | AG13: 0 | AH13: 0 | AI13: 0 | AJ13: 0 | AK13: 0 | AL13: 0 | AM13: 0 | AN13: 0 | AO13: 0
A14: ISD | B14: 14 - Network Projects | C14: C0043 | D14: Woodcliffe Cr WOODY POINT Storage NewEMS10X (55kL) | E14: Budget FY13/14 | F14: 2010-11-01 | G14: 2017-04-25 | H14: 926 - Melissa Johnson | I14: 05 - Improvements | K14: 05 - Other Distribution | O14: 304 - Sewerage Collection | P14: 2 - Sewerage | Q14: STH - South | R14: 2 - Distribution | S14: 0 | T14: 0 | U14: 0 | V14: 0 | W14: 652455 | X14: 0 | Y14: 652455 | Z14: 1 | AA14: 0 | AB14: 0 | AC14: 0 | AD14: 147573.8238 | AE14: 0 | AF14: 0 | AG14: 1 | AH14: 1 | AI14: 1 | AJ14: 1 | AK14: 0 | AL14: 0 | AM14: 0 | AN14: 35063.44939 | AO14: 0
A15: ISD | B15: 12 - Major Projects | C15: C0050 | D15: NAMBOUR STP, Upgrade | E15: Budget FY13/14 | F15: 2010-10-04 | G15: 2014-11-07 | H15: 952 - Rickey Donald | I15: 04 - Growth | K15: 10 - Treatment | O15: 305 - Sewerage Treatment | P15: 2 - Sewerage | Q15: NTH - North | R15: 2 - Distribution | S15: 12138435.76 | T15: 28515324 | U15: 4627689 | V15: 0 | W15: 0 | X15: 0 | Y15: 33143013 | Z15: 1 | AA15: 4636661 | AB15: 920782.1165 | AC15: 0 | AD15: 0 | AE15: 0 | AF15: 1 | AG15: 1 | AH15: 1 | AI15: 1 | AJ15: 1 | AK15: 1436090 | AL15: 309488.8537 | AM15: 0 | AN15: 0 | AO15: 0
A16: ISD | B16: 14 - Network Projects | C16: C0052 | D16: Cinnamon Ave COOLUM Pumpstation Upgrade SPS-CLM099 | E16: Budget FY13/14 | F16: 2013-10-23 | G16: 2015-06-15 | H16: 902 - Ashley Massie | I16: 04 - Growth | K16: 06 - Pump Stations | O16: 304 - Sewerage Collection | P16: 2 - Sewerage | Q16: NTH - North | R16: 2 - Distribution | S16: 18400 | T16: 34465 | U16: 799247 | V16: 0 | W16: 0 | X16: 0 | Y16: 833712 | Z16: 1 | AA16: 5441 | AB16: 159028.0471 | AC16: 0 | AD16: 0 | AE16: 0 | AF16: 0 | AG16: 0 | AH16: 0 | AI16: 0 | AJ16: 0 | AK16: 0 | AL16: 0 | AM16: 0 | AN16: 0 | AO16: 0
A17: ISD | B17: 14 - Network Projects | C17: C0056 | D17: Stern Dr, WURTULLA - SPS KAW065 (RP1) | E17: Budget FY13/14 | F17: 2016-07-01 | G17: 2018-06-20 | H17: 902 - Ashley Massie | I17: 06 - Infrastructure Effic | K17: 06 - Pump Stations | O17: 304 - Sewerage Collection | P17: 2 - Sewerage | Q17: NTH - North | R17: 2 - Distribution | S17: 0 | T17: 0 | U17: 0 | V17: 0 | W17: 24096 | X17: 240504 | Y17: 264600 | Z17: 1 | AA17: 0 | AB17: 0 | AC17: 0 | AD17: 5450.090592 | AE17: 42969.24966 | AF17: 0 | AG17: 1 | AH17: 1 | AI17: 1 | AJ17: 1 | AK17: 0 | AL17: 0 | AM17: 0 | AN17: 1294.938159 | AO17: 12725.29303
A18: ISD | B18: 14 - Network Projects | C18: C0064 | D18: Fixed Water Fill Station EUMUNDI | E18: Budget FY13/14 | F18: 2011-07-01 | G18: 2015-02-04 | H18: 929 - Murray Green | I18: 04 - Growth | K18: 05 - Other Distribution | O18: 301 - Water Distrib & Ret | P18: 1 - Water | Q18: NTH - North | R18: 2 - Distribution | S18: 717 | T18: 0 | U18: 210000 | V18: 0 | W18: 0 | X18: 0 | Y18: 210000 | Z18: 1 | AA18: 0 | AB18: 41784.19174 | AC18: 0 | AD18: 0 | AE18: 0 | AF18: 0 | AG18: 1 | AH18: 1 | AI18: 1 | AJ18: 1 | AK18: 0 | AL18: 14044.30144 | AM18: 0 | AN18: 0 | AO18: 0
A19: ISD | B19: 14 - Network Projects | C19: C0067 | D19: Sewer Rising Main RMN-WW209 (250mm x 2300m) - BI18 RMN | E19: Budget FY13/14 | F19: 2010-10-01 | G19: 2014-12-02 | H19: 926 - Melissa Johnson | I19: 04 - Growth | K19: 05 - Other Distribution | O19: 304 - Sewerage Collection | P19: 2 - Sewerage | Q19: STH - South | R19: 2 - Distribution | S19: 0 | T19: 41978 | U19: 2126115 | V19: 0 | W19: 0 | X19: 0 | Y19: 2168093 | Z19: 1 | AA19: 5965 | AB19: 423038.0801 | AC19: 0 | AD19: 0 | AE19: 0 | AF19: 1 | AG19: 1 | AH19: 1 | AI19: 1 | AJ19: 1 | AK19: 4317 | AL19: 142189.5236 | AM19: 0 | AN19: 0 | AO19: 0
A20: ISD | B20: 14 - Network Projects | C20: C0078 | D20: Replacement of Wamuran Reservoir roof sheeting | E20: Budget FY13/14 | F20: 2010-08-30 | G20: 2015-05-04 | H20: 916 - Howard Smyth | I20: 07 - Renewals | K20: 05 - Other Distribution | O20: 301 - Water Distrib & Ret | P20: 1 - Water | Q20: STH - South | R20: 2 - Distribution | S20: 0 | T20: 250000 | U20: 1590000 | V20: 0 | W20: 0 | X20: 0 | Y20: 1840000 | Z20: 1 | AA20: 39060 | AB20: 316366.0231 | AC20: 0 | AD20: 0 | AE20: 0 | AF20: 0 | AG20: 0 | AH20: 0 | AI20: 0 | AJ20: 0 | AK20: 0 | AL20: 0 | AM20: 0 | AN20: 0 | AO20: 0
A21: ISD | B21: 14 - Network Projects | C21: C0084 | D21: Emergency Storage EMS-07X (150kL) | E21: Budget FY13/14 | F21: 2010-11-01 | G21: 2017-03-06 | H21: 926 - Melissa Johnson | I21: 05 - Improvements | K21: 05 - Other Distribution | O21: 304 - Sewerage Collection | P21: 2 - Sewerage | Q21: STH - South | R21: 2 - Distribution | S21: 0 | T21: 0 | U21: 0 | V21: 0 | W21: 50001 | X21: 0 | Y21: 50001 | Z21: 1 | AA21: 0 | AB21: 0 | AC21: 0 | AD21: 11309.34511 | AE21: 0 | AF21: 0 | AG21: 1 | AH21: 1 | AI21: 1 | AJ21: 1 | AK21: 0 | AL21: 0 | AM21: 0 | AN21: 2687.093413 | AO21: 0
A22: ISD | B22: 14 - Network Projects | C22: C0109 | D22: Ormonde Tce KINGS BEACH pump station and storage | E22: Budget FY13/14 | F22: 2015-01-05 | G22: 2017-05-04 | H22: 934 - Russ Manfield | I22: 06 - Infrastructure Effic | K22: 06 - Pump Stations | O22: 304 - Sewerage Collection | P22: 2 - Sewerage | Q22: NTH - North | R22: 2 - Distribution | S22: 0 | T22: 0 | U22: 21673 | V22: 83864 | W22: 910513 | X22: 0 | Y22: 1016050 | Z22: 1 | AA22: 0 | AB22: 4312.327559 | AC22: 18411.9567 | AD22: 205941.996 | AE22: 0 | AF22: 0 | AG22: 1 | AH22: 1 | AI22: 1 | AJ22: 1 | AK22: 0 | AL22: 1449.438786 | AM22: 5015.906107 | AN22: 48931.69107 | AO22: 0
A23: ISD | B23: 14 - Network Projects | C23: C0110 | D23: Maud St, M'DORE - Coastal Sewerage Diversion to M'way system | E23: Budget FY13/14 | F23: 2010-07-01 | G23: 2019-03-14 | H23: 955 - Richard Sithole | I23: 05 - Improvements | K23: 05 - Other Distribution | O23: 304 - Sewerage Collection | P23: 2 - Sewerage | Q23: NTH - North | R23: 2 - Distribution | S23: 0 | T23: 0 | U23: 0 | V23: 0 | W23: 391307 | X23: 1239212 | Y23: 1630519 | Z23: 1 | AA23: 0 | AB23: 0 | AC23: 0 | AD23: 88506.74798 | AE23: 221401.7639 | AF23: 0 | AG23: 1 | AH23: 1 | AI23: 1 | AJ23: 1 | AK23: 0 | AL23: 0 | AM23: 0 | AN23: 21029.14866 | AO23: 65567.87343
A24: ISD | B24: 14 - Network Projects | C24: C0120 | D24: Memorial Ave, TEWANTIN - SPS TWN001 Emergency Generator | E24: Budget FY13/14 | F24: 2010-11-01 | G24: 2013-11-06 | H24: 929 - Murray Green | I24: 02 - Compliance | K24: 06 - Pump Stations | O24: 304 - Sewerage Collection | P24: 2 - Sewerage | Q24: NTH - North | R24: 2 - Distribution | S24: 26264.84 | T24: 212826 | U24: 0 | V24: 0 | W24: 0 | X24: 0 | Y24: 212826 | Z24: 1 | AA24: 34312 | AB24: 0 | AC24: 0 | AD24: 0 | AE24: 0 | AF24: 1 | AG24: 1 | AH24: 1 | AI24: 1 | AJ24: 1 | AK24: 4444 | AL24: 0 | AM24: 0 | AN24: 0 | AO24: 0
A25: ISD | B25: 14 - Network Projects | C25: C0131 | D25: Le Claire Place, BUDERIM - SPS BUD067 EMS | E25: Budget FY13/14 | F25: 2009-05-26 | G25: 2014-02-12 | H25: 955 - Richard Sithole | I25: 04 - Growth | K25: 06 - Pump Stations | O25: 304 - Sewerage Collection | P25: 2 - Sewerage | Q25: NTH - North | R25: 2 - Distribution | S25: 81944.9 | T25: 412737 | U25: 0 | V25: 0 | W25: 0 | X25: 0 | Y25: 412737 | Z25: 1 | AA25: 65709 | AB25: 0 | AC25: 0 | AD25: 0 | AE25: 0 | AF25: 1 | AG25: 1 | AH25: 1 | AI25: 1 | AJ25: 1 | AK25: 1474 | AL25: 0 | AM25: 0 | AN25: 0 | AO25: 0
A26: ISD | B26: 16 - Network Operations (Renewals) | C26: C0135 | D26: Bribie Island WWTP. Procure & Install New Effluent Pump | E26: Budget FY13/14 | F26: 2010-07-01 | G26: 2013-12-06 | H26: 951 - Malcolm Brassey | I26: 02 - Compliance | K26: 10 - Treatment | O26: 305 - Sewerage Treatment | P26: 2 - Sewerage | Q26: STH - South | R26: 2 - Distribution | S26: 41375.01 | T26: 31625 | U26: 0 | V26: 0 | W26: 0 | X26: 0 | Y26: 31625 | Z26: 1 | AA26: 6383 | AB26: 0 | AC26: 0 | AD26: 0 | AE26: 0 | AF26: 0 | AG26: 0 | AH26: 0 | AI26: 0 | AJ26: 0 | AK26: 0 | AL26: 0 | AM26: 0 | AN26: 0 | AO26: 0
A27: ISD | B27: 12 - Major Projects | C27: C0136 | D27: KAWANA STP, Optimisation | E27: Budget FY13/14 | F27: 2010-07-01 | G27: 2013-10-21 | H27: 953 - Stephen Hanson | I27: 04 - Growth | K27: 10 - Treatment | O27: 305 - Sewerage Treatment | P27: 2 - Sewerage | Q27: NTH - North | R27: 2 - Distribution | S27: 5575200.26 | T27: 1466787 | U27: 0 | V27: 0 | W27: 0 | X27: 0 | Y27: 1466787 | Z27: 1 | AA27: 256869 | AB27: 0 | AC27: 0 | AD27: 0 | AE27: 0 | AF27: 1 | AG27: 1 | AH27: 1 | AI27: 1 | AJ27: 1 | AK27: 119157 | AL27: 0 | AM27: 0 | AN27: 0 | AO27: 0
A28: ISD | B28: 14 - Network Projects | C28: C0142 | D28: Replacement of water main WR-LT01 (300mm x 487m) | E28: Budget FY13/14 | F28: 2010-09-01 | G28: 2015-06-17 | H28: 957 - David Ingram | I28: 05 - Improvements | K28: 05 - Other Distribution | O28: 301 - Water Distrib & Ret | P28: 1 - Water | Q28: STH - South | R28: 2 - Distribution | S28: 0 | T28: 0 | U28: 594463 | V28: 5819 | W28: 0 | X28: 0 | Y28: 600282 | Z28: 1 | AA28: 0 | AB28: 118281.6951 | AC28: 1277.534771 | AD28: 0 | AE28: 0 | AF28: 0 | AG28: 1 | AH28: 1 | AI28: 1 | AJ28: 1 | AK28: 0 | AL28: 39756.27413 | AM28: 348.0344085 | AN28: 0 | AO28: 0
A29: ISD | B29: 14 - Network Projects | C29: C0152 | D29: Redcliffe RM0 System Network Rationalisation | E29: Budget FY13/14 | F29: 2010-08-23 | G29: 2014-08-18 | H29: 926 - Melissa Johnson | I29: 04 - Growth | K29: 05 - Other Distribution | O29: 304 - Sewerage Collection | P29: 2 - Sewerage | Q29: STH - South | R29: 2 - Distribution | S29: 0 | T29: 1308332 | U29: 259329 | V29: 0 | W29: 0 | X29: 0 | Y29: 1567661 | Z29: 1 | AA29: 177452 | AB29: 51599.29837 | AC29: 0 | AD29: 0 | AE29: 0 | AF29: 1 | AG29: 1 | AH29: 1 | AI29: 1 | AJ29: 1 | AK29: 20170 | AL29: 17343.30785 | AM29: 0 | AN29: 0 | AO29: 0
A30: ISD | B30: 14 - Network Projects | C30: C0193 | D30: NAMBOUR WEST - Reservoir 2 | E30: Budget FY13/14 | F30: 2010-11-15 | G30: 2013-07-24 | H30: 930 - Neil Parish | I30: 04 - Growth | K30: 07 - Reserviors | O30: 301 - Water Distrib & Ret | P30: 1 - Water | Q30: NTH - North | R30: 2 - Distribution | S30: 1815101.88 | T30: 195366 | U30: 0 | V30: 0 | W30: 0 | X30: 0 | Y30: 195366 | Z30: 1 | AA30: 36966 | AB30: 0 | AC30: 0 | AD30: 0 | AE30: 0 | AF30: 0 | AG30: 0 | AH30: 0 | AI30: 0 | AJ30: 0 | AK30: 0 | AL30: 0 | AM30: 0 | AN30: 0 | AO30: 0
A31: ISD | B31: 16 - Network Operations (Renewals) | C31: C0195 | D31: Bribie Island WWTP, Replacement of Electrical/Mechanical Equipment | E31: Budget FY13/14 | F31: 2010-11-01 | G31: 2013-03-15 | H31: 932 - Paul Eder | I31: 07 - Renewals | K31: 10 - Treatment | O31: 305 - Sewerage Treatment | P31: 2 - Sewerage | Q31: STH - South | R31: 2 - Distribution | S31: 15135.13 | T31: 4865 | U31: 0 | V31: 0 | W31: 0 | X31: 0 | Y31: 4865 | Z31: 1 | AA31: 860 | AB31: 0 | AC31: 0 | AD31: 0 | AE31: 0 | AF31: 0 | AG31: 0 | AH31: 0 | AI31: 0 | AJ31: 0 | AK31: 0 | AL31: 0 | AM31: 0 | AN31: 0 | AO31: 0
A32: ISD | B32: 16 - Network Operations (Renewals) | C32: C0208 | D32: Sewer Structures (Overflows etc) Replacement/Refurbishment | E32: Budget FY13/14 | F32: 2010-07-01 | G32: 2012-06-29 | H32: 917 - Jason Fletchett | I32: 07 - Renewals | K32: 05 - Other Distribution | O32: 304 - Sewerage Collection | P32: 2 - Sewerage | Q32: NTH - North | R32: 2 - Distribution | S32: 0 | T32: 27366 | U32: 72 | V32: 0 | W32: 0 | X32: 0 | Y32: 27438 | Z32: 1 | AA32: 4699 | AB32: 14.32600859 | AC32: 0 | AD32: 0 | AE32: 0 | AF32: 0 | AG32: 0 | AH32: 0 | AI32: 0 | AJ32: 0 | AK32: 0 | AL32: 0 | AM32: 0 | AN32: 0 | AO32: 0
A33: ISD | B33: 14 - Network Projects | C33: C0230 | D33: Margaret Street, PALMWOODS - SPS PLM137 (137) rising main | E33: Budget FY13/14 | F33: 2013-06-06 | G33: 2014-07-25 | H33: 934 - Russ Manfield | I33: 04 - Growth | K33: 06 - Pump Stations | O33: 304 - Sewerage Collection | P33: 2 - Sewerage | Q33: NTH - North | R33: 2 - Distribution | S33: 5082.49 | T33: 74917 | U33: 0 | V33: 0 | W33: 0 | X33: 0 | Y33: 74917 | Z33: 1 | AA33: 13883 | AB33: 0 | AC33: 0 | AD33: 0 | AE33: 0 | AF33: 1 | AG33: 1 | AH33: 1 | AI33: 1 | AJ33: 1 | AK33: 450 | AL33: 0 | AM33: 0 | AN33: 0 | AO33: 0
A34: ISD | B34: 14 - Network Projects | C34: C0240 | D34: Wastewater Pump Station PS13X (21L/s v 13m) | E34: Budget FY13/14 | F34: 2015-07-01 | G34: 2016-05-12 | H34: 926 - Melissa Johnson | I34: 05 - Improvements | K34: 05 - Other Distribution | O34: 304 - Sewerage Collection | P34: 2 - Sewerage | Q34: STH - South | R34: 2 - Distribution | S34: 0 | T34: 0 | U34: 0 | V34: 168267 | W34: 0 | X34: 0 | Y34: 168267 | Z34: 1 | AA34: 0 | AB34: 0 | AC34: 36942.24839 | AD34: 0 | AE34: 0 | AF34: 0 | AG34: 0 | AH34: 0 | AI34: 0 | AJ34: 0 | AK34: 0 | AL34: 0 | AM34: 0 | AN34: 0 | AO34: 0
A35: ISD | B35: 14 - Network Projects | C35: C0271 | D35: Sewer Rising Main-MWHRM-10 - SPS 05X - (300mm x 300m) | E35: Budget FY13/14 | F35: 2010-07-01 | G35: 2014-10-09 | H35: 926 - Melissa Johnson | I35: 04 - Growth | K35: 05 - Other Distribution | O35: 304 - Sewerage Collection | P35: 2 - Sewerage | Q35: STH - South | R35: 2 - Distribution | S35: 0 | T35: 280116 | U35: 205466 | V35: 0 | W35: 0 | X35: 0 | Y35: 485582 | Z35: 1 | AA35: 35128 | AB35: 40882.05114 | AC35: 0 | AD35: 0 | AE35: 0 | AF35: 0 | AG35: 0 | AH35: 0 | AI35: 0 | AJ35: 0 | AK35: 0 | AL35: 0 | AM35: 0 | AN35: 0 | AO35: 0
A36: ISD | B36: 20 - SCADA | C36: C0274 | D36: Communication Infrastructure Program | E36: Budget FY13/14 | F36: 2010-08-03 | G36: 2014-07-30 | H36: 900 - Andrew Schoenmaker | I36: 02 - Compliance | K36: 09 - Telemetry and Contro | O36: 304 - Sewerage Collection | P36: 8 - Support Service | Q36: STH - South | R36: 2 - Distribution | S36: 2140251.27 | T36: 827960 | U36: 0 | V36: 0 | W36: 0 | X36: 0 | Y36: 827960 | Z36: 1 | AA36: 151480 | AB36: 0 | AC36: 0 | AD36: 0 | AE36: 0 | AF36: 1 | AG36: 1 | AH36: 1 | AI36: 1 | AJ36: 1 | AK36: 88711 | AL36: 0 | AM36: 0 | AN36: 0 | AO36: 0
A37: ISD | B37: 14 - Network Projects | C37: C0280 | D37: Hummingbird Tce, COOLUM - Water Main 150mm | E37: Budget FY13/14 | F37: 2016-07-01 | G37: 2017-02-10 | H37: 917 - Jason Fletchett | I37: 05 - Improvements | K37: 05 - Other Distribution | O37: 301 - Water Distrib & Ret | P37: 1 - Water | Q37: NTH - North | R37: 2 - Distribution | S37: 0 | T37: 0 | U37: 0 | V37: 0 | W37: 175000 | X37: 0 | Y37: 175000 | Z37: 1 | AA37: 0 | AB37: 0 | AC37: 0 | AD37: 39581.91623 | AE37: 0 | AF37: 0 | AG37: 0 | AH37: 0 | AI37: 0 | AJ37: 0 | AK37: 0 | AL37: 0 | AM37: 0 | AN37: 0 | AO37: 0
A38: ISD | B38: 14 - Network Projects | C38: C0285 | D38: Ngungun St, LANDSBOROUGH - Water Pump Station | E38: Budget FY13/14 | F38: 2010-10-01 | G38: 2015-10-27 | H38: 930 - Neil Parish | I38: 05 - Improvements | K38: 05 - Other Distribution | O38: 301 - Water Distrib & Ret | P38: 1 - Water | Q38: NTH - North | R38: 2 - Distribution | S38: 0 | T38: 0 | U38: 112472 | V38: 668943 | W38: 0 | X38: 0 | Y38: 781415 | Z38: 1 | AA38: 0 | AB38: 22378.8172 | AC38: 146863.3687 | AD38: 0 | AE38: 0 | AF38: 0 | AG38: 1 | AH38: 1 | AI38: 1 | AJ38: 1 | AK38: 0 | AL38: 7521.86034 | AM38: 40009.48296 | AN38: 0 | AO38: 0
A39: ISD | B39: 14 - Network Projects | C39: C0353 | D39: Upgrade Pumps PS231 (101L/s v 25m) | E39: Budget FY13/14 | F39: 2010-10-01 | G39: 2014-05-23 | H39: 939 - Zoran Brankovic | I39: 07 - Renewals | K39: 06 - Pump Stations | O39: 304 - Sewerage Collection | P39: 2 - Sewerage | Q39: STH - South | R39: 2 - Distribution | S39: 203566.77 | T39: 841552 | U39: 0 | V39: 0 | W39: 0 | X39: 0 | Y39: 841552 | Z39: 1 | AA39: 141300 | AB39: 0 | AC39: 0 | AD39: 0 | AE39: 0 | AF39: 1 | AG39: 1 | AH39: 1 | AI39: 1 | AJ39: 1 | AK39: 36971 | AL39: 0 | AM39: 0 | AN39: 0 | AO39: 0
A40: ISD | B40: 14 - Network Projects | C40: C0354 | D40: Upgrade Pumps PS234 (30L/s v 35m) | E40: Budget FY13/14 | F40: 2010-10-01 | G40: 2014-01-10 | H40: 957 - David Ingram | I40: 07 - Renewals | K40: 06 - Pump Stations | O40: 304 - Sewerage Collection | P40: 2 - Sewerage | Q40: STH - South | R40: 2 - Distribution | S40: 263239.71 | T40: 13952 | U40: 0 | V40: 0 | W40: 0 | X40: 0 | Y40: 13952 | Z40: 1 | AA40: 3007 | AB40: 0 | AC40: 0 | AD40: 0 | AE40: 0 | AF40: 1 | AG40: 1 | AH40: 1 | AI40: 1 | AJ40: 1 | AK40: 4557 | AL40: 0 | AM40: 0 | AN40: 0 | AO40: 0
A41: ISD | B41: 14 - Network Projects | C41: C0357 | D41: Wastewater Pump Station PS DBX (99L/s v 5m) | E41: Budget FY13/14 | F41: 2010-11-01 | G41: 2013-01-23 | H41: 940 - Warren Fletcher | I41: 04 - Growth | K41: 05 - Other Distribution | O41: 304 - Sewerage Collection | P41: 2 - Sewerage | Q41: STH - South | R41: 2 - Distribution | S41: 425653.48 | T41: 519 | U41: 0 | V41: 0 | W41: 0 | X41: 0 | Y41: 519 | Z41: 1 | AA41: 112 | AB41: 0 | AC41: 0 | AD41: 0 | AE41: 0 | AF41: 0 | AG41: 0 | AH41: 0 | AI41: 0 | AJ41: 0 | AK41: 0 | AL41: 0 | AM41: 0 | AN41: 0 | AO41: 0
A42: ISD | B42: 12 - Major Projects | C42: C0398 | D42: COOLUM STP, Upgrade | E42: Budget FY13/14 | F42: 2010-02-03 | G42: 2018-05-22 | H42: 904 - Ben Goodall | I42: 04 - Growth | K42: 10 - Treatment | O42: 305 - Sewerage Treatment | P42: 2 - Sewerage | Q42: NTH - North | R42: 2 - Distribution | S42: 0 | T42: 0 | U42: 1964059 | V42: 2271122 | W42: 13263784 | X42: 12160005 | Y42: 29658970 | Z42: 1 | AA42: 0 | AB42: 390793.4183 | AC42: 498614.4226 | AD42: 3000034.213 | AE42: 2172547.196 | AF42: 0 | AG42: 1 | AH42: 1 | AI42: 1 | AJ42: 1 | AK42: 0 | AL42: 131351.603 | AM42: 135835.814 | AN42: 712806.2764 | AO42: 643397.3112
A43: ISD | B43: 14 - Network Projects | C43: C0399 | D43: SUNCOAST Sewerage Scheme Transfer System | E43: Budget FY13/14 | F43: 2010-07-28 | G43: 2014-09-01 | H43: 951 - Malcolm Brassey | I43: 04 - Growth | K43: 10 - Treatment | O43: 305 - Sewerage Treatment | P43: 2 - Sewerage | Q43: NTH - North | R43: 2 - Distribution | S43: 3741361.48 | T43: 5761523 | U43: 0 | V43: 0 | W43: 0 | X43: 0 | Y43: 5761523 | Z43: 1 | AA43: 929655 | AB43: 0 | AC43: 0 | AD43: 0 | AE43: 0 | AF43: 1 | AG43: 1 | AH43: 1 | AI43: 1 | AJ43: 1 | AK43: 318658 | AL43: 0 | AM43: 0 | AN43: 0 | AO43: 0
A44: ISD | B44: 14 - Network Projects | C44: C0414 | D44: Macadamia Drive, MALENY Water Trunk Main | E44: Budget FY13/14 | F44: 2012-03-30 | G44: 2013-05-30 | H44: 954 - Steve Alfredson | I44: 04 - Growth | K44: 05 - Other Distribution | O44: 301 - Water Distrib & Ret | P44: 1 - Water | Q44: NTH - North | R44: 2 - Distribution | S44: 1374198.11 | T44: 247382 | U44: 0 | V44: 0 | W44: 0 | X44: 0 | Y44: 247382 | Z44: 1 | AA44: 45601 | AB44: 0 | AC44: 0 | AD44: 0 | AE44: 0 | AF44: 0 | AG44: 0 | AH44: 0 | AI44: 0 | AJ44: 0 | AK44: 0 | AL44: 0 | AM44: 0 | AN44: 0 | AO44: 0
A45: ISD | B45: 14 - Network Projects | C45: C0425 | D45: Koala Court, Little Mountain | E45: Budget FY13/14 | F45: 2010-09-10 | G45: 2013-08-22 | H45: 956 - Anna McLaren | I45: 06 - Infrastructure Effic | K45: 05 - Other Distribution | O45: 307 - Non Core Water | P45: 1 - Water | Q45: NTH - North | R45: 2 - Distribution | S45: 0 | T45: 66209 | U45: 0 | V45: 0 | W45: 0 | X45: 0 | Y45: 66209 | Z45: 1 | AA45: 11706 | AB45: 0 | AC45: 0 | AD45: 0 | AE45: 0 | AF45: 0 | AG45: 0 | AH45: 0 | AI45: 0 | AJ45: 0 | AK45: 0 | AL45: 0 | AM45: 0 | AN45: 0 | AO45: 0
A46: ISD | B46: 16 - Network Operations (Renewals) | C46: C0445 | D46: Bribie Island STP, CL1 Replacement | E46: Budget FY13/14 | F46: 2012-02-06 | G46: 2014-02-25 | H46: 503 - Business Sustain | I46: 07 - Renewals | K46: 10 - Treatment | O46: 305 - Sewerage Treatment | P46: 2 - Sewerage | Q46: STH - South | R46: 2 - Distribution | S46: 936346.49 | T46: 2327884 | U46: 0 | V46: 0 | W46: 0 | X46: 0 | Y46: 2327884 | Z46: 1 | AA46: 402499 | AB46: 0 | AC46: 0 | AD46: 0 | AE46: 0 | AF46: 1 | AG46: 1 | AH46: 1 | AI46: 1 | AJ46: 1 | AK46: 20312 | AL46: 0 | AM46: 0 | AN46: 0 | AO46: 0
A47: Corporate | B47: 18 - Property & Logistics | C47: C0487 | D47: Keys & Locks | E47: Keys & Locks | F47: 2013-07-01 | G47: 2013-12-31 | H47: 942 - Mike O'Reilly | I47: 01 - Business Efficiency | K47: 08 - Sundry PPE | O47: 309 - Non Regulated | P47: 8 - Support Service | Q47: REG - Regional | R47: 2 - Distribution | S47: 100000 | T47: 180000 | U47: 0 | V47: 0 | W47: 0 | X47: 0 | Y47: 180000 | Z47: 0 | AA47: 0 | AB47: 0 | AC47: 0 | AD47: 0 | AE47: 0 | AF47: 0 | AG47: 0 | AH47: 0 | AI47: 0 | AJ47: 0 | AK47: 0 | AL47: 0 | AM47: 0 | AN47: 0 | AO47: 0
A48: Corporate | B48: 18 - Property & Logistics | C48: C0487 | D48: Southern Service Centre | E48: Southern Service Centre | F48: 2013-07-01 | G48: 2013-12-31 | H48: 942 - Mike O'Reilly | I48: 01 - Business Efficiency | K48: 08 - Sundry PPE | O48: 309 - Non Regulated | P48: 8 - Support Service | Q48: REG - Regional | R48: 2 - Distribution | S48: 0 | T48: 0 | U48: 1065000 | V48: 4782750 | W48: 0 | X48: 0 | Y48: 5847750 | Z48: 1 | AA48: 0 | AB48: 211905.5438 | AC48: 1050030.835 | AD48: 0 | AE48: 0 | AF48: 0 | AG48: 0 | AH48: 0 | AI48: 0 | AJ48: 0 | AK48: 0 | AL48: 0 | AM48: 0 | AN48: 0 | AO48: 0
A49: ISD | B49: 14 - Network Projects | C49: C0531 | D49: Lindsay Rd BUDERIM Water Main FF New 150mm | E49: Budget FY13/14 | F49: 2012-03-06 | G49: 2013-12-06 | H49: 955 - Richard Sithole | I49: 02 - Compliance | K49: 05 - Other Distribution | O49: 301 - Water Distrib & Ret | P49: 1 - Water | Q49: NTH - North | R49: 2 - Distribution | S49: 41752.34 | T49: 643649 | U49: 0 | V49: 0 | W49: 0 | X49: 0 | Y49: 643649 | Z49: 1 | AA49: 112152 | AB49: 0 | AC49: 0 | AD49: 0 | AE49: 0 | AF49: 1 | AG49: 1 | AH49: 1 | AI49: 1 | AJ49: 1 | AK49: 1235 | AL49: 0 | AM49: 0 | AN49: 0 | AO49: 0
A50: ISD | B50: 14 - Network Projects | C50: C0541 | D50: Ballinger Road, BUDERIM Water Trunk Main | E50: Budget FY13/14 | F50: 2013-05-20 | G50: 2014-04-10 | H50: 929 - Murray Green | I50: 04 - Growth | K50: 05 - Other Distribution | O50: 301 - Water Distrib & Ret | P50: 1 - Water | Q50: NTH - North | R50: 2 - Distribution | S50: 15306.64 | T50: 172951 | U50: 0 | V50: 0 | W50: 0 | X50: 0 | Y50: 172951 | Z50: 1 | AA50: 28394 | AB50: 0 | AC50: 0 | AD50: 0 | AE50: 0 | AF50: 1 | AG50: 0 | AH50: 0 | AI50: 0 | AJ50: 0 | AK50: 4448 | AL50: 0 | AM50: 0 | AN50: 0 | AO50: 0
A51: ISD | B51: 14 - Network Projects | C51: C0542 | D51: Reed Street/Bruce Parade GLASSHOUSE MOUNTAINS Water Main FF | E51: Budget FY13/14 | F51: 2013-06-03 | G51: 2014-06-17 | H51: 902 - Ashley Massie | I51: 02 - Compliance | K51: 05 - Other Distribution | O51: 301 - Water Distrib & Ret | P51: 1 - Water | Q51: NTH - North | R51: 2 - Distribution | S51: 397.73 | T51: 21324 | U51: 0 | V51: 0 | W51: 0 | X51: 0 | Y51: 21324 | Z51: 1 | AA51: 3529 | AB51: 0 | AC51: 0 | AD51: 0 | AE51: 0 | AF51: 0 | AG51: 0 | AH51: 0 | AI51: 0 | AJ51: 0 | AK51: 0 | AL51: 0 | AM51: 0 | AN51: 0 | AO51: 0
A52: ISD | B52: 14 - Network Projects | C52: C0544 | D52: Cumberland Way/Whitehaven Dr BUDERIM Water Main FF | E52: Budget FY13/14 | F52: 2013-06-03 | G52: 2014-05-23 | H52: 902 - Ashley Massie | I52: 02 - Compliance | K52: 05 - Other Distribution | O52: 301 - Water Distrib & Ret | P52: 1 - Water | Q52: NTH - North | R52: 2 - Distribution | S52: 8099.96 | T52: 175121 | U52: 0 | V52: 0 | W52: 0 | X52: 0 | Y52: 175121 | Z52: 1 | AA52: 29645 | AB52: 0 | AC52: 0 | AD52: 0 | AE52: 0 | AF52: 0 | AG52: 0 | AH52: 0 | AI52: 0 | AJ52: 0 | AK52: 0 | AL52: 0 | AM52: 0 | AN52: 0 | AO52: 0
A53: ISD | B53: 14 - Network Projects | C53: C0550 | D53: Kauri Street COOROY Water Main FF | E53: Budget FY13/14 | F53: 2013-05-07 | G53: 2014-07-01 | H53: 902 - Ashley Massie | I53: 02 - Compliance | K53: 05 - Other Distribution | O53: 301 - Water Distrib & Ret | P53: 1 - Water | Q53: NTH - North | R53: 2 - Distribution | S53: 5405.38 | T53: 134966 | U53: 0 | V53: 0 | W53: 0 | X53: 0 | Y53: 134966 | Z53: 1 | AA53: 24600 | AB53: 0 | AC53: 0 | AD53: 0 | AE53: 0 | AF53: 0 | AG53: 0 | AH53: 0 | AI53: 0 | AJ53: 0 | AK53: 0 | AL53: 0 | AM53: 0 | AN53: 0 | AO53: 0
A54: ISD | B54: 14 - Network Projects | C54: C0559 | D54: Centenary Heights Road COOLUM BEACH Water Main FF | E54: Budget FY13/14 | F54: 2013-06-03 | G54: 2014-06-26 | H54: 902 - Ashley Massie | I54: 02 - Compliance | K54: 05 - Other Distribution | O54: 301 - Water Distrib & Ret | P54: 1 - Water | Q54: NTH - North | R54: 2 - Distribution | S54: 8734.02 | T54: 119037 | U54: 269358 | V54: 0 | W54: 0 | X54: 0 | Y54: 388395 | Z54: 1 | AA54: 13504 | AB54: 53594.79199 | AC54: 0 | AD54: 0 | AE54: 0 | AF54: 0 | AG54: 0 | AH54: 0 | AI54: 0 | AJ54: 0 | AK54: 0 | AL54: 0 | AM54: 0 | AN54: 0 | AO54: 0
A55: ISD | B55: 14 - Network Projects | C55: C0560 | D55: Mountain View Drive MOUNT COOLUM Water Main FF | E55: Budget FY13/14 | F55: 2013-06-03 | G55: 2014-06-13 | H55: 902 - Ashley Massie | I55: 02 - Compliance | K55: 05 - Other Distribution | O55: 301 - Water Distrib & Ret | P55: 1 - Water | Q55: NTH - North | R55: 2 - Distribution | S55: 3934.85 | T55: 78679 | U55: 92454 | V55: 0 | W55: 0 | X55: 0 | Y55: 171133 | Z55: 1 | AA55: 8131 | AB55: 18395.78887 | AC55: 0 | AD55: 0 | AE55: 0 | AF55: 0 | AG55: 0 | AH55: 0 | AI55: 0 | AJ55: 0 | AK55: 0 | AL55: 0 | AM55: 0 | AN55: 0 | AO55: 0
A56: ISD | B56: 14 - Network Projects | C56: C0562 | D56: McKenzie Rd WOOMBYE Water Main FF | E56: Budget FY13/14 | F56: 2013-06-03 | G56: 2014-07-23 | H56: 902 - Ashley Massie | I56: 02 - Compliance | K56: 05 - Other Distribution | O56: 301 - Water Distrib & Ret | P56: 1 - Water | Q56: NTH - North | R56: 2 - Distribution | S56: 1092.16 | T56: 36218 | U56: 0 | V56: 0 | W56: 0 | X56: 0 | Y56: 36218 | Z56: 1 | AA56: 5806 | AB56: 0 | AC56: 0 | AD56: 0 | AE56: 0 | AF56: 0 | AG56: 0 | AH56: 0 | AI56: 0 | AJ56: 0 | AK56: 0 | AL56: 0 | AM56: 0 | AN56: 0 | AO56: 0
A57: ISD | B57: 14 - Network Projects | C57: C0565 | D57: Charles Ct /Avian St FOREST GLEN Water Main FF | E57: Budget FY13/14 | F57: 2013-06-03 | G57: 2014-07-23 | H57: 902 - Ashley Massie | I57: 02 - Compliance | K57: 05 - Other Distribution | O57: 301 - Water Distrib & Ret | P57: 1 - Water | Q57: NTH - North | R57: 2 - Distribution | S57: 1632.7 | T57: 47669 | U57: 0 | V57: 0 | W57: 0 | X57: 0 | Y57: 47669 | Z57: 1 | AA57: 7694 | AB57: 0 | AC57: 0 | AD57: 0 | AE57: 0 | AF57: 0 | AG57: 0 | AH57: 0 | AI57: 0 | AJ57: 0 | AK57: 0 | AL57: 0 | AM57: 0 | AN57: 0 | AO57: 0
A58: ISD | B58: 14 - Network Projects | C58: C0568 | D58: Marjorie St/31 Buderim Ave MOOLOOLABA Water Main FF | E58: Budget FY13/14 | F58: 2013-06-03 | G58: 2014-09-19 | H58: 902 - Ashley Massie | I58: 02 - Compliance | K58: 05 - Other Distribution | O58: 301 - Water Distrib & Ret | P58: 1 - Water | Q58: NTH - North | R58: 2 - Distribution | S58: 1066.45 | T58: 30611 | U58: 0 | V58: 0 | W58: 0 | X58: 0 | Y58: 30611 | Z58: 1 | AA58: 4942 | AB58: 0 | AC58: 0 | AD58: 0 | AE58: 0 | AF58: 0 | AG58: 0 | AH58: 0 | AI58: 0 | AJ58: 0 | AK58: 0 | AL58: 0 | AM58: 0 | AN58: 0 | AO58: 0
